SERVICE_CODE,ORGANISATION_UNIT,EXPENDITURE_CATEGORY,EXPENDITURE_DESCRIPTION,EXPENDITURE_CODE,NARRATIVE,DATE,TRANSATION_CODE,NET_AMOUNT,SUPPLIER_CODE,SUPPLIER_NAME,FROM_DATE,TO_DATE,FINANCIAL_PERIOD_YEAR,
P&V,MYDDELTON HOUSE GARDENS,EMPLOYEES,APPOINTMENT EXPENSES,1301,P118238-SERVICE-KITCHEN GARDENER ADVERT COSTS,13/06/2022 00:00,263964,960,SA0133,SOWERBY ADVERTISING AND COMMUNICATIONS,30/05/2022 00:00,26/06/2022 00:00,P03-2023,
P&V,ALMOST WILD CAMPSITE,EMPLOYEES,APPOINTMENT EXPENSES,1301,P118304-SERVICE-CSA ALMOST WILD VACANCY COSTS,13/06/2022 00:00,264096,712,SA0133,SOWERBY ADVERTISING AND COMMUNICATIONS,30/05/2022 00:00,26/06/2022 00:00,P03-2023,
R&B,CORPORATE TRAINING,EMPLOYEES,TRAINING EXPENSES,1305,P117710-SERVICE-Key Training - Excel Intermediate Course,13/06/2022 00:00,263976,140,WW0210,WWP TRAINING LIMITED t/a KEY TRAINING,30/05/2022 00:00,26/06/2022 00:00,P03-2023,
P&V,SOUTH AREA RANGERS,EMPLOYEES,TRAINING EXPENSES,1305,P118246-SERVICE-LANTRA Registration and Certification,13/06/2022 00:00,263935,180,SA0137,SAFFRON WALDEN AGRICULTURAL TRAINING GROUP,30/05/2022 00:00,26/06/2022 00:00,P03-2023,
P&V,SOUTH AREA RANGERS,EMPLOYEES,TRAINING EXPENSES,1305,P118246-SERVICE-Strimmer Training,13/06/2022 00:00,263935,400,SA0137,SAFFRON WALDEN AGRICULTURAL TRAINING GROUP,30/05/2022 00:00,26/06/2022 00:00,P03-2023,
,LV LEISURE CENTRE GOLF COURSE,EMPLOYEES,TRAINING EXPENSES,1305,P118030-SERVICE-C Hetherigton Training,08/06/2022 00:00,262982,400,HE0448,CAROLINE HETHERINGTON,30/05/2022 00:00,26/06/2022 00:00,P03-2023,
R&B,NON DISTRIBUTED COSTS,EMPLOYEES,SUPERANNUATION ADDED YEARS,1310,LONDON PENSIONS FUND AUTHORITY,22/06/2022 00:00,264297,5505.11,LO0031,LONDON PENSIONS FUND AUTHORITY,30/05/2022 00:00,26/06/2022 00:00,P03-2023,
,LEE VALLEY CAMPSITE,EMPLOYEES,CRB CHECKS,1330,DBS CHECKS,13/06/2022 00:00,263996,54,DD0119,DUE DILIGENCE CHECKING LIMITED,30/05/2022 00:00,26/06/2022 00:00,P03-2023,
,LEE VALLEY CAMPSITE,EMPLOYEES,CRB CHECKS,1330,ADMIN FEE,13/06/2022 00:00,263996,54,DD0119,DUE DILIGENCE CHECKING LIMITED,30/05/2022 00:00,26/06/2022 00:00,P03-2023,
,LEE VALLEY CARAVAN PARK,EMPLOYEES,CRB CHECKS,1330,DBS CHECKS,13/06/2022 00:00,263996,54,DD0119,DUE DILIGENCE CHECKING LIMITED,30/05/2022 00:00,26/06/2022 00:00,P03-2023,
,LEE VALLEY CARAVAN PARK,EMPLOYEES,CRB CHECKS,1330,ADMIN FEE,13/06/2022 00:00,263996,54,DD0119,DUE DILIGENCE CHECKING LIMITED,30/05/2022 00:00,26/06/2022 00:00,P03-2023,
P&V,MYDDELTON HOUSE GARDENS,EMPLOYEES,CRB CHECKS,1330,DBS CHECKS,13/06/2022 00:00,263996,18,DD0119,DUE DILIGENCE CHECKING LIMITED,30/05/2022 00:00,26/06/2022 00:00,P03-2023,
P&V,MYDDELTON HOUSE GARDENS,EMPLOYEES,CRB CHECKS,1330,ADMIN FEE,13/06/2022 00:00,263996,18,DD0119,DUE DILIGENCE CHECKING LIMITED,30/05/2022 00:00,26/06/2022 00:00,P03-2023,
P&V,MYDDLETON HSE HERITAGE CENTRE,EMPLOYEES,CRB CHECKS,1330,DBS CHECKS,13/06/2022 00:00,263996,54,DD0119,DUE DILIGENCE CHECKING LIMITED,30/05/2022 00:00,26/06/2022 00:00,P03-2023,
P&V,MYDDLETON HSE HERITAGE CENTRE,EMPLOYEES,CRB CHECKS,1330,ADMIN FEE,13/06/2022 00:00,263996,54,DD0119,DUE DILIGENCE CHECKING LIMITED,30/05/2022 00:00,26/06/2022 00:00,P03-2023,
P&V,NORTH AREA RANGERS,EMPLOYEES,CRB CHECKS,1330,DBS CHECKS,13/06/2022 00:00,263996,114,DD0119,DUE DILIGENCE CHECKING LIMITED,30/05/2022 00:00,26/06/2022 00:00,P03-2023,
P&V,NORTH AREA RANGERS,EMPLOYEES,CRB CHECKS,1330,ADMIN FEE,13/06/2022 00:00,263996,54,DD0119,DUE DILIGENCE CHECKING LIMITED,30/05/2022 00:00,26/06/2022 00:00,P03-2023,
P&V,BIODIVERSITY ACTION PLAN,EMPLOYEES,CRB CHECKS,1330,ADMIN FEE,13/06/2022 00:00,263996,18,DD0119,DUE DILIGENCE CHECKING LIMITED,30/05/2022 00:00,26/06/2022 00:00,P03-2023,
P&V,BIODIVERSITY ACTION PLAN,EMPLOYEES,CRB CHECKS,1330,DBS CHECKS,13/06/2022 00:00,263996,18,DD0119,DUE DILIGENCE CHECKING LIMITED,30/05/2022 00:00,26/06/2022 00:00,P03-2023,
P&V,POLICY & PERFORMANCE (L&E),EMPLOYEES,CRB CHECKS,1330,DBS CHECKS,13/06/2022 00:00,263996,18,DD0119,DUE DILIGENCE CHECKING LIMITED,30/05/2022 00:00,26/06/2022 00:00,P03-2023,
P&V,POLICY & PERFORMANCE (L&E),EMPLOYEES,CRB CHECKS,1330,ADMIN FEE,13/06/2022 00:00,263996,18,DD0119,DUE DILIGENCE CHECKING LIMITED,30/05/2022 00:00,26/06/2022 00:00,P03-2023,
P&V,EVENTS MANAGEMENT (PR),EMPLOYEES,CRB CHECKS,1330,DBS CHECKS,13/06/2022 00:00,263996,18,DD0119,DUE DILIGENCE CHECKING LIMITED,30/05/2022 00:00,26/06/2022 00:00,P03-2023,
P&V,EVENTS MANAGEMENT (PR),EMPLOYEES,CRB CHECKS,1330,ADMIN FEE,13/06/2022 00:00,263996,18,DD0119,DUE DILIGENCE CHECKING LIMITED,30/05/2022 00:00,26/06/2022 00:00,P03-2023,
,LV LEISURE CENTRE CAMPSITE,EMPLOYEES,CRB CHECKS,1330,ADMIN FEE,13/06/2022 00:00,263996,126,DD0119,DUE DILIGENCE CHECKING LIMITED,30/05/2022 00:00,26/06/2022 00:00,P03-2023,
,LV LEISURE CENTRE CAMPSITE,EMPLOYEES,CRB CHECKS,1330,DBS CHECKS,13/06/2022 00:00,263996,108,DD0119,DUE DILIGENCE CHECKING LIMITED,30/05/2022 00:00,26/06/2022 00:00,P03-2023,
R&B,CORPORATE TRAINING,EMPLOYEES,APPRENTICE LEVY,1390,PAYE,13/06/2022 00:00,264011,641,HM0368,HMRC,30/05/2022 00:00,26/06/2022 00:00,P03-2023,
CEO,LVLC SERVICE CHARGE,PREMISES RELATED EXPENDITURE,SCHEDULED GROUND MAINTENANCE,2111,P118139-SERVICE-Baliff Services in Regard to Traveller Incurs,13/06/2022 00:00,263690,3995,GR0236,G R C BAILIFFS,30/05/2022 00:00,26/06/2022 00:00,P03-2023,
CEO,LVLC SERVICE CHARGE,PREMISES RELATED EXPENDITURE,SCHEDULED GROUND MAINTENANCE,2111,GLENDALE GROUNDS MANAGEMENT LI,13/06/2022 00:00,263921,2967.18,GL0214,GLENDALE GROUNDS MANAGEMENT LIMITED,30/05/2022 00:00,26/06/2022 00:00,P03-2023,
CEO,LVLC SERVICE CHARGE,PREMISES RELATED EXPENDITURE,SCHEDULED GROUND MAINTENANCE,2111,GLENDALE GROUNDS MANAGEMENT LI,13/06/2022 00:00,263921,108.26,GL0214,GLENDALE GROUNDS MANAGEMENT LIMITED,30/05/2022 00:00,26/06/2022 00:00,P03-2023,
P&V,MYDDELTON HOUSE,PREMISES RELATED EXPENDITURE,CONTRACT CLEANING,2120,P106338-SERVICE-Cleaning contract dec19,21/06/2022 00:00,261176,2468.78,MI0024,MINSTER CLEANING SERVICES,30/05/2022 00:00,26/06/2022 00:00,P03-2023,
P&V,MYDDELTON HOUSE,PREMISES RELATED EXPENDITURE,CONTRACT CLEANING,2120,P117626-SERVICE-Contract Cleaning,07/06/2022 00:00,263866,3113.76,BR0632,BRITANNIA SERVICES GROUP LTD,30/05/2022 00:00,26/06/2022 00:00,P03-2023,
,LEE VALLEY CAMPSITE,PREMISES RELATED EXPENDITURE,CONTRACT CLEANING,2120,P117799-SERVICE-26/06/22 - 25/07/22,15/06/2022 00:00,263942,84.71,IN0012,INITIAL WASHROOM HYGIENE,30/05/2022 00:00,26/06/2022 00:00,P03-2023,
,LEE VALLEY CAMPSITE,PREMISES RELATED EXPENDITURE,CONTRACT CLEANING,2120,P118295-SERVICE-Site cleaning May 22,13/06/2022 00:00,264002,2100,LI0305,LIMPIAR CLEANING,30/05/2022 00:00,26/06/2022 00:00,P03-2023,
,LEE VALLEY CAMPSITE,PREMISES RELATED EXPENDITURE,CONTRACT CLEANING,2120,P118496-SERVICE-APRIL  COLLECTION,26/06/2022 00:00,264239,855.6,CL0037,VEOLIA ES (UK) LTD,30/05/2022 00:00,26/06/2022 00:00,P03-2023,
,LEE VALLEY CAMPSITE,PREMISES RELATED EXPENDITURE,CONTRACT CLEANING,2120,P118496-SERVICE-MAY COLLECTION,26/06/2022 00:00,264240,1227.6,CL0037,VEOLIA ES (UK) LTD,30/05/2022 00:00,26/06/2022 00:00,P03-2023,
,LEE VALLEY CAMPSITE,PREMISES RELATED EXPENDITURE,CONTRACT CLEANING,2120,P118502-SERVICE-Deep clean Staff static,26/06/2022 00:00,264323,250,LI0305,LIMPIAR CLEANING,30/05/2022 00:00,26/06/2022 00:00,P03-2023,
,LEE VALLEY CARAVAN PARK,PREMISES RELATED EXPENDITURE,CONTRACT CLEANING,2120,P118254-SERVICE-Laundry Cleaning Service,08/06/2022 00:00,263653,291,JO0168,JOHNSONS STALBRIDGE LINEN SERVICES,30/05/2022 00:00,26/06/2022 00:00,P03-2023,
,LEE VALLEY CARAVAN PARK,PREMISES RELATED EXPENDITURE,CONTRACT CLEANING,2120,P118255-SERVICE-Laundry Cleaning Service,08/06/2022 00:00,263654,591.07,JO0168,JOHNSONS STALBRIDGE LINEN SERVICES,30/05/2022 00:00,26/06/2022 00:00,P03-2023,
,LEE VALLEY CARAVAN PARK,PREMISES RELATED EXPENDITURE,CONTRACT CLEANING,2120,P118288-SERVICE-Contract cleaning,14/06/2022 00:00,264001,3090,LI0305,LIMPIAR CLEANING,30/05/2022 00:00,26/06/2022 00:00,P03-2023,
,LEE VALLEY CARAVAN PARK,PREMISES RELATED EXPENDITURE,CONTRACT CLEANING,2120,P118419-SERVICE-Monthly Hygeine service,21/06/2022 00:00,264287,93.28,IN0012,INITIAL WASHROOM HYGIENE,30/05/2022 00:00,26/06/2022 00:00,P03-2023,
P&V,NORTH AREA RANGERS,PREMISES RELATED EXPENDITURE,CONTRACT CLEANING,2120,GLENDALE GROUNDS MANAGEMENT LI,13/06/2022 00:00,263921,395.98,GL0214,GLENDALE GROUNDS MANAGEMENT LIMITED,30/05/2022 00:00,26/06/2022 00:00,P03-2023,
P&V,GUNPOWDER PARK,PREMISES RELATED EXPENDITURE,CONTRACT CLEANING,2120,GLENDALE GROUNDS MANAGEMENT LI,13/06/2022 00:00,263921,542.17,GL0214,GLENDALE GROUNDS MANAGEMENT LIMITED,30/05/2022 00:00,26/06/2022 00:00,P03-2023,
P&V,RIVER LEE COUNTRY PARK,PREMISES RELATED EXPENDITURE,CONTRACT CLEANING,2120,GLENDALE GROUNDS MANAGEMENT LI,13/06/2022 00:00,263921,1084.35,GL0214,GLENDALE GROUNDS MANAGEMENT LIMITED,30/05/2022 00:00,26/06/2022 00:00,P03-2023,
,LV LEISURE CENTRE CAMPSITE,PREMISES RELATED EXPENDITURE,CONTRACT CLEANING,2120,P118453-SERVICE-Sanitary bin disposal,22/06/2022 00:00,262971,145.99,PE0015,PHS GROUP PLC,30/05/2022 00:00,26/06/2022 00:00,P03-2023,
,LV LEISURE CENTRE CAMPSITE,PREMISES RELATED EXPENDITURE,CONTRACT CLEANING,2120,P118386-SERVICE-monthly cleaniing,21/06/2022 00:00,263924,1701.9,LI0305,LIMPIAR CLEANING,30/05/2022 00:00,26/06/2022 00:00,P03-2023,
,LV LEISURE CENTRE CAMPSITE,PREMISES RELATED EXPENDITURE,CONTRACT CLEANING,2120,P118449-SERVICE-Monthly cleaning,26/06/2022 00:00,264003,2051,LI0305,LIMPIAR CLEANING,30/05/2022 00:00,26/06/2022 00:00,P03-2023,
,LEE VALLEY MARINA STANSTEAD,PREMISES RELATED EXPENDITURE,GM MAIN CONTRACT SCHEDULED,2141,GLENDALE GROUNDS MANAGEMENT LI,13/06/2022 00:00,263921,378.42,GL0214,GLENDALE GROUNDS MANAGEMENT LIMITED,30/05/2022 00:00,26/06/2022 00:00,P03-2023,
,LEE VALLEY MARINA STANSTEAD,PREMISES RELATED EXPENDITURE,GM MAIN CONTRACT SCHEDULED,2141,P117979-SERVICE- japanese knotweed treatment & remove,21/06/2022 00:00,263922,282.74,GL0214,GLENDALE GROUNDS MANAGEMENT LIMITED,30/05/2022 00:00,26/06/2022 00:00,P03-2023,
,LEE VALLEY WATERWORKS CENTRE,PREMISES RELATED EXPENDITURE,GM MAIN CONTRACT SCHEDULED,2141,GLENDALE GROUNDS MANAGEMENT LI,13/06/2022 00:00,263921,260.88,GL0214,GLENDALE GROUNDS MANAGEMENT LIMITED,30/05/2022 00:00,26/06/2022 00:00,P03-2023,
,LEE VALLEY WATERWORKS CENTRE,PREMISES RELATED EXPENDITURE,GM MAIN CONTRACT SCHEDULED,2141,GLENDALE GROUNDS MANAGEMENT LI,13/06/2022 00:00,263921,501.34,GL0214,GLENDALE GROUNDS MANAGEMENT LIMITED,30/05/2022 00:00,26/06/2022 00:00,P03-2023,
,LEE VALLEY FARM HAYES HILL,PREMISES RELATED EXPENDITURE,GM MAIN CONTRACT SCHEDULED,2141,GLENDALE GROUNDS MANAGEMENT LI,13/06/2022 00:00,263921,305.99,GL0214,GLENDALE GROUNDS MANAGEMENT LIMITED,30/05/2022 00:00,26/06/2022 00:00,P03-2023,
P&V,EAST INDIA DOCK AND BOW CREEK,PREMISES RELATED EXPENDITURE,GM MAIN CONTRACT SCHEDULED,2141,GLENDALE GROUNDS MANAGEMENT LI,13/06/2022 00:00,263921,834.36,GL0214,GLENDALE GROUNDS MANAGEMENT LIMITED,30/05/2022 00:00,26/06/2022 00:00,P03-2023,
P&V,EAST INDIA DOCK AND BOW CREEK,PREMISES RELATED EXPENDITURE,GM MAIN CONTRACT SCHEDULED,2141,GLENDALE GROUNDS MANAGEMENT LI,13/06/2022 00:00,263921,931.76,GL0214,GLENDALE GROUNDS MANAGEMENT LIMITED,30/05/2022 00:00,26/06/2022 00:00,P03-2023,
P&V,NORTH AREA RANGERS,PREMISES RELATED EXPENDITURE,GM MAIN CONTRACT SCHEDULED,2141,GLENDALE GROUNDS MANAGEMENT LI,13/06/2022 00:00,263921,5610.98,GL0214,GLENDALE GROUNDS MANAGEMENT LIMITED,30/05/2022 00:00,26/06/2022 00:00,P03-2023,
P&V,SOUTH AREA RANGERS,PREMISES RELATED EXPENDITURE,GM MAIN CONTRACT SCHEDULED,2141,GLENDALE GROUNDS MANAGEMENT LI,13/06/2022 00:00,263921,6460.14,GL0214,GLENDALE GROUNDS MANAGEMENT LIMITED,30/05/2022 00:00,26/06/2022 00:00,P03-2023,
P&V,SOUTH AREA RANGERS,PREMISES RELATED EXPENDITURE,GM MAIN CONTRACT SCHEDULED,2141,GLENDALE GROUNDS MANAGEMENT LI,13/06/2022 00:00,263921,745.41,GL0214,GLENDALE GROUNDS MANAGEMENT LIMITED,30/05/2022 00:00,26/06/2022 00:00,P03-2023,
P&V,ABBEY GARDENS,PREMISES RELATED EXPENDITURE,GM MAIN CONTRACT SCHEDULED,2141,GLENDALE GROUNDS MANAGEMENT LI,13/06/2022 00:00,263921,2842.32,GL0214,GLENDALE GROUNDS MANAGEMENT LIMITED,30/05/2022 00:00,26/06/2022 00:00,P03-2023,
P&V,GUNPOWDER PARK,PREMISES RELATED EXPENDITURE,GM MAIN CONTRACT SCHEDULED,2141,GLENDALE GROUNDS MANAGEMENT LI,13/06/2022 00:00,263921,2803.01,GL0214,GLENDALE GROUNDS MANAGEMENT LIMITED,30/05/2022 00:00,26/06/2022 00:00,P03-2023,
P&V,RIVER LEE COUNTRY PARK,PREMISES RELATED EXPENDITURE,GM MAIN CONTRACT SCHEDULED,2141,GLENDALE GROUNDS MANAGEMENT LI,13/06/2022 00:00,263921,16359.56,GL0214,GLENDALE GROUNDS MANAGEMENT LIMITED,30/05/2022 00:00,26/06/2022 00:00,P03-2023,
P&V,RIVER LEE COUNTRY PARK,PREMISES RELATED EXPENDITURE,GM MAIN CONTRACT SCHEDULED,2141,GLENDALE GROUNDS MANAGEMENT LI,13/06/2022 00:00,263921,2608.92,GL0214,GLENDALE GROUNDS MANAGEMENT LIMITED,30/05/2022 00:00,26/06/2022 00:00,P03-2023,
,LEE VALLEY VELOPARK,PREMISES RELATED EXPENDITURE,GM MAIN CONTRACT SCHEDULED,2141,GLENDALE GROUNDS MANAGEMENT LI,13/06/2022 00:00,263921,7081.26,GL0214,GLENDALE GROUNDS MANAGEMENT LIMITED,30/05/2022 00:00,26/06/2022 00:00,P03-2023,
,LV HOCKEY AND TENNIS CENTRE,PREMISES RELATED EXPENDITURE,GM MAIN CONTRACT SCHEDULED,2141,GLENDALE GROUNDS MANAGEMENT LI,13/06/2022 00:00,263921,4459.2,GL0214,GLENDALE GROUNDS MANAGEMENT LIMITED,30/05/2022 00:00,26/06/2022 00:00,P03-2023,
P&V,THREE MILLS,PREMISES RELATED EXPENDITURE,GM MAIN CONTRACT SCHEDULED,2141,GLENDALE GROUNDS MANAGEMENT LI,13/06/2022 00:00,263921,1593.99,GL0214,GLENDALE GROUNDS MANAGEMENT LIMITED,30/05/2022 00:00,26/06/2022 00:00,P03-2023,
,LEE VALLEY RIDING CENTRE,PREMISES RELATED EXPENDITURE,GM MAIN CONTRACT SCHEDULED,2141,GLENDALE GROUNDS MANAGEMENT LI,13/06/2022 00:00,263921,462.16,GL0214,GLENDALE GROUNDS MANAGEMENT LIMITED,30/05/2022 00:00,26/06/2022 00:00,P03-2023,
,LEE VALLEY ICE CENTRE,PREMISES RELATED EXPENDITURE,GM MAIN CONTRACT SCHEDULED,2141,GLENDALE GROUNDS MANAGEMENT LI,13/06/2022 00:00,263921,329.82,GL0214,GLENDALE GROUNDS MANAGEMENT LIMITED,30/05/2022 00:00,26/06/2022 00:00,P03-2023,
P&V,FORMER LV LIDO SITE,PREMISES RELATED EXPENDITURE,GM MAIN CONTRACT SCHEDULED,2141,GLENDALE GROUNDS MANAGEMENT LI,13/06/2022 00:00,263921,1091.9,GL0214,GLENDALE GROUNDS MANAGEMENT LIMITED,30/05/2022 00:00,26/06/2022 00:00,P03-2023,
,LEE VALLEY ATHLETICS CENTRE,PREMISES RELATED EXPENDITURE,GM MAIN CONTRACT SCHEDULED,2141,GLENDALE GROUNDS MANAGEMENT LI,13/06/2022 00:00,263921,655.21,GL0214,GLENDALE GROUNDS MANAGEMENT LIMITED,30/05/2022 00:00,26/06/2022 00:00,P03-2023,
,LEE VALLEY WHITE WATER CENTRE,PREMISES RELATED EXPENDITURE,GM MAIN CONTRACT SCHEDULED,2141,GLENDALE GROUNDS MANAGEMENT LI,13/06/2022 00:00,263921,2812.92,GL0214,GLENDALE GROUNDS MANAGEMENT LIMITED,30/05/2022 00:00,26/06/2022 00:00,P03-2023,
,LEE VALLEY WATERWORKS CENTRE,PREMISES RELATED EXPENDITURE,GM HORTICULTURE SCHEDULED,2143,GLENDALE GROUNDS MANAGEMENT LI,13/06/2022 00:00,263921,166.85,GL0214,GLENDALE GROUNDS MANAGEMENT LIMITED,30/05/2022 00:00,26/06/2022 00:00,P03-2023,
P&V,NORTH AREA RANGERS,PREMISES RELATED EXPENDITURE,GM HORTICULTURE SCHEDULED,2143,GLENDALE GROUNDS MANAGEMENT LI,13/06/2022 00:00,263921,248.06,GL0214,GLENDALE GROUNDS MANAGEMENT LIMITED,30/05/2022 00:00,26/06/2022 00:00,P03-2023,
P&V,SOUTH AREA RANGERS,PREMISES RELATED EXPENDITURE,GM HORTICULTURE SCHEDULED,2143,GLENDALE GROUNDS MANAGEMENT LI,13/06/2022 00:00,263921,142.22,GL0214,GLENDALE GROUNDS MANAGEMENT LIMITED,30/05/2022 00:00,26/06/2022 00:00,P03-2023,
P&V,ABBEY GARDENS,PREMISES RELATED EXPENDITURE,GM HORTICULTURE SCHEDULED,2143,GLENDALE GROUNDS MANAGEMENT LI,13/06/2022 00:00,263921,1938.16,GL0214,GLENDALE GROUNDS MANAGEMENT LIMITED,30/05/2022 00:00,26/06/2022 00:00,P03-2023,
P&V,GUNPOWDER PARK,PREMISES RELATED EXPENDITURE,GM HORTICULTURE SCHEDULED,2143,GLENDALE GROUNDS MANAGEMENT LI,13/06/2022 00:00,263921,254.42,GL0214,GLENDALE GROUNDS MANAGEMENT LIMITED,30/05/2022 00:00,26/06/2022 00:00,P03-2023,
P&V,RIVER LEE COUNTRY PARK,PREMISES RELATED EXPENDITURE,GM HORTICULTURE SCHEDULED,2143,GLENDALE GROUNDS MANAGEMENT LI,13/06/2022 00:00,263921,132.03,GL0214,GLENDALE GROUNDS MANAGEMENT LIMITED,30/05/2022 00:00,26/06/2022 00:00,P03-2023,
,LEE VALLEY VELOPARK,PREMISES RELATED EXPENDITURE,GM HORTICULTURE SCHEDULED,2143,GLENDALE GROUNDS MANAGEMENT LI,13/06/2022 00:00,263921,1100,GL0214,GLENDALE GROUNDS MANAGEMENT LIMITED,30/05/2022 00:00,26/06/2022 00:00,P03-2023,
,LV HOCKEY AND TENNIS CENTRE,PREMISES RELATED EXPENDITURE,GM HORTICULTURE SCHEDULED,2143,GLENDALE GROUNDS MANAGEMENT LI,13/06/2022 00:00,263921,1393.7,GL0214,GLENDALE GROUNDS MANAGEMENT LIMITED,30/05/2022 00:00,26/06/2022 00:00,P03-2023,
P&V,THREE MILLS,PREMISES RELATED EXPENDITURE,GM HORTICULTURE SCHEDULED,2143,GLENDALE GROUNDS MANAGEMENT LI,13/06/2022 00:00,263921,52.89,GL0214,GLENDALE GROUNDS MANAGEMENT LIMITED,30/05/2022 00:00,26/06/2022 00:00,P03-2023,
,LEE VALLEY RIDING CENTRE,PREMISES RELATED EXPENDITURE,GM HORTICULTURE SCHEDULED,2143,GLENDALE GROUNDS MANAGEMENT LI,13/06/2022 00:00,263921,13.22,GL0214,GLENDALE GROUNDS MANAGEMENT LIMITED,30/05/2022 00:00,26/06/2022 00:00,P03-2023,
P&V,FORMER LV LIDO SITE,PREMISES RELATED EXPENDITURE,GM HORTICULTURE SCHEDULED,2143,GLENDALE GROUNDS MANAGEMENT LI,13/06/2022 00:00,263921,12.61,GL0214,GLENDALE GROUNDS MANAGEMENT LIMITED,30/05/2022 00:00,26/06/2022 00:00,P03-2023,
,LEE VALLEY WHITE WATER CENTRE,PREMISES RELATED EXPENDITURE,GM HORTICULTURE SCHEDULED,2143,GLENDALE GROUNDS MANAGEMENT LI,13/06/2022 00:00,263921,7.58,GL0214,GLENDALE GROUNDS MANAGEMENT LIMITED,30/05/2022 00:00,26/06/2022 00:00,P03-2023,
P&V,EAST INDIA DOCK AND BOW CREEK,PREMISES RELATED EXPENDITURE,GM NON MAIN CONT UNSCHEDULED,2147,P117684-SERVICE-Repair Post at East India Dock Basin,07/06/2022 00:00,263475,250,JO0019,R G JOYCE,30/05/2022 00:00,26/06/2022 00:00,P03-2023,
P&V,SOUTH AREA RANGERS,PREMISES RELATED EXPENDITURE,GM NON MAIN CONT UNSCHEDULED,2147,P117920-SERVICE-Painting Gate at WaterWorks,13/06/2022 00:00,263439,200,JO0019,R G JOYCE,30/05/2022 00:00,26/06/2022 00:00,P03-2023,
P&V,SOUTH AREA RANGERS,PREMISES RELATED EXPENDITURE,HABITAT MANAGEMENT WORKS,2149,P117703-SERVICE-Treat Invasive Species adjacent to Pymmes Bro,21/06/2022 00:00,264075,325,GO0044,S.H.GOSS & CO LTD,30/05/2022 00:00,26/06/2022 00:00,P03-2023,
P&V,GUNPOWDER PARK,PREMISES RELATED EXPENDITURE,HABITAT MANAGEMENT WORKS,2149,"P118191-SERVICE-Tree Works at Hawes Lane, Gunpowder Park",21/06/2022 00:00,264112,450,PA0222,PARKIN & PARKER TREE SPECIALISTS,30/05/2022 00:00,26/06/2022 00:00,P03-2023,
,LEE VALLEY MARINA SPRINGFIELD,PREMISES RELATED EXPENDITURE,GENERAL WASTE,2211,"P117556-SERVICE-General Waste & Recyling for April,May,June",13/06/2022 00:00,263902,1270.7,CL0037,VEOLIA ES (UK) LTD,30/05/2022 00:00,26/06/2022 00:00,P03-2023,
,LEE VALLEY MARINA SPRINGFIELD,PREMISES RELATED EXPENDITURE,GENERAL WASTE,2211,P118266-SERVICE-12 yard skip on 7-6-22,13/06/2022 00:00,264104,326,OD0010,O'DONOVAN (WASTE DISPOSAL) LTD,30/05/2022 00:00,26/06/2022 00:00,P03-2023,
,LEE VALLEY MARINA SPRINGFIELD,PREMISES RELATED EXPENDITURE,GENERAL WASTE,2211,P118427-SERVICE-2 x 12 yard skip hire for Springfield Marina,26/06/2022 00:00,264549,652,OD0010,O'DONOVAN (WASTE DISPOSAL) LTD,30/05/2022 00:00,26/06/2022 00:00,P03-2023,
,LEE VALLEY MARINA STANSTEAD,PREMISES RELATED EXPENDITURE,GENERAL WASTE,2211,P117691-SERVICE-Annual useage Veolia -bins 4 Rye and Stan Mar,13/06/2022 00:00,263895,252.96,CL0037,VEOLIA ES (UK) LTD,30/05/2022 00:00,26/06/2022 00:00,P03-2023,
,LEE VALLEY MARINA STANSTEAD,PREMISES RELATED EXPENDITURE,GENERAL WASTE,2211,P117691-SERVICE-Annual useage Veolia -bins 4 Rye and Stan Mar,13/06/2022 00:00,263897,13.47,CL0037,VEOLIA ES (UK) LTD,30/05/2022 00:00,26/06/2022 00:00,P03-2023,
,LEE VALLEY MARINA STANSTEAD,PREMISES RELATED EXPENDITURE,GENERAL WASTE,2211,P117691-SERVICE-Annual useage Veolia -bins 4 Rye and Stan Mar,13/06/2022 00:00,263898,818.5,CL0037,VEOLIA ES (UK) LTD,30/05/2022 00:00,26/06/2022 00:00,P03-2023,
,LEE VALLEY MARINA STANSTEAD,PREMISES RELATED EXPENDITURE,GENERAL WASTE,2211,P117691-SERVICE-Annual useage Veolia -bins 4 Rye and Stan Mar,26/06/2022 00:00,264357,-219,CL0037,VEOLIA ES (UK) LTD,30/05/2022 00:00,26/06/2022 00:00,P03-2023,
,LEE VALLEY CAMPSITE,PREMISES RELATED EXPENDITURE,GENERAL WASTE,2211,P118364-SERVICE-Skip collection April 22,15/06/2022 00:00,262716,859.2,CL0037,VEOLIA ES (UK) LTD,30/05/2022 00:00,26/06/2022 00:00,P03-2023,
,LEE VALLEY CAMPSITE,PREMISES RELATED EXPENDITURE,GENERAL WASTE,2211,P118290-SERVICE-Skip collection May 22,13/06/2022 00:00,263896,788.53,CL0037,VEOLIA ES (UK) LTD,30/05/2022 00:00,26/06/2022 00:00,P03-2023,
,LEE VALLEY CARAVAN PARK,PREMISES RELATED EXPENDITURE,GENERAL WASTE,2211,P118256-SERVICE-Waste removal,08/06/2022 00:00,263899,145.69,CL0037,VEOLIA ES (UK) LTD,30/05/2022 00:00,26/06/2022 00:00,P03-2023,
P&V,SOUTH AREA RANGERS,PREMISES RELATED EXPENDITURE,GENERAL WASTE,2211,P117695-SERVICE-Skip at WaterWorks Centre,21/06/2022 00:00,264319,308,GB0239,GBN SERVICES LTD,30/05/2022 00:00,26/06/2022 00:00,P03-2023,
P&V,SOUTH AREA RANGERS,PREMISES RELATED EXPENDITURE,GENERAL WASTE,2211,P117695-SERVICE-Skip at WaterWorks Centre,26/06/2022 00:00,264511,143,GB0239,GBN SERVICES LTD,30/05/2022 00:00,26/06/2022 00:00,P03-2023,
P&V,RIVER LEE COUNTRY PARK,PREMISES RELATED EXPENDITURE,GENERAL WASTE,2211,P117498-SERVICE-12yd General Rubbish Skip at Holyfield Hall F,21/06/2022 00:00,264242,308,GB0239,GBN SERVICES LTD,30/05/2022 00:00,26/06/2022 00:00,P03-2023,
,LEE VALLEY VELOPARK,PREMISES RELATED EXPENDITURE,GENERAL WASTE,2211,P116392-SERVICE-Sanitary Waste and Products,16/06/2022 00:00,264263,285.27,PE0015,PHS GROUP PLC,30/05/2022 00:00,26/06/2022 00:00,P03-2023,
,LEE VALLEY VELOPARK,PREMISES RELATED EXPENDITURE,GENERAL WASTE,2211,P116392-SERVICE-Sanitary Waste and Products,16/06/2022 00:00,264265,-248.43,PE0015,PHS GROUP PLC,30/05/2022 00:00,26/06/2022 00:00,P03-2023,
,LEE VALLEY RIDING CENTRE,PREMISES RELATED EXPENDITURE,GENERAL WASTE,2211,P112414-SERVICE-muck heap removal,21/06/2022 00:00,264073,200,AL0241,ALLMAC HAULAGE LTD,30/05/2022 00:00,26/06/2022 00:00,P03-2023,
,LV LEISURE CENTRE CAMPSITE,PREMISES RELATED EXPENDITURE,GENERAL WASTE,2211,P118456-SERVICE-Skip compactor,22/06/2022 00:00,262749,1338.97,CL0037,VEOLIA ES (UK) LTD,30/05/2022 00:00,26/06/2022 00:00,P03-2023,
,LV LEISURE CENTRE CAMPSITE,PREMISES RELATED EXPENDITURE,GENERAL WASTE,2211,P118387-SERVICE-recycling and skip,21/06/2022 00:00,263900,51.35,CL0037,VEOLIA ES (UK) LTD,30/05/2022 00:00,26/06/2022 00:00,P03-2023,
,LV LEISURE CENTRE CAMPSITE,PREMISES RELATED EXPENDITURE,GENERAL WASTE,2211,P118454-SERVICE-Recycling,22/06/2022 00:00,263965,350.94,BY0049,BYWATERS (LEYTON) LTD,30/05/2022 00:00,26/06/2022 00:00,P03-2023,
P&V,GUNPOWDER PARK,PREMISES RELATED EXPENDITURE,FLYTIPPING/WHITE GOOD DISPOSAL,2213,P118260-SERVICE-Fly Tip at Rammey Marsh Car Park,21/06/2022 00:00,264065,250,JO0019,R G JOYCE,30/05/2022 00:00,26/06/2022 00:00,P03-2023,
P&V,MYDDELTON HOUSE,PREMISES RELATED EXPENDITURE,RECYCLING,2214,P117532-SERVICE-Recycling,13/06/2022 00:00,264092,215.11,CA0341,F & R CAWLEY LTD,30/05/2022 00:00,26/06/2022 00:00,P03-2023,
P&V,MYDDELTON HOUSE,PREMISES RELATED EXPENDITURE,BUILDING SERVICE AGREEMENTS,2220,P118308-SERVICE-TV License,13/06/2022 00:00,263891,159,TV0065,TV LICENSING,30/05/2022 00:00,26/06/2022 00:00,P03-2023,
P&V,MYDDELTON HOUSE,PREMISES RELATED EXPENDITURE,BUILDING SERVICE AGREEMENTS,2220,P117526-SERVICE-Santiary Services,21/06/2022 00:00,264345,53.44,PE0015,PHS GROUP PLC,30/05/2022 00:00,26/06/2022 00:00,P03-2023,
P&V,MYDDELTON HOUSE,PREMISES RELATED EXPENDITURE,BUILDING SERVICE AGREEMENTS,2220,P118335-SERVICE-Standard Contract for Stannah Lift at Abercro,21/06/2022 00:00,264349,83.5,ST0175,STANNAH LIFT SERVICES LTD,30/05/2022 00:00,26/06/2022 00:00,P03-2023,
P&V,MYDDELTON HOUSE,PREMISES RELATED EXPENDITURE,BUILDING SERVICE AGREEMENTS,2220,P117526-SERVICE-Santiary Services,26/06/2022 00:00,264553,174.66,PE0015,PHS GROUP PLC,30/05/2022 00:00,26/06/2022 00:00,P03-2023,
P&V,MYDDELTON HOUSE,PREMISES RELATED EXPENDITURE,BUILDING SERVICE AGREEMENTS,2220,P117526-SERVICE-Santiary Services,26/06/2022 00:00,264569,8.25,PE0015,PHS GROUP PLC,30/05/2022 00:00,26/06/2022 00:00,P03-2023,
P&V,MYDDELTON HOUSE,PREMISES RELATED EXPENDITURE,BUILDING SERVICE AGREEMENTS,2220,P117526-SERVICE-Santiary Services,26/06/2022 00:00,264570,22.52,PE0015,PHS GROUP PLC,30/05/2022 00:00,26/06/2022 00:00,P03-2023,
,LEE VALLEY WATERWORKS CENTRE,PREMISES RELATED EXPENDITURE,BUILDING SERVICE AGREEMENTS,2220,P118438-SERVICE-Water Sampling May 2022 Waterworks,22/06/2022 00:00,264133,148.9,CO0199,EQUANS FM LIMITED (frmlyENGIE FM LIMITED),30/05/2022 00:00,26/06/2022 00:00,P03-2023,
,LEE VALLEY WATERWORKS CENTRE,PREMISES RELATED EXPENDITURE,BUILDING SERVICE AGREEMENTS,2220,P118437-SERVICE-Fire Alarm Service Feb 2022 - Waterworks,22/06/2022 00:00,264134,217.38,CO0199,EQUANS FM LIMITED (frmlyENGIE FM LIMITED),30/05/2022 00:00,26/06/2022 00:00,P03-2023,
,LEE VALLEY WATERWORKS CENTRE,PREMISES RELATED EXPENDITURE,BUILDING SERVICE AGREEMENTS,2220,P118434-SERVICE-Engineering Service to Carry out PPM - May 22,22/06/2022 00:00,264135,67.64,CO0199,EQUANS FM LIMITED (frmlyENGIE FM LIMITED),30/05/2022 00:00,26/06/2022 00:00,P03-2023,
,LEE VALLEY WATERWORKS CENTRE,PREMISES RELATED EXPENDITURE,BUILDING SERVICE AGREEMENTS,2220,P118436-SERVICE-Fire Extinguisher Service Waterworks,22/06/2022 00:00,264136,211.56,CO0199,EQUANS FM LIMITED (frmlyENGIE FM LIMITED),30/05/2022 00:00,26/06/2022 00:00,P03-2023,
,LEE VALLEY WATERWORKS CENTRE,PREMISES RELATED EXPENDITURE,BUILDING SERVICE AGREEMENTS,2220,P118437-SERVICE-Fire Alarm Service May 2022 - Waterworks,22/06/2022 00:00,264137,217.38,CO0199,EQUANS FM LIMITED (frmlyENGIE FM LIMITED),30/05/2022 00:00,26/06/2022 00:00,P03-2023,
,LEE VALLEY CARAVAN PARK,PREMISES RELATED EXPENDITURE,BUILDING SERVICE AGREEMENTS,2220,P118421-SERVICE-Annual play area inspection,22/06/2022 00:00,264309,98,PL0107,PLAYSAFETY LTD,30/05/2022 00:00,26/06/2022 00:00,P03-2023,
P&V,NORTH AREA RANGERS,PREMISES RELATED EXPENDITURE,BUILDING SERVICE AGREEMENTS,2220,P117223-SERVICE-Sanitary Disposal - Old Mill & Meadows Toilet,26/06/2022 00:00,264346,3.5,PE0015,PHS GROUP PLC,30/05/2022 00:00,26/06/2022 00:00,P03-2023,
P&V,GUNPOWDER PARK,PREMISES RELATED EXPENDITURE,BUILDING SERVICE AGREEMENTS,2220,P116312-SERVICE-Building Servcie Agreement - Gunpowder Park,26/06/2022 00:00,264533,145.96,CO0199,EQUANS FM LIMITED (frmlyENGIE FM LIMITED),30/05/2022 00:00,26/06/2022 00:00,P03-2023,
P&V,GUNPOWDER PARK,PREMISES RELATED EXPENDITURE,BUILDING SERVICE AGREEMENTS,2220,P117221-SERVICE-Sanitary Disposal - Gunpowder Park Office Toi,26/06/2022 00:00,264572,2.7,PE0015,PHS GROUP PLC,30/05/2022 00:00,26/06/2022 00:00,P03-2023,
P&V,RIVER LEE COUNTRY PARK,PREMISES RELATED EXPENDITURE,BUILDING SERVICE AGREEMENTS,2220,P117224-SERVICE-Sanitary Disposal - Fishers Green Toilets,21/06/2022 00:00,264148,11.37,PE0015,PHS GROUP PLC,30/05/2022 00:00,26/06/2022 00:00,P03-2023,
P&V,RIVER LEE COUNTRY PARK,PREMISES RELATED EXPENDITURE,BUILDING SERVICE AGREEMENTS,2220,P117218-SERVICE-Sharps Container - Ranger Farm Office,26/06/2022 00:00,264571,5.88,PE0015,PHS GROUP PLC,30/05/2022 00:00,26/06/2022 00:00,P03-2023,
P&V,MYDDELTON HOUSE,PREMISES RELATED EXPENDITURE,BUILDING REPAIRS & MAINTENANCE,2222,P118037-SERVICE-Service Un-Vented Water Heater in Stable Bloc,07/06/2022 00:00,263673,70,GI0137,R & P GIBBS LIMITED,30/05/2022 00:00,26/06/2022 00:00,P03-2023,
P&V,MYDDELTON HOUSE,PREMISES RELATED EXPENDITURE,BUILDING REPAIRS & MAINTENANCE,2222,P118497-SERVICE-Call Out,26/06/2022 00:00,264493,100,AB0435,ABSOLUTE DOOR SERVICES ESSEX LTD,30/05/2022 00:00,26/06/2022 00:00,P03-2023,
P&V,MYDDELTON HOUSE,PREMISES RELATED EXPENDITURE,BUILDING REPAIRS & MAINTENANCE,2222,P118499-SERVICE-1st Floor LED Light,26/06/2022 00:00,264523,60,BR0018,BRADSHAW ELECTRICAL LIMITED,30/05/2022 00:00,26/06/2022 00:00,P03-2023,
CEO,RESIDENTIAL ACCOMMODATION,PREMISES RELATED EXPENDITURE,BUILDING REPAIRS & MAINTENANCE,2222,P118148-SERVICE-Marshgate Garden/Gutters/Fascias Work,07/06/2022 00:00,263643,748,KE0023,KENDALL & SONS LIMITED,30/05/2022 00:00,26/06/2022 00:00,P03-2023,
P&V,"ASSET PROTECTION, MAINT, DEVEL",PREMISES RELATED EXPENDITURE,BUILDING REPAIRS & MAINTENANCE,2222,P118340-SERVICE-Remove and Dispose Timber Facia Planks at LV,20/06/2022 00:00,264285,175,KE0023,KENDALL & SONS LIMITED,30/05/2022 00:00,26/06/2022 00:00,P03-2023,
P&V,"ASSET PROTECTION, MAINT, DEVEL",PREMISES RELATED EXPENDITURE,BUILDING REPAIRS & MAINTENANCE,2222,CAPSER,20/06/2022 00:00,264305,150,MO0041,CAPSER,30/05/2022 00:00,26/06/2022 00:00,P03-2023,
P&V,"ASSET PROTECTION, MAINT, DEVEL",PREMISES RELATED EXPENDITURE,BUILDING REPAIRS & MAINTENANCE,2222,P118329-SERVICE-Supply and Installation of 3 Inspection Chamb,20/06/2022 00:00,264305,450,MO0041,CAPSER,30/05/2022 00:00,26/06/2022 00:00,P03-2023,
P&V,"ASSET PROTECTION, MAINT, DEVEL",PREMISES RELATED EXPENDITURE,BUILDING REPAIRS & MAINTENANCE,2222,CAPSER,20/06/2022 00:00,264305,-450,MO0041,CAPSER,30/05/2022 00:00,26/06/2022 00:00,P03-2023,
P&V,"ASSET PROTECTION, MAINT, DEVEL",PREMISES RELATED EXPENDITURE,BUILDING REPAIRS & MAINTENANCE,2222,CAPSER,20/06/2022 00:00,264305,300,MO0041,CAPSER,30/05/2022 00:00,26/06/2022 00:00,P03-2023,
P&V,"ASSET PROTECTION, MAINT, DEVEL",PREMISES RELATED EXPENDITURE,BUILDING REPAIRS & MAINTENANCE,2222,P118328-SERVICE-Membrane and Cuttling Bolts at White Water Ce,20/06/2022 00:00,264306,700,MO0041,CAPSER,30/05/2022 00:00,26/06/2022 00:00,P03-2023,
P&V,"ASSET PROTECTION, MAINT, DEVEL",PREMISES RELATED EXPENDITURE,BUILDING REPAIRS & MAINTENANCE,2222,CAPSER,20/06/2022 00:00,264306,200,MO0041,CAPSER,30/05/2022 00:00,26/06/2022 00:00,P03-2023,
P&V,"ASSET PROTECTION, MAINT, DEVEL",PREMISES RELATED EXPENDITURE,BUILDING REPAIRS & MAINTENANCE,2222,CAPSER,20/06/2022 00:00,264306,500,MO0041,CAPSER,30/05/2022 00:00,26/06/2022 00:00,P03-2023,
P&V,"ASSET PROTECTION, MAINT, DEVEL",PREMISES RELATED EXPENDITURE,BUILDING REPAIRS & MAINTENANCE,2222,CAPSER,20/06/2022 00:00,264306,-700,MO0041,CAPSER,30/05/2022 00:00,26/06/2022 00:00,P03-2023,
P&V,"ASSET PROTECTION, MAINT, DEVEL",PREMISES RELATED EXPENDITURE,BUILDING REPAIRS & MAINTENANCE,2222,P118327-SERVICE-Gas Tank Base at Dobbs Weir,20/06/2022 00:00,264307,890,MO0041,CAPSER,30/05/2022 00:00,26/06/2022 00:00,P03-2023,
P&V,"ASSET PROTECTION, MAINT, DEVEL",PREMISES RELATED EXPENDITURE,BUILDING REPAIRS & MAINTENANCE,2222,CAPSER,20/06/2022 00:00,264307,190,MO0041,CAPSER,30/05/2022 00:00,26/06/2022 00:00,P03-2023,
P&V,"ASSET PROTECTION, MAINT, DEVEL",PREMISES RELATED EXPENDITURE,BUILDING REPAIRS & MAINTENANCE,2222,CAPSER,20/06/2022 00:00,264307,700,MO0041,CAPSER,30/05/2022 00:00,26/06/2022 00:00,P03-2023,
P&V,"ASSET PROTECTION, MAINT, DEVEL",PREMISES RELATED EXPENDITURE,BUILDING REPAIRS & MAINTENANCE,2222,CAPSER,20/06/2022 00:00,264307,-890,MO0041,CAPSER,30/05/2022 00:00,26/06/2022 00:00,P03-2023,
P&V,"ASSET PROTECTION, MAINT, DEVEL",PREMISES RELATED EXPENDITURE,BUILDING REPAIRS & MAINTENANCE,2222,P118330-SERVICE-Carry Out Drainage Works as Per Their Origina,20/06/2022 00:00,264308,3625,MO0041,CAPSER,30/05/2022 00:00,26/06/2022 00:00,P03-2023,
P&V,"ASSET PROTECTION, MAINT, DEVEL",PREMISES RELATED EXPENDITURE,BUILDING REPAIRS & MAINTENANCE,2222,CAPSER,20/06/2022 00:00,264308,2000,MO0041,CAPSER,30/05/2022 00:00,26/06/2022 00:00,P03-2023,
P&V,"ASSET PROTECTION, MAINT, DEVEL",PREMISES RELATED EXPENDITURE,BUILDING REPAIRS & MAINTENANCE,2222,CAPSER,20/06/2022 00:00,264308,1625,MO0041,CAPSER,30/05/2022 00:00,26/06/2022 00:00,P03-2023,
P&V,"ASSET PROTECTION, MAINT, DEVEL",PREMISES RELATED EXPENDITURE,BUILDING REPAIRS & MAINTENANCE,2222,CAPSER,20/06/2022 00:00,264308,-3625,MO0041,CAPSER,30/05/2022 00:00,26/06/2022 00:00,P03-2023,
,LEE VALLEY MARINA SPRINGFIELD,PREMISES RELATED EXPENDITURE,BUILDING REPAIRS & MAINTENANCE,2222,P117500-SERVICE-Re-label warning labels throughout site,15/06/2022 00:00,264141,120,BR0018,BRADSHAW ELECTRICAL LIMITED,30/05/2022 00:00,26/06/2022 00:00,P03-2023,
,LEE VALLEY MARINA SPRINGFIELD,PREMISES RELATED EXPENDITURE,BUILDING REPAIRS & MAINTENANCE,2222,P117500-SERVICE-Re-Label Socket outlets,15/06/2022 00:00,264141,150,BR0018,BRADSHAW ELECTRICAL LIMITED,30/05/2022 00:00,26/06/2022 00:00,P03-2023,
,LEE VALLEY MARINA SPRINGFIELD,PREMISES RELATED EXPENDITURE,BUILDING REPAIRS & MAINTENANCE,2222,P117500-SERVICE-Code 2's Cert No IPR18/375104 Rectifications,15/06/2022 00:00,264141,3230,BR0018,BRADSHAW ELECTRICAL LIMITED,30/05/2022 00:00,26/06/2022 00:00,P03-2023,
,LEE VALLEY MARINA SPRINGFIELD,PREMISES RELATED EXPENDITURE,BUILDING REPAIRS & MAINTENANCE,2222,P117500-SERVICE-Code 3's Rectifications,15/06/2022 00:00,264141,80,BR0018,BRADSHAW ELECTRICAL LIMITED,30/05/2022 00:00,26/06/2022 00:00,P03-2023,
,LEE VALLEY MARINA SPRINGFIELD,PREMISES RELATED EXPENDITURE,BUILDING REPAIRS & MAINTENANCE,2222,P118269-SERVICE-To supply items as requested,15/06/2022 00:00,264154,147.91,BQ0164,TRADE UK ACCOUNT,30/05/2022 00:00,26/06/2022 00:00,P03-2023,
,LEE VALLEY MARINA SPRINGFIELD,PREMISES RELATED EXPENDITURE,BUILDING REPAIRS & MAINTENANCE,2222,P118352-SERVICE-New cable & new joints to gate & Paxton issuu,20/06/2022 00:00,264251,459,DE0013,DENNIS SECURITY CENTRE,30/05/2022 00:00,26/06/2022 00:00,P03-2023,
,LEE VALLEY MARINA SPRINGFIELD,PREMISES RELATED EXPENDITURE,BUILDING REPAIRS & MAINTENANCE,2222,P118269-SERVICE-To supply items as requested,20/06/2022 00:00,264295,29.5,BQ0164,TRADE UK ACCOUNT,30/05/2022 00:00,26/06/2022 00:00,P03-2023,
,LEE VALLEY MARINA SPRINGFIELD,PREMISES RELATED EXPENDITURE,BUILDING REPAIRS & MAINTENANCE,2222,P118269-SERVICE-To supply items as requested,26/06/2022 00:00,264516,47.83,BQ0164,TRADE UK ACCOUNT,30/05/2022 00:00,26/06/2022 00:00,P03-2023,
,LEE VALLEY MARINA SPRINGFIELD,PREMISES RELATED EXPENDITURE,BUILDING REPAIRS & MAINTENANCE,2222,P118354-SERVICE-New electrical box to riverbank,26/06/2022 00:00,264530,450,DE0013,DENNIS SECURITY CENTRE,30/05/2022 00:00,26/06/2022 00:00,P03-2023,
,LEE VALLEY MARINA SPRINGFIELD,PREMISES RELATED EXPENDITURE,BUILDING REPAIRS & MAINTENANCE,2222,P118354-SERVICE-Replace faulty PSU on main gate,26/06/2022 00:00,264530,60,DE0013,DENNIS SECURITY CENTRE,30/05/2022 00:00,26/06/2022 00:00,P03-2023,
,LEE VALLEY MARINA STANSTEAD,PREMISES RELATED EXPENDITURE,BUILDING REPAIRS & MAINTENANCE,2222,P118413-SERVICE-TAYLOR HEAT DISABLED TOILET BALL VALVE&HOSE,22/06/2022 00:00,264281,202.5,TA0204,TAYLOR HEATING,30/05/2022 00:00,26/06/2022 00:00,P03-2023,
,LEE VALLEY CAMPSITE,PREMISES RELATED EXPENDITURE,BUILDING REPAIRS & MAINTENANCE,2222,KENDALL & SONS LIMITED,13/06/2022 00:00,263636,-850,KE0023,KENDALL & SONS LIMITED,30/05/2022 00:00,26/06/2022 00:00,P03-2023,
,LEE VALLEY CAMPSITE,PREMISES RELATED EXPENDITURE,BUILDING REPAIRS & MAINTENANCE,2222,KENDALL & SONS LIMITED,13/06/2022 00:00,263636,110,KE0023,KENDALL & SONS LIMITED,30/05/2022 00:00,26/06/2022 00:00,P03-2023,
,LEE VALLEY CAMPSITE,PREMISES RELATED EXPENDITURE,BUILDING REPAIRS & MAINTENANCE,2222,P117953-SERVICE-Repair &replace fencing & Post,13/06/2022 00:00,263636,850,KE0023,KENDALL & SONS LIMITED,30/05/2022 00:00,26/06/2022 00:00,P03-2023,
,LEE VALLEY CAMPSITE,PREMISES RELATED EXPENDITURE,BUILDING REPAIRS & MAINTENANCE,2222,KENDALL & SONS LIMITED,13/06/2022 00:00,263636,740,KE0023,KENDALL & SONS LIMITED,30/05/2022 00:00,26/06/2022 00:00,P03-2023,
,LEE VALLEY VELOPARK,PREMISES RELATED EXPENDITURE,BUILDING REPAIRS & MAINTENANCE,2222,P116713-SERVICE-Velodrome Track Maintenance,20/06/2022 00:00,263967,1200,LA0333,P J LANE CONSTRUCTION LIMITED,30/05/2022 00:00,26/06/2022 00:00,P03-2023,
,LEE VALLEY VELOPARK,PREMISES RELATED EXPENDITURE,BUILDING REPAIRS & MAINTENANCE,2222,P115375-SERVICE-Track Inspection,20/06/2022 00:00,263968,1200,LA0333,P J LANE CONSTRUCTION LIMITED,30/05/2022 00:00,26/06/2022 00:00,P03-2023,
,LV HOCKEY AND TENNIS CENTRE,PREMISES RELATED EXPENDITURE,BUILDING REPAIRS & MAINTENANCE,2222,P116454-SERVICE-drainage,08/06/2022 00:00,263736,250,WH0353,W HARDY LIMITED,30/05/2022 00:00,26/06/2022 00:00,P03-2023,
,LV HOCKEY AND TENNIS CENTRE,PREMISES RELATED EXPENDITURE,BUILDING REPAIRS & MAINTENANCE,2222,P116606-SERVICE-FIH global retest x 2,26/06/2022 00:00,264507,2400,SP0182,SPORTS LABS LTD,30/05/2022 00:00,26/06/2022 00:00,P03-2023,
,LV HOCKEY AND TENNIS CATERING,PREMISES RELATED EXPENDITURE,BUILDING REPAIRS & MAINTENANCE,2222,P115102-SERVICE-kitchen grease trap 4 annual visits for 2022,08/06/2022 00:00,263737,1240,WH0353,W HARDY LIMITED,30/05/2022 00:00,26/06/2022 00:00,P03-2023,
,LV HOCKEY AND TENNIS CATERING,PREMISES RELATED EXPENDITURE,BUILDING REPAIRS & MAINTENANCE,2222,P115102-SERVICE-2 annual visits for 2022,08/06/2022 00:00,263737,1560,WH0353,W HARDY LIMITED,30/05/2022 00:00,26/06/2022 00:00,P03-2023,
,LV LEISURE CENTRE CAMPSITE,PREMISES RELATED EXPENDITURE,BUILDING REPAIRS & MAINTENANCE,2222,P117184-SERVICE-LEVEL FLOOR NEXT TO STATIC,20/06/2022 00:00,263540,900,PA0348,PAUL JONES,30/05/2022 00:00,26/06/2022 00:00,P03-2023,
,LEE VALLEY ATHLETICS CENTRE,PREMISES RELATED EXPENDITURE,BUILDING REPAIRS & MAINTENANCE,2222,P116182-SERVICE-LVAC ADDITIONAL WORKS,08/06/2022 00:00,263734,250,WH0353,W HARDY LIMITED,30/05/2022 00:00,26/06/2022 00:00,P03-2023,
,LEE VALLEY ATHLETICS CENTRE,PREMISES RELATED EXPENDITURE,BUILDING REPAIRS & MAINTENANCE,2222,W HARDY LIMITED,08/06/2022 00:00,263735,250,WH0353,W HARDY LIMITED,30/05/2022 00:00,26/06/2022 00:00,P03-2023,
,LEE VALLEY WHITE WATER CENTRE,PREMISES RELATED EXPENDITURE,BUILDING REPAIRS & MAINTENANCE,2222,P116953-SERVICE-2022-059 Replacement of Elements to boiler,08/06/2022 00:00,263665,2142.68,GI0137,R & P GIBBS LIMITED,30/05/2022 00:00,26/06/2022 00:00,P03-2023,
,LEE VALLEY WHITE WATER CENTRE,PREMISES RELATED EXPENDITURE,BUILDING REPAIRS & MAINTENANCE,2222,P117194-SERVICE-GSHP and Heating system Glycol Dosing,20/06/2022 00:00,264160,6630,GI0137,R & P GIBBS LIMITED,30/05/2022 00:00,26/06/2022 00:00,P03-2023,
,LEE VALLEY WHITE WATER CENTRE,PREMISES RELATED EXPENDITURE,BUILDING REPAIRS & MAINTENANCE,2222,P117146-SERVICE-Niaire Ventilation units 2022-084,20/06/2022 00:00,264161,1056.49,GI0137,R & P GIBBS LIMITED,30/05/2022 00:00,26/06/2022 00:00,P03-2023,
CEO,LVLC SERVICE CHARGE,PREMISES RELATED EXPENDITURE,BUILDING REPAIRS & MAINTENANCE,2222,P117653-SERVICE-Contract Sweep,26/06/2022 00:00,264348,150,SE0374,SELECT SWEEPER HIRE LTD,30/05/2022 00:00,26/06/2022 00:00,P03-2023,
P&V,GUNPOWDER PARK,SUPPLIES AND SERVICES,FENCES/GATES ETC.,2231,P117635-SERVICE-Fence Repair at Rammey Marsh by M25,07/06/2022 00:00,263700,440,JO0019,R G JOYCE,30/05/2022 00:00,26/06/2022 00:00,P03-2023,
CEO,RESIDENTIAL ACCOMMODATION,EXPENDITURE FROM REPAIRS FUND,EXPENDITURE FROM REPAIRS FUND,2240,P117187-SERVICE-Replace Kitchen at Railway Cottage,13/06/2022 00:00,263912,9684.81,RO0352,N ROBERTS AND B KNIPES T/A ROBERTS & CO,30/05/2022 00:00,26/06/2022 00:00,P03-2023,
CEO,COMMERCIAL ACCOMMODATION,PREMISES RELATED EXPENDITURE,EAST HALE ALLOTMENTS,2261,P117652-SERVICE-Allotment Bins,13/06/2022 00:00,263901,113.46,CL0037,VEOLIA ES (UK) LTD,30/05/2022 00:00,26/06/2022 00:00,P03-2023,
P&V,MYDDELTON HOUSE,PREMISES RELATED EXPENDITURE,ENERGY COSTS (ELECTRICITY),2332,KENT COUNTY COUNCIL (KCS),20/06/2022 00:00,264269,1630.82,KE0007,KENT COUNTY COUNCIL (KCS),30/05/2022 00:00,26/06/2022 00:00,P03-2023,
P&V,MYDDELTON HOUSE,PREMISES RELATED EXPENDITURE,ENERGY COSTS (ELECTRICITY),2332,KENT COUNTY COUNCIL (KCS),20/06/2022 00:00,264270,717.86,KE0007,KENT COUNTY COUNCIL (KCS),30/05/2022 00:00,26/06/2022 00:00,P03-2023,
P&V,MYDDELTON HOUSE,PREMISES RELATED EXPENDITURE,ENERGY COSTS (ELECTRICITY),2332,KENT COUNTY COUNCIL (KCS),20/06/2022 00:00,264271,959.48,KE0007,KENT COUNTY COUNCIL (KCS),30/05/2022 00:00,26/06/2022 00:00,P03-2023,
CEO,COMMERCIAL ACCOMMODATION,PREMISES RELATED EXPENDITURE,ENERGY COSTS (ELECTRICITY),2332,E-ON NEXT ENERGY LTD,13/06/2022 00:00,263670,13.86,EO0398,E-ON NEXT ENERGY LTD,30/05/2022 00:00,26/06/2022 00:00,P03-2023,
CEO,COMMERCIAL ACCOMMODATION,PREMISES RELATED EXPENDITURE,ENERGY COSTS (ELECTRICITY),2332,E-ON NEXT ENERGY LTD,26/06/2022 00:00,264090,14,EO0398,E-ON NEXT ENERGY LTD,30/05/2022 00:00,26/06/2022 00:00,P03-2023,
CEO,COMMERCIAL ACCOMMODATION,PREMISES RELATED EXPENDITURE,ENERGY COSTS (ELECTRICITY),2332,E-ON NEXT ENERGY LTD,26/06/2022 00:00,264091,44.7,EO0398,E-ON NEXT ENERGY LTD,30/05/2022 00:00,26/06/2022 00:00,P03-2023,
CEO,COMMERCIAL ACCOMMODATION,PREMISES RELATED EXPENDITURE,ENERGY COSTS (ELECTRICITY),2332,E-ON NEXT ENERGY LTD,26/06/2022 00:00,264120,14.36,EO0398,E-ON NEXT ENERGY LTD,30/05/2022 00:00,26/06/2022 00:00,P03-2023,
CEO,COMMERCIAL ACCOMMODATION,PREMISES RELATED EXPENDITURE,ENERGY COSTS (ELECTRICITY),2332,E-ON NEXT ENERGY LTD,26/06/2022 00:00,264126,20.22,EO0398,E-ON NEXT ENERGY LTD,30/05/2022 00:00,26/06/2022 00:00,P03-2023,
,LEE VALLEY MARINA SPRINGFIELD,PREMISES RELATED EXPENDITURE,ENERGY COSTS (ELECTRICITY),2332,KENT COUNTY COUNCIL (KCS),20/06/2022 00:00,264272,2283.8,KE0007,KENT COUNTY COUNCIL (KCS),30/05/2022 00:00,26/06/2022 00:00,P03-2023,
,LEE VALLEY MARINA STANSTEAD,PREMISES RELATED EXPENDITURE,ENERGY COSTS (ELECTRICITY),2332,KENT COUNTY COUNCIL (KCS),20/06/2022 00:00,264279,226.87,KE0007,KENT COUNTY COUNCIL (KCS),30/05/2022 00:00,26/06/2022 00:00,P03-2023,
,LEE VALLEY MARINA STANSTEAD,PREMISES RELATED EXPENDITURE,ENERGY COSTS (ELECTRICITY),2332,KENT COUNTY COUNCIL (KCS),20/06/2022 00:00,264283,482.65,KE0007,KENT COUNTY COUNCIL (KCS),30/05/2022 00:00,26/06/2022 00:00,P03-2023,
,LEE VALLEY MARINA STANSTEAD,PREMISES RELATED EXPENDITURE,ENERGY COSTS (ELECTRICITY),2332,KENT COUNTY COUNCIL (KCS),20/06/2022 00:00,264300,3354.15,KE0007,KENT COUNTY COUNCIL (KCS),30/05/2022 00:00,26/06/2022 00:00,P03-2023,
P&V,LEE VALLEY FARM HOLYFIELDHALL,PREMISES RELATED EXPENDITURE,ENERGY COSTS (ELECTRICITY),2332,KENT COUNTY COUNCIL (KCS),07/06/2022 00:00,257188,819.61,KE0007,KENT COUNTY COUNCIL (KCS),30/05/2022 00:00,26/06/2022 00:00,P03-2023,
P&V,LEE VALLEY FARM HOLYFIELDHALL,PREMISES RELATED EXPENDITURE,ENERGY COSTS (ELECTRICITY),2332,KENT COUNTY COUNCIL (KCS),07/06/2022 00:00,263703,-102.04,KE0007,KENT COUNTY COUNCIL (KCS),30/05/2022 00:00,26/06/2022 00:00,P03-2023,
P&V,LEE VALLEY FARM HOLYFIELDHALL,PREMISES RELATED EXPENDITURE,ENERGY COSTS (ELECTRICITY),2332,KENT COUNTY COUNCIL (KCS),07/06/2022 00:00,263704,60.14,KE0007,KENT COUNTY COUNCIL (KCS),30/05/2022 00:00,26/06/2022 00:00,P03-2023,
P&V,LEE VALLEY FARM HOLYFIELDHALL,PREMISES RELATED EXPENDITURE,ENERGY COSTS (ELECTRICITY),2332,KENT COUNTY COUNCIL (KCS),07/06/2022 00:00,263705,-107.86,KE0007,KENT COUNTY COUNCIL (KCS),30/05/2022 00:00,26/06/2022 00:00,P03-2023,
P&V,LEE VALLEY FARM HOLYFIELDHALL,PREMISES RELATED EXPENDITURE,ENERGY COSTS (ELECTRICITY),2332,KENT COUNTY COUNCIL (KCS),07/06/2022 00:00,263706,63.6,KE0007,KENT COUNTY COUNCIL (KCS),30/05/2022 00:00,26/06/2022 00:00,P03-2023,
P&V,LEE VALLEY FARM HOLYFIELDHALL,PREMISES RELATED EXPENDITURE,ENERGY COSTS (ELECTRICITY),2332,KENT COUNTY COUNCIL (KCS),07/06/2022 00:00,263707,-107.86,KE0007,KENT COUNTY COUNCIL (KCS),30/05/2022 00:00,26/06/2022 00:00,P03-2023,
P&V,LEE VALLEY FARM HOLYFIELDHALL,PREMISES RELATED EXPENDITURE,ENERGY COSTS (ELECTRICITY),2332,KENT COUNTY COUNCIL (KCS),07/06/2022 00:00,263708,63.6,KE0007,KENT COUNTY COUNCIL (KCS),30/05/2022 00:00,26/06/2022 00:00,P03-2023,
P&V,LEE VALLEY FARM HOLYFIELDHALL,PREMISES RELATED EXPENDITURE,ENERGY COSTS (ELECTRICITY),2332,KENT COUNTY COUNCIL (KCS),07/06/2022 00:00,263709,-819.61,KE0007,KENT COUNTY COUNCIL (KCS),30/05/2022 00:00,26/06/2022 00:00,P03-2023,
P&V,LEE VALLEY FARM HOLYFIELDHALL,PREMISES RELATED EXPENDITURE,ENERGY COSTS (ELECTRICITY),2332,KENT COUNTY COUNCIL (KCS),07/06/2022 00:00,263710,62.91,KE0007,KENT COUNTY COUNCIL (KCS),30/05/2022 00:00,26/06/2022 00:00,P03-2023,
P&V,LEE VALLEY FARM HOLYFIELDHALL,PREMISES RELATED EXPENDITURE,ENERGY COSTS (ELECTRICITY),2332,KENT COUNTY COUNCIL (KCS),07/06/2022 00:00,263711,62.22,KE0007,KENT COUNTY COUNCIL (KCS),30/05/2022 00:00,26/06/2022 00:00,P03-2023,
P&V,LEE VALLEY FARM HOLYFIELDHALL,PREMISES RELATED EXPENDITURE,ENERGY COSTS (ELECTRICITY),2332,KENT COUNTY COUNCIL (KCS),26/06/2022 00:00,264275,6031.46,KE0007,KENT COUNTY COUNCIL (KCS),30/05/2022 00:00,26/06/2022 00:00,P03-2023,
,LEE VALLEY CAMPSITE,PREMISES RELATED EXPENDITURE,ENERGY COSTS (ELECTRICITY),2332,KENT COUNTY COUNCIL (KCS),26/06/2022 00:00,264298,1613.64,KE0007,KENT COUNTY COUNCIL (KCS),30/05/2022 00:00,26/06/2022 00:00,P03-2023,
,LEE VALLEY CAMPSITE,PREMISES RELATED EXPENDITURE,ENERGY COSTS (ELECTRICITY),2332,KENT COUNTY COUNCIL (KCS),26/06/2022 00:00,264299,1478.05,KE0007,KENT COUNTY COUNCIL (KCS),30/05/2022 00:00,26/06/2022 00:00,P03-2023,
,LEE VALLEY CAMPSITE,PREMISES RELATED EXPENDITURE,ENERGY COSTS (ELECTRICITY),2332,KENT COUNTY COUNCIL (KCS),26/06/2022 00:00,264301,572.51,KE0007,KENT COUNTY COUNCIL (KCS),30/05/2022 00:00,26/06/2022 00:00,P03-2023,
,LEE VALLEY CARAVAN PARK,PREMISES RELATED EXPENDITURE,ENERGY COSTS (ELECTRICITY),2332,KENT COUNTY COUNCIL (KCS),21/06/2022 00:00,264273,5975.52,KE0007,KENT COUNTY COUNCIL (KCS),30/05/2022 00:00,26/06/2022 00:00,P03-2023,
P&V,EAST INDIA DOCK AND BOW CREEK,PREMISES RELATED EXPENDITURE,ENERGY COSTS (ELECTRICITY),2332,KENT COUNTY COUNCIL (KCS),26/06/2022 00:00,264555,61.08,KE0007,KENT COUNTY COUNCIL (KCS),30/05/2022 00:00,26/06/2022 00:00,P03-2023,
P&V,RYE HOUSE GATEHOUSE,PREMISES RELATED EXPENDITURE,ENERGY COSTS (ELECTRICITY),2332,KENT COUNTY COUNCIL (KCS),26/06/2022 00:00,264556,79.14,KE0007,KENT COUNTY COUNCIL (KCS),30/05/2022 00:00,26/06/2022 00:00,P03-2023,
P&V,NORTH AREA RANGERS,PREMISES RELATED EXPENDITURE,ENERGY COSTS (ELECTRICITY),2332,KENT COUNTY COUNCIL (KCS),26/06/2022 00:00,264280,644.98,KE0007,KENT COUNTY COUNCIL (KCS),30/05/2022 00:00,26/06/2022 00:00,P03-2023,
P&V,NORTH AREA RANGERS,PREMISES RELATED EXPENDITURE,ENERGY COSTS (ELECTRICITY),2332,KENT COUNTY COUNCIL (KCS),26/06/2022 00:00,264282,103.38,KE0007,KENT COUNTY COUNCIL (KCS),30/05/2022 00:00,26/06/2022 00:00,P03-2023,
P&V,NORTH AREA RANGERS,PREMISES RELATED EXPENDITURE,ENERGY COSTS (ELECTRICITY),2332,KENT COUNTY COUNCIL (KCS),26/06/2022 00:00,264329,62.56,KE0007,KENT COUNTY COUNCIL (KCS),30/05/2022 00:00,26/06/2022 00:00,P03-2023,
P&V,SOUTH AREA RANGERS,PREMISES RELATED EXPENDITURE,ENERGY COSTS (ELECTRICITY),2332,KENT COUNTY COUNCIL (KCS),26/06/2022 00:00,264266,223.63,KE0007,KENT COUNTY COUNCIL (KCS),30/05/2022 00:00,26/06/2022 00:00,P03-2023,
P&V,ABBEY GARDENS,PREMISES RELATED EXPENDITURE,ENERGY COSTS (ELECTRICITY),2332,KENT COUNTY COUNCIL (KCS),26/06/2022 00:00,264277,605.85,KE0007,KENT COUNTY COUNCIL (KCS),30/05/2022 00:00,26/06/2022 00:00,P03-2023,
P&V,GUNPOWDER PARK,PREMISES RELATED EXPENDITURE,ENERGY COSTS (ELECTRICITY),2332,KENT COUNTY COUNCIL (KCS),26/06/2022 00:00,264278,338.4,KE0007,KENT COUNTY COUNCIL (KCS),30/05/2022 00:00,26/06/2022 00:00,P03-2023,
P&V,GUNPOWDER PARK,PREMISES RELATED EXPENDITURE,ENERGY COSTS (ELECTRICITY),2332,KENT COUNTY COUNCIL (KCS),26/06/2022 00:00,264312,63.6,KE0007,KENT COUNTY COUNCIL (KCS),30/05/2022 00:00,26/06/2022 00:00,P03-2023,
P&V,RIVER LEE COUNTRY PARK,PREMISES RELATED EXPENDITURE,ENERGY COSTS (ELECTRICITY),2332,KENT COUNTY COUNCIL (KCS),26/06/2022 00:00,264325,85.79,KE0007,KENT COUNTY COUNCIL (KCS),30/05/2022 00:00,26/06/2022 00:00,P03-2023,
P&V,RIVER LEE COUNTRY PARK,PREMISES RELATED EXPENDITURE,ENERGY COSTS (ELECTRICITY),2332,KENT COUNTY COUNCIL (KCS),26/06/2022 00:00,264499,284.61,KE0007,KENT COUNTY COUNCIL (KCS),30/05/2022 00:00,26/06/2022 00:00,P03-2023,
,LEE VALLEY RIDING CENTRE,PREMISES RELATED EXPENDITURE,ENERGY COSTS (ELECTRICITY),2332,EDF ENERGY 1 LIMITED,08/06/2022 00:00,263720,171.1,ED0077,EDF ENERGY 1 LIMITED,30/05/2022 00:00,26/06/2022 00:00,P03-2023,
,LEE VALLEY RIDING CENTRE,PREMISES RELATED EXPENDITURE,ENERGY COSTS (ELECTRICITY),2332,EDF ENERGY 1 LIMITED,08/06/2022 00:00,263721,-147.33,ED0077,EDF ENERGY 1 LIMITED,30/05/2022 00:00,26/06/2022 00:00,P03-2023,
P&V,MYDDELTON HOUSE,PREMISES RELATED EXPENDITURE,ENERGY COSTS (GAS),2333,KENT COUNTY COUNCIL (KCS),20/06/2022 00:00,264326,489.7,KE0007,KENT COUNTY COUNCIL (KCS),30/05/2022 00:00,26/06/2022 00:00,P03-2023,
,LEE VALLEY MARINA SPRINGFIELD,PREMISES RELATED EXPENDITURE,ENERGY COSTS (GAS),2333,KENT COUNTY COUNCIL (KCS),20/06/2022 00:00,264314,162.32,KE0007,KENT COUNTY COUNCIL (KCS),30/05/2022 00:00,26/06/2022 00:00,P03-2023,
,LEE VALLEY MARINA STANSTEAD,PREMISES RELATED EXPENDITURE,ENERGY COSTS (GAS),2333,KENT COUNTY COUNCIL (KCS),20/06/2022 00:00,264315,95.21,KE0007,KENT COUNTY COUNCIL (KCS),30/05/2022 00:00,26/06/2022 00:00,P03-2023,
,LEE VALLEY MARINA STANSTEAD,PREMISES RELATED EXPENDITURE,ENERGY COSTS (GAS),2333,KENT COUNTY COUNCIL (KCS),20/06/2022 00:00,264316,80.57,KE0007,KENT COUNTY COUNCIL (KCS),30/05/2022 00:00,26/06/2022 00:00,P03-2023,
,LEE VALLEY WATERWORKS CENTRE,PREMISES RELATED EXPENDITURE,ENERGY COSTS (GAS),2333,KENT COUNTY COUNCIL (KCS),26/06/2022 00:00,264318,263.43,KE0007,KENT COUNTY COUNCIL (KCS),30/05/2022 00:00,26/06/2022 00:00,P03-2023,
,LEE VALLEY CAMPSITE,PREMISES RELATED EXPENDITURE,ENERGY COSTS (GAS),2333,KENT COUNTY COUNCIL (KCS),26/06/2022 00:00,264317,355.36,KE0007,KENT COUNTY COUNCIL (KCS),30/05/2022 00:00,26/06/2022 00:00,P03-2023,
P&V,GUNPOWDER PARK,PREMISES RELATED EXPENDITURE,ENERGY COSTS (GAS),2333,KENT COUNTY COUNCIL (KCS),26/06/2022 00:00,264328,49.31,KE0007,KENT COUNTY COUNCIL (KCS),30/05/2022 00:00,26/06/2022 00:00,P03-2023,
,LEE VALLEY RIDING CENTRE,PREMISES RELATED EXPENDITURE,ENERGY COSTS (GAS),2333,BRITISH GAS BUSINESS,26/06/2022 00:00,264330,134.34,BR0029,BRITISH GAS BUSINESS,30/05/2022 00:00,26/06/2022 00:00,P03-2023,
,LEE VALLEY RIDING CENTRE,PREMISES RELATED EXPENDITURE,ENERGY COSTS (GAS),2333,BRITISH GAS BUSINESS,26/06/2022 00:00,264331,-134.34,BR0029,BRITISH GAS BUSINESS,30/05/2022 00:00,26/06/2022 00:00,P03-2023,
,LEE VALLEY RIDING CENTRE,PREMISES RELATED EXPENDITURE,ENERGY COSTS (GAS),2333,BRITISH GAS BUSINESS,26/06/2022 00:00,264332,374.24,BR0029,BRITISH GAS BUSINESS,30/05/2022 00:00,26/06/2022 00:00,P03-2023,
,LEE VALLEY RIDING CENTRE,PREMISES RELATED EXPENDITURE,ENERGY COSTS (GAS),2333,BRITISH GAS BUSINESS,26/06/2022 00:00,264333,-413.38,BR0029,BRITISH GAS BUSINESS,30/05/2022 00:00,26/06/2022 00:00,P03-2023,
,LV LEISURE CENTRE CAMPSITE,PREMISES RELATED EXPENDITURE,ENERGY COSTS (GAS),2333,KENT COUNTY COUNCIL (KCS),21/06/2022 00:00,264313,483.13,KE0007,KENT COUNTY COUNCIL (KCS),30/05/2022 00:00,26/06/2022 00:00,P03-2023,
P&V,NORTH AREA RANGERS,PREMISES RELATED EXPENDITURE,RENT (EXTERNAL),2442,ROYDON PARISH COUNCIL,13/06/2022 00:00,264006,1077.48,RO0025,ROYDON PARISH COUNCIL,30/05/2022 00:00,26/06/2022 00:00,P03-2023,
,LV HOCKEY AND TENNIS CENTRE,PREMISES RELATED EXPENDITURE,BUSINESS RATES,2444,LONDON BOROUGH OF WALTHAM FORE,26/06/2022 00:00,263231,-178.4,WA0005,LONDON BOROUGH OF WALTHAM FOREST,30/05/2022 00:00,26/06/2022 00:00,P03-2023,
,LV HOCKEY AND TENNIS CENTRE,PREMISES RELATED EXPENDITURE,BUSINESS RATES,2444,LONDON BOROUGH OF WALTHAM FORE,26/06/2022 00:00,263939,178.4,WA0005,LONDON BOROUGH OF WALTHAM FOREST,30/05/2022 00:00,26/06/2022 00:00,P03-2023,
,LEE VALLEY MARINA SPRINGFIELD,PREMISES RELATED EXPENDITURE,WATER,2555,CASTLE WATER LIMITED,13/06/2022 00:00,263892,1510.46,CA0625,CASTLE WATER LIMITED,30/05/2022 00:00,26/06/2022 00:00,P03-2023,
,LEE VALLEY MARINA SPRINGFIELD,PREMISES RELATED EXPENDITURE,WATER,2555,CASTLE WATER LIMITED,13/06/2022 00:00,263892,1030.22,CA0625,CASTLE WATER LIMITED,30/05/2022 00:00,26/06/2022 00:00,P03-2023,
,LEE VALLEY WATERWORKS CENTRE,PREMISES RELATED EXPENDITURE,WATER,2555,CASTLE WATER LIMITED,07/06/2022 00:00,263701,98.96,CA0625,CASTLE WATER LIMITED,30/05/2022 00:00,26/06/2022 00:00,P03-2023,
,LEE VALLEY CAMPSITE,PREMISES RELATED EXPENDITURE,WATER,2555,CASTLE WATER LIMITED,13/06/2022 00:00,263528,1494.06,CA0625,CASTLE WATER LIMITED,30/05/2022 00:00,26/06/2022 00:00,P03-2023,
,LEE VALLEY CARAVAN PARK,PREMISES RELATED EXPENDITURE,WATER,2555,CASTLE WATER LIMITED,21/06/2022 00:00,264261,2677.09,CA0625,CASTLE WATER LIMITED,30/05/2022 00:00,26/06/2022 00:00,P03-2023,
,LEE VALLEY CARAVAN PARK,PREMISES RELATED EXPENDITURE,WATER,2555,CASTLE WATER LIMITED,21/06/2022 00:00,264261,1761.25,CA0625,CASTLE WATER LIMITED,30/05/2022 00:00,26/06/2022 00:00,P03-2023,
,LV LEISURE CENTRE CAMPSITE,PREMISES RELATED EXPENDITURE,WATER,2555,CASTLE WATER LIMITED,20/06/2022 00:00,263940,479.87,CA0625,CASTLE WATER LIMITED,30/05/2022 00:00,26/06/2022 00:00,P03-2023,
,LV LEISURE CENTRE CAMPSITE,PREMISES RELATED EXPENDITURE,WATER,2555,CASTLE WATER LIMITED,20/06/2022 00:00,263940,230.93,CA0625,CASTLE WATER LIMITED,30/05/2022 00:00,26/06/2022 00:00,P03-2023,
,LV LEISURE CENTRE CAMPSITE,PREMISES RELATED EXPENDITURE,WATER,2555,CASTLE WATER LIMITED,20/06/2022 00:00,264107,35.76,CA0625,CASTLE WATER LIMITED,30/05/2022 00:00,26/06/2022 00:00,P03-2023,
,LV LEISURE CENTRE CAMPSITE,PREMISES RELATED EXPENDITURE,WATER,2555,CASTLE WATER LIMITED,20/06/2022 00:00,264107,34.56,CA0625,CASTLE WATER LIMITED,30/05/2022 00:00,26/06/2022 00:00,P03-2023,
,LV LEISURE CENTRE CAMPSITE,PREMISES RELATED EXPENDITURE,WATER,2555,CASTLE WATER LIMITED,26/06/2022 00:00,264384,40.56,CA0625,CASTLE WATER LIMITED,30/05/2022 00:00,26/06/2022 00:00,P03-2023,
,LEE VALLEY MARINA SPRINGFIELD,PREMISES RELATED EXPENDITURE,CLEANING & DOMESTIC SUPPLIES,2666,"P117560-SERVICE-Sanitary Disposal/Dust Mats,Eco Shield",26/06/2022 00:00,264344,191.64,PE0015,PHS GROUP PLC,30/05/2022 00:00,26/06/2022 00:00,P03-2023,
,LEE VALLEY MARINA SPRINGFIELD,PREMISES RELATED EXPENDITURE,CLEANING & DOMESTIC SUPPLIES,2666,P118270-SERVICE-to supply items as requested,26/06/2022 00:00,264359,411.95,HY0043,HYGIENE SYSTEMS LTD,30/05/2022 00:00,26/06/2022 00:00,P03-2023,
,LEE VALLEY MARINA STANSTEAD,PREMISES RELATED EXPENDITURE,CLEANING & DOMESTIC SUPPLIES,2666,P118282-SERVICE-Tonya Cleaner when Maria was away early June,13/06/2022 00:00,264010,115,TR0632,TONYA RENNIE T/A TR SERVICES,30/05/2022 00:00,26/06/2022 00:00,P03-2023,
,LEE VALLEY MARINA STANSTEAD,PREMISES RELATED EXPENDITURE,CLEANING & DOMESTIC SUPPLIES,2666,"P118306-SERVICE-jkl  disiinfectant, handwash",20/06/2022 00:00,264248,53.03,TH0008,JKL SOLUTIONS LTD,30/05/2022 00:00,26/06/2022 00:00,P03-2023,
,LEE VALLEY MARINA STANSTEAD,PREMISES RELATED EXPENDITURE,CLEANING & DOMESTIC SUPPLIES,2666,P118321-SERVICE-urinal falcon urinal filters x4,26/06/2022 00:00,264374,193.28,TH0008,JKL SOLUTIONS LTD,30/05/2022 00:00,26/06/2022 00:00,P03-2023,
,LEE VALLEY WATERWORKS CENTRE,PREMISES RELATED EXPENDITURE,CLEANING & DOMESTIC SUPPLIES,2666,P117876-SERVICE-Cleaning WaterWorks Centre - 2022,13/06/2022 00:00,263920,560,GL0214,GLENDALE GROUNDS MANAGEMENT LIMITED,30/05/2022 00:00,26/06/2022 00:00,P03-2023,
,LEE VALLEY CAMPSITE,PREMISES RELATED EXPENDITURE,CLEANING & DOMESTIC SUPPLIES,2666,P118362-SERVICE-stock,15/06/2022 00:00,264151,271.6,HY0043,HYGIENE SYSTEMS LTD,30/05/2022 00:00,26/06/2022 00:00,P03-2023,
,LEE VALLEY CARAVAN PARK,PREMISES RELATED EXPENDITURE,CLEANING & DOMESTIC SUPPLIES,2666,P118245-SERVICE-Cleaning materials,13/06/2022 00:00,264079,759.46,HY0043,HYGIENE SYSTEMS LTD,30/05/2022 00:00,26/06/2022 00:00,P03-2023,
,LV HOCKEY AND TENNIS CENTRE,PREMISES RELATED EXPENDITURE,CLEANING & DOMESTIC SUPPLIES,2666,P113781-SERVICE-Hygiene services feb - mar 2022,16/06/2022 00:00,264264,364.82,PE0015,PHS GROUP PLC,30/05/2022 00:00,26/06/2022 00:00,P03-2023,
,LV HOCKEY AND TENNIS CENTRE,PREMISES RELATED EXPENDITURE,CLEANING & DOMESTIC SUPPLIES,2666,P113781-SERVICE-hygiene services,16/06/2022 00:00,264267,-317.73,PE0015,PHS GROUP PLC,30/05/2022 00:00,26/06/2022 00:00,P03-2023,
,LV LEISURE CENTRE CAMPSITE,PREMISES RELATED EXPENDITURE,CLEANING & DOMESTIC SUPPLIES,2666,P118124-SERVICE-Cleaning supplies,20/06/2022 00:00,263691,361.03,HY0043,HYGIENE SYSTEMS LTD,30/05/2022 00:00,26/06/2022 00:00,P03-2023,
,LV LEISURE CENTRE CAMPSITE,PREMISES RELATED EXPENDITURE,CLEANING & DOMESTIC SUPPLIES,2666,P118060-SERVICE-Cleaning supplies and mats,21/06/2022 00:00,263952,144.64,HY0043,HYGIENE SYSTEMS LTD,30/05/2022 00:00,26/06/2022 00:00,P03-2023,
,LV LEISURE CENTRE CAMPSITE,PREMISES RELATED EXPENDITURE,CLEANING & DOMESTIC SUPPLIES,2666,P118450-SERVICE-Cleaning supplies,26/06/2022 00:00,264247,319.8,HY0043,HYGIENE SYSTEMS LTD,30/05/2022 00:00,26/06/2022 00:00,P03-2023,
,LV LEISURE CENTRE CAMPSITE,PREMISES RELATED EXPENDITURE,CLEANING & DOMESTIC SUPPLIES,2666,P118429-SERVICE-Cleaning supplies,26/06/2022 00:00,264540,72.04,HY0043,HYGIENE SYSTEMS LTD,30/05/2022 00:00,26/06/2022 00:00,P03-2023,
P&V,LEE VALLEY FARM HOLYFIELDHALL,TRANSPORT RELATED EXPENDITURE,TRANSPORT RUNNING EXPENSES,3333,P117606-SERVICE-Welding Sundries,07/06/2022 00:00,263855,145.45,BO0015,BOC LTD,30/05/2022 00:00,26/06/2022 00:00,P03-2023,
P&V,LEE VALLEY FARM HOLYFIELDHALL,TRANSPORT RELATED EXPENDITURE,TRANSPORT RUNNING EXPENSES,3333,P117572-SERVICE-Parts,07/06/2022 00:00,263875,80.61,GR0022,GROUP COMPONENTS LIMITED,30/05/2022 00:00,26/06/2022 00:00,P03-2023,
P&V,LEE VALLEY FARM HOLYFIELDHALL,TRANSPORT RELATED EXPENDITURE,TRANSPORT RUNNING EXPENSES,3333,P117603-SERVICE-Tractor Spares,13/06/2022 00:00,263999,12,OL0059,OLIVER LANDPOWER LIMITED,30/05/2022 00:00,26/06/2022 00:00,P03-2023,
P&V,LEE VALLEY FARM HOLYFIELDHALL,TRANSPORT RELATED EXPENDITURE,TRANSPORT RUNNING EXPENSES,3333,P118368-SERVICE-Mirror Glass/Def Filter,15/06/2022 00:00,264117,120.16,CH0719,CHANDLERS (FARM EQUIPMENT) LTD,30/05/2022 00:00,26/06/2022 00:00,P03-2023,
,LEE VALLEY MARINA STANSTEAD,TRANSPORT RELATED EXPENDITURE,VEHICLE FUEL,3335,ALLSTAR BUSINESS SOLUTIONS LTD,07/06/2022 00:00,263852,281.79,AR0035,ALLSTAR BUSINESS SOLUTIONS LTD,30/05/2022 00:00,26/06/2022 00:00,P03-2023,
P&V,LEE VALLEY FARM HOLYFIELDHALL,TRANSPORT RELATED EXPENDITURE,VEHICLE FUEL,3335,ALLSTAR BUSINESS SOLUTIONS LTD,07/06/2022 00:00,263852,250.33,AR0035,ALLSTAR BUSINESS SOLUTIONS LTD,30/05/2022 00:00,26/06/2022 00:00,P03-2023,
,LEE VALLEY CAMPSITE,TRANSPORT RELATED EXPENDITURE,VEHICLE FUEL,3335,ALLSTAR BUSINESS SOLUTIONS LTD,07/06/2022 00:00,263852,111.81,AR0035,ALLSTAR BUSINESS SOLUTIONS LTD,30/05/2022 00:00,26/06/2022 00:00,P03-2023,
,LEE VALLEY CARAVAN PARK,TRANSPORT RELATED EXPENDITURE,VEHICLE FUEL,3335,ALLSTAR BUSINESS SOLUTIONS LTD,07/06/2022 00:00,263852,343.46,AR0035,ALLSTAR BUSINESS SOLUTIONS LTD,30/05/2022 00:00,26/06/2022 00:00,P03-2023,
P&V,SOUTH AREA RANGERS,TRANSPORT RELATED EXPENDITURE,VEHICLE FUEL,3335,ALLSTAR BUSINESS SOLUTIONS LTD,07/06/2022 00:00,263852,439.62,AR0035,ALLSTAR BUSINESS SOLUTIONS LTD,30/05/2022 00:00,26/06/2022 00:00,P03-2023,
P&V,RIVER LEE COUNTRY PARK,TRANSPORT RELATED EXPENDITURE,VEHICLE FUEL,3335,ALLSTAR BUSINESS SOLUTIONS LTD,07/06/2022 00:00,263852,404.4,AR0035,ALLSTAR BUSINESS SOLUTIONS LTD,30/05/2022 00:00,26/06/2022 00:00,P03-2023,
,LV LEISURE CENTRE CAMPSITE,TRANSPORT RELATED EXPENDITURE,VEHICLE FUEL,3335,ALLSTAR BUSINESS SOLUTIONS LTD,07/06/2022 00:00,263852,81.64,AR0035,ALLSTAR BUSINESS SOLUTIONS LTD,30/05/2022 00:00,26/06/2022 00:00,P03-2023,
,LV LEISURE CENTRE CAMPSITE,TRANSPORT RELATED EXPENDITURE,VEHICLE FUEL,3335,ALLSTAR BUSINESS SOLUTIONS LTD,07/06/2022 00:00,263852,66.88,AR0035,ALLSTAR BUSINESS SOLUTIONS LTD,30/05/2022 00:00,26/06/2022 00:00,P03-2023,
P&V,NORTH AREA RANGERS,TRANSPORT RELATED EXPENDITURE,VEHICLE REPAIRS & MAINTENANCE,3338,P118470-SERVICE-Vehicle Valet EY20 TJZ,26/06/2022 00:00,264491,100,AB0153,ABBEY SERVICE CENTRE,30/05/2022 00:00,26/06/2022 00:00,P03-2023,
P&V,SOUTH AREA RANGERS,TRANSPORT RELATED EXPENDITURE,VEHICLE REPAIRS & MAINTENANCE,3338,PHILBRICKS AUTO BODIES LTD,21/06/2022 00:00,264352,-1000,PH0474,PHILBRICKS AUTO BODIES LTD,30/05/2022 00:00,26/06/2022 00:00,P03-2023,
P&V,SOUTH AREA RANGERS,TRANSPORT RELATED EXPENDITURE,VEHICLE REPAIRS & MAINTENANCE,3338,P117649-SERVICE-Repairs to Nissan - EY71 PJV,21/06/2022 00:00,264352,1000,PH0474,PHILBRICKS AUTO BODIES LTD,30/05/2022 00:00,26/06/2022 00:00,P03-2023,
P&V,SOUTH AREA RANGERS,TRANSPORT RELATED EXPENDITURE,VEHICLE REPAIRS & MAINTENANCE,3338,PHILBRICKS AUTO BODIES LTD,21/06/2022 00:00,264352,1000,PH0474,PHILBRICKS AUTO BODIES LTD,30/05/2022 00:00,26/06/2022 00:00,P03-2023,
P&V,SOUTH AREA RANGERS,TRANSPORT RELATED EXPENDITURE,VEHICLE REPAIRS & MAINTENANCE,3338,PHILBRICKS AUTO BODIES LTD,21/06/2022 00:00,264352,0,PH0474,PHILBRICKS AUTO BODIES LTD,30/05/2022 00:00,26/06/2022 00:00,P03-2023,
P&V,RIVER LEE COUNTRY PARK,TRANSPORT RELATED EXPENDITURE,VEHICLE REPAIRS & MAINTENANCE,3338,P117654-SERVICE-Refurbish Interior of MEU,26/06/2022 00:00,263661,995,JO0019,R G JOYCE,30/05/2022 00:00,26/06/2022 00:00,P03-2023,
P&V,RIVER LEE COUNTRY PARK,TRANSPORT RELATED EXPENDITURE,VEHICLE REPAIRS & MAINTENANCE,3338,P118470-SERVICE-Vehicle Valet GK65 MRU,26/06/2022 00:00,264490,100,AB0153,ABBEY SERVICE CENTRE,30/05/2022 00:00,26/06/2022 00:00,P03-2023,
P&V,MYDDELTON HOUSE,SUPPLIES AND SERVICES,EQUIPMENT & MATERIALS,4111,P118167-SERVICE-Supply Fire Extinguishers to Myddelton House,13/06/2022 00:00,264093,62.81,TJ0009,T.J.FIRE & SECURITY,30/05/2022 00:00,26/06/2022 00:00,P03-2023,
,LEE VALLEY MARINA SPRINGFIELD,SUPPLIES AND SERVICES,EQUIPMENT & MATERIALS,4111,P118359-SERVICE-BOC  Pureshield Argon Size W rental,15/06/2022 00:00,263853,145.45,BO0015,BOC LTD,30/05/2022 00:00,26/06/2022 00:00,P03-2023,
,LEE VALLEY MARINA SPRINGFIELD,SUPPLIES AND SERVICES,EQUIPMENT & MATERIALS,4111,P118272-SERVICE-To supply items as requested/New car parkin N,26/06/2022 00:00,264379,387.78,SA0008,SAFETEC DIRECT LTD,30/05/2022 00:00,26/06/2022 00:00,P03-2023,
,LEE VALLEY MARINA STANSTEAD,SUPPLIES AND SERVICES,EQUIPMENT & MATERIALS,4111,P118394-SERVICE-hazard pole and chains,26/06/2022 00:00,264506,63.9,TH0008,JKL SOLUTIONS LTD,30/05/2022 00:00,26/06/2022 00:00,P03-2023,
,LEE VALLEY CAMPSITE,SUPPLIES AND SERVICES,EQUIPMENT & MATERIALS,4111,P118175-SERVICE-plugs + Blubs,08/06/2022 00:00,263717,4.99,AM0406,AMAZON PAYMENTS UK LIMITED,30/05/2022 00:00,26/06/2022 00:00,P03-2023,
,LEE VALLEY CAMPSITE,SUPPLIES AND SERVICES,EQUIPMENT & MATERIALS,4111,P118175-SERVICE-plugs + Blubs,08/06/2022 00:00,263718,15.82,AM0406,AMAZON PAYMENTS UK LIMITED,30/05/2022 00:00,26/06/2022 00:00,P03-2023,
,LEE VALLEY CAMPSITE,SUPPLIES AND SERVICES,EQUIPMENT & MATERIALS,4111,P118175-SERVICE-plugs + Blubs,08/06/2022 00:00,263719,39.9,AM0406,AMAZON PAYMENTS UK LIMITED,30/05/2022 00:00,26/06/2022 00:00,P03-2023,
,LEE VALLEY CAMPSITE,SUPPLIES AND SERVICES,EQUIPMENT & MATERIALS,4111,P118293-SERVICE-delivery charge,13/06/2022 00:00,263925,8.33,SC0057,SCREWFIX DIRECT LTD,30/05/2022 00:00,26/06/2022 00:00,P03-2023,
,LEE VALLEY CAMPSITE,SUPPLIES AND SERVICES,EQUIPMENT & MATERIALS,4111,P118293-SERVICE-gate spring,13/06/2022 00:00,263925,7.48,SC0057,SCREWFIX DIRECT LTD,30/05/2022 00:00,26/06/2022 00:00,P03-2023,
,LEE VALLEY CAMPSITE,SUPPLIES AND SERVICES,EQUIPMENT & MATERIALS,4111,P118294-SERVICE-materials for site,13/06/2022 00:00,263926,93.33,BQ0164,TRADE UK ACCOUNT,30/05/2022 00:00,26/06/2022 00:00,P03-2023,
,LEE VALLEY CAMPSITE,SUPPLIES AND SERVICES,EQUIPMENT & MATERIALS,4111,P118294-SERVICE-materials for site,13/06/2022 00:00,263929,164.58,BQ0164,TRADE UK ACCOUNT,30/05/2022 00:00,26/06/2022 00:00,P03-2023,
,LEE VALLEY CAMPSITE,SUPPLIES AND SERVICES,EQUIPMENT & MATERIALS,4111,P118357-SERVICE-builders band,15/06/2022 00:00,264072,17.08,SC0057,SCREWFIX DIRECT LTD,30/05/2022 00:00,26/06/2022 00:00,P03-2023,
,LEE VALLEY CAMPSITE,SUPPLIES AND SERVICES,EQUIPMENT & MATERIALS,4111,P118492-SERVICE-INSTALL CCTV CAMERA,26/06/2022 00:00,264364,435,DE0013,DENNIS SECURITY CENTRE,30/05/2022 00:00,26/06/2022 00:00,P03-2023,
,LEE VALLEY CARAVAN PARK,SUPPLIES AND SERVICES,EQUIPMENT & MATERIALS,4111,P118205-SERVICE-Play Area Safety Sign,13/06/2022 00:00,264000,50,SL0528,SLAM SIGNS LTD,30/05/2022 00:00,26/06/2022 00:00,P03-2023,
,LEE VALLEY CARAVAN PARK,SUPPLIES AND SERVICES,EQUIPMENT & MATERIALS,4111,P118342-SERVICE-Decibel Noise Meter,20/06/2022 00:00,264124,20.82,AM0406,AMAZON PAYMENTS UK LIMITED,30/05/2022 00:00,26/06/2022 00:00,P03-2023,
,LEE VALLEY CARAVAN PARK,SUPPLIES AND SERVICES,EQUIPMENT & MATERIALS,4111,P118373-SERVICE-Toaster X 3,21/06/2022 00:00,264288,36.64,AM0406,AMAZON PAYMENTS UK LIMITED,30/05/2022 00:00,26/06/2022 00:00,P03-2023,
,LEE VALLEY CARAVAN PARK,SUPPLIES AND SERVICES,EQUIPMENT & MATERIALS,4111,P118373-SERVICE-Toaster X 3,20/06/2022 00:00,264289,18.32,AM0406,AMAZON PAYMENTS UK LIMITED,30/05/2022 00:00,26/06/2022 00:00,P03-2023,
,LEE VALLEY CARAVAN PARK,SUPPLIES AND SERVICES,EQUIPMENT & MATERIALS,4111,P118467-SERVICE-Fence paint,26/06/2022 00:00,264338,15.83,SC0057,SCREWFIX DIRECT LTD,30/05/2022 00:00,26/06/2022 00:00,P03-2023,
,LEE VALLEY CARAVAN PARK,SUPPLIES AND SERVICES,EQUIPMENT & MATERIALS,4111,P118465-SERVICE-Various Plants ex cap,26/06/2022 00:00,264576,582.21,CL0093,CLOCKHOUSE NURSERY,30/05/2022 00:00,26/06/2022 00:00,P03-2023,
P&V,MYDDLETON HSE HERITAGE CENTRE,SUPPLIES AND SERVICES,EQUIPMENT & MATERIALS,4111,P118253-SERVICE-fan order gardens june 22,20/06/2022 00:00,263955,214.97,SI0681,SIMPLY CONTROL,30/05/2022 00:00,26/06/2022 00:00,P03-2023,
P&V,NORTH AREA RANGERS,SUPPLIES AND SERVICES,EQUIPMENT & MATERIALS,4111,P117538-SERVICE-Equipment & Materials as and when required,26/06/2022 00:00,264103,10.62,JE0011,SAINT-GOBAIN BUILDING DISTRIBUTION,30/05/2022 00:00,26/06/2022 00:00,P03-2023,
P&V,SOUTH AREA RANGERS,SUPPLIES AND SERVICES,EQUIPMENT & MATERIALS,4111,P117070-SERVICE-1x AP 500 S Battery,07/06/2022 00:00,262717,270,AP0245,APS LIMITED,30/05/2022 00:00,26/06/2022 00:00,P03-2023,
P&V,SOUTH AREA RANGERS,SUPPLIES AND SERVICES,EQUIPMENT & MATERIALS,4111,P117070-SERVICE-1x Silky Gomtaro 300mm Blade,07/06/2022 00:00,262717,28.23,AP0245,APS LIMITED,30/05/2022 00:00,26/06/2022 00:00,P03-2023,
P&V,SOUTH AREA RANGERS,SUPPLIES AND SERVICES,EQUIPMENT & MATERIALS,4111,P117070-SERVICE-1x FS 491 Clearing Saw,07/06/2022 00:00,262717,820,AP0245,APS LIMITED,30/05/2022 00:00,26/06/2022 00:00,P03-2023,
P&V,SOUTH AREA RANGERS,SUPPLIES AND SERVICES,EQUIPMENT & MATERIALS,4111,P117070-SERVICE-1x MSA 300 Chainsaw,07/06/2022 00:00,262717,531,AP0245,APS LIMITED,30/05/2022 00:00,26/06/2022 00:00,P03-2023,
P&V,SOUTH AREA RANGERS,SUPPLIES AND SERVICES,EQUIPMENT & MATERIALS,4111,"P117544-SERVICE-10x Bow Saw 21"" (1001X)",08/06/2022 00:00,263681,5.33,SC0057,SCREWFIX DIRECT LTD,30/05/2022 00:00,26/06/2022 00:00,P03-2023,
P&V,SOUTH AREA RANGERS,SUPPLIES AND SERVICES,EQUIPMENT & MATERIALS,4111,"P117544-SERVICE-10x Bow Saw 21"" (1001X)",08/06/2022 00:00,263682,-5.33,SC0057,SCREWFIX DIRECT LTD,30/05/2022 00:00,26/06/2022 00:00,P03-2023,
P&V,SOUTH AREA RANGERS,SUPPLIES AND SERVICES,EQUIPMENT & MATERIALS,4111,P117544-SERVICE-10x No Nonsense Multi-Task Wipes White 300 Pk,13/06/2022 00:00,263683,4.99,SC0057,SCREWFIX DIRECT LTD,30/05/2022 00:00,26/06/2022 00:00,P03-2023,
P&V,SOUTH AREA RANGERS,SUPPLIES AND SERVICES,EQUIPMENT & MATERIALS,4111,"P117544-SERVICE-10x Bow Saw 21"" (1001X)",13/06/2022 00:00,263683,80.45,SC0057,SCREWFIX DIRECT LTD,30/05/2022 00:00,26/06/2022 00:00,P03-2023,
P&V,SOUTH AREA RANGERS,SUPPLIES AND SERVICES,EQUIPMENT & MATERIALS,4111,P117544-SERVICE-5x Square Head Square-Mouth No 2 Shovel (3180,13/06/2022 00:00,263683,49.99,SC0057,SCREWFIX DIRECT LTD,30/05/2022 00:00,26/06/2022 00:00,P03-2023,
P&V,SOUTH AREA RANGERS,SUPPLIES AND SERVICES,EQUIPMENT & MATERIALS,4111,P117544-SERVICE-1x Stanley Heavy Duty Utility Knife Blades 10,13/06/2022 00:00,263683,18.32,SC0057,SCREWFIX DIRECT LTD,30/05/2022 00:00,26/06/2022 00:00,P03-2023,
P&V,RIVER LEE COUNTRY PARK,SUPPLIES AND SERVICES,EQUIPMENT & MATERIALS,4111,P117705-SERVICE-Memorial Duck at Wildlife Discovery Centre,13/06/2022 00:00,263966,330,TH0621,35 PERCENT LTD,30/05/2022 00:00,26/06/2022 00:00,P03-2023,
P&V,RIVER LEE COUNTRY PARK,SUPPLIES AND SERVICES,EQUIPMENT & MATERIALS,4111,TOOLS & EQUIP (NOT VAT INV),13/06/2022 00:00,264088,13.3,FI0001,DIRECTOR OF FINANCE - CASH,30/05/2022 00:00,26/06/2022 00:00,P03-2023,
P&V,RIVER LEE COUNTRY PARK,SUPPLIES AND SERVICES,EQUIPMENT & MATERIALS,4111,TOOLS & EQUIP,13/06/2022 00:00,264088,16.67,FI0001,DIRECTOR OF FINANCE - CASH,30/05/2022 00:00,26/06/2022 00:00,P03-2023,
P&V,RIVER LEE COUNTRY PARK,SUPPLIES AND SERVICES,EQUIPMENT & MATERIALS,4111,TOOLS & EQUIP,13/06/2022 00:00,264088,7.5,FI0001,DIRECTOR OF FINANCE - CASH,30/05/2022 00:00,26/06/2022 00:00,P03-2023,
P&V,RIVER LEE COUNTRY PARK,SUPPLIES AND SERVICES,EQUIPMENT & MATERIALS,4111,TOOSL & EQUIP,13/06/2022 00:00,264088,3,FI0001,DIRECTOR OF FINANCE - CASH,30/05/2022 00:00,26/06/2022 00:00,P03-2023,
P&V,ALMOST WILD CAMPSITE,SUPPLIES AND SERVICES,EQUIPMENT & MATERIALS,4111,P118166-SERVICE-Decking Screws for AMW,08/06/2022 00:00,263913,33.95,LE0012,LEASIDE TIMBER & BUILDERS MERCHANTS LTD,30/05/2022 00:00,26/06/2022 00:00,P03-2023,
P&V,THREE MILLS,SUPPLIES AND SERVICES,EQUIPMENT & MATERIALS,4111,P117921-SERVICE-4x SupaGrow Premium Play Grade Bark 600L,26/06/2022 00:00,264538,288,TR0031,TRAVIS PERKINS TRADING CO LTD,30/05/2022 00:00,26/06/2022 00:00,P03-2023,
,LV LEISURE CENTRE CAMPSITE,SUPPLIES AND SERVICES,EQUIPMENT & MATERIALS,4111,P118389-SERVICE-paint,21/06/2022 00:00,263650,63.34,BQ0164,TRADE UK ACCOUNT,30/05/2022 00:00,26/06/2022 00:00,P03-2023,
,LV LEISURE CENTRE CAMPSITE,SUPPLIES AND SERVICES,EQUIPMENT & MATERIALS,4111,P118451-SERVICE-Trowel and delivery,22/06/2022 00:00,263859,10.84,BQ0164,TRADE UK ACCOUNT,30/05/2022 00:00,26/06/2022 00:00,P03-2023,
,LV LEISURE CENTRE CAMPSITE,SUPPLIES AND SERVICES,EQUIPMENT & MATERIALS,4111,P118390-SERVICE-maintenance supplies,21/06/2022 00:00,263927,73.18,BQ0164,TRADE UK ACCOUNT,30/05/2022 00:00,26/06/2022 00:00,P03-2023,
,LV LEISURE CENTRE CAMPSITE,SUPPLIES AND SERVICES,EQUIPMENT & MATERIALS,4111,P118391-SERVICE-maintenance supplies,21/06/2022 00:00,263928,115.45,BQ0164,TRADE UK ACCOUNT,30/05/2022 00:00,26/06/2022 00:00,P03-2023,
,LV LEISURE CENTRE CAMPSITE,SUPPLIES AND SERVICES,EQUIPMENT & MATERIALS,4111,P118393-SERVICE-tarmac build sand,21/06/2022 00:00,263930,6.3,BQ0164,TRADE UK ACCOUNT,30/05/2022 00:00,26/06/2022 00:00,P03-2023,
,LV LEISURE CENTRE CAMPSITE,SUPPLIES AND SERVICES,EQUIPMENT & MATERIALS,4111,P118392-SERVICE-paving slabs,21/06/2022 00:00,263931,26.75,BQ0164,TRADE UK ACCOUNT,30/05/2022 00:00,26/06/2022 00:00,P03-2023,
,LV LEISURE CENTRE CAMPSITE,SUPPLIES AND SERVICES,EQUIPMENT & MATERIALS,4111,P118342-SERVICE-Decibel Noise meter,20/06/2022 00:00,264124,20.82,AM0406,AMAZON PAYMENTS UK LIMITED,30/05/2022 00:00,26/06/2022 00:00,P03-2023,
,LV LEISURE CENTRE CAMPSITE,SUPPLIES AND SERVICES,EQUIPMENT & MATERIALS,4111,P118452-SERVICE-tarmac sand for car park spaces,22/06/2022 00:00,264249,289.63,BQ0164,TRADE UK ACCOUNT,30/05/2022 00:00,26/06/2022 00:00,P03-2023,
,LV LEISURE CENTRE CAMPSITE,SUPPLIES AND SERVICES,EQUIPMENT & MATERIALS,4111,P118452-SERVICE-tarmac sand for car park spaces,26/06/2022 00:00,264517,-52.12,BQ0164,TRADE UK ACCOUNT,30/05/2022 00:00,26/06/2022 00:00,P03-2023,
,LV LEISURE CENTRE GOLF COURSE,SUPPLIES AND SERVICES,EQUIPMENT & MATERIALS,4111,P118192-SERVICE-golf equipment for machines,07/06/2022 00:00,263870,116.52,LE0279,REESINK TURFCARE UK LIMITED,30/05/2022 00:00,26/06/2022 00:00,P03-2023,
,LV LEISURE CENTRE GOLF COURSE,SUPPLIES AND SERVICES,EQUIPMENT & MATERIALS,4111,P118192-SERVICE-golf equipment for machines,20/06/2022 00:00,263893,43.14,LE0279,REESINK TURFCARE UK LIMITED,30/05/2022 00:00,26/06/2022 00:00,P03-2023,
,LV LEISURE CENTRE GOLF COURSE,SUPPLIES AND SERVICES,EQUIPMENT & MATERIALS,4111,P118192-SERVICE-golf equipment for machines,20/06/2022 00:00,263943,1.26,LE0279,REESINK TURFCARE UK LIMITED,30/05/2022 00:00,26/06/2022 00:00,P03-2023,
,LV LEISURE CENTRE GOLF COURSE,SUPPLIES AND SERVICES,EQUIPMENT & MATERIALS,4111,P118410-SERVICE-CAMBRIDGE GOLF 10 X MEGA PELLETS,26/06/2022 00:00,264389,750,CA0698,CAMBRIDGE GOLF COMPANY,30/05/2022 00:00,26/06/2022 00:00,P03-2023,
,LV LEISURE CENTRE GOLF COURSE,SUPPLIES AND SERVICES,EQUIPMENT & MATERIALS,4111,P118410-SERVICE-CAMBRIDGE GOLF 20 X ICL 7-0-14,26/06/2022 00:00,264389,664.2,CA0698,CAMBRIDGE GOLF COMPANY,30/05/2022 00:00,26/06/2022 00:00,P03-2023,
,LEE VALLEY CAMPSITE,SUPPLIES AND SERVICES,EQUIPMENT MAINTENANCE,4112,P118257-SERVICE-PLOT 30 GAS SAFETY CHECKS,13/06/2022 00:00,263984,490,SO0400,SOUTHERN GREEN SERVICES LIMITED,30/05/2022 00:00,26/06/2022 00:00,P03-2023,
,LEE VALLEY CAMPSITE,SUPPLIES AND SERVICES,EQUIPMENT MAINTENANCE,4112,P118258-SERVICE-Stirling new guttering reroute,13/06/2022 00:00,263985,125,SO0400,SOUTHERN GREEN SERVICES LIMITED,30/05/2022 00:00,26/06/2022 00:00,P03-2023,
,LEE VALLEY CAMPSITE,SUPPLIES AND SERVICES,EQUIPMENT MAINTENANCE,4112,P118259-SERVICE-STAFF CARAVAN 1,13/06/2022 00:00,263986,85,SO0400,SOUTHERN GREEN SERVICES LIMITED,30/05/2022 00:00,26/06/2022 00:00,P03-2023,
,LEE VALLEY CAMPSITE,SUPPLIES AND SERVICES,EQUIPMENT MAINTENANCE,4112,"P118258-SERVICE-P41 supply gas , new thermostat heating hot w",13/06/2022 00:00,263987,340,SO0400,SOUTHERN GREEN SERVICES LIMITED,30/05/2022 00:00,26/06/2022 00:00,P03-2023,
,LEE VALLEY CAMPSITE,SUPPLIES AND SERVICES,EQUIPMENT MAINTENANCE,4112,P118258-SERVICE-P3 GAS SAFETY CERTIFICATE,13/06/2022 00:00,263988,65,SO0400,SOUTHERN GREEN SERVICES LIMITED,30/05/2022 00:00,26/06/2022 00:00,P03-2023,
,LEE VALLEY CAMPSITE,SUPPLIES AND SERVICES,EQUIPMENT MAINTENANCE,4112,P118440-SERVICE-Mixing bottles for strimmers,26/06/2022 00:00,264372,7.33,AM0406,AMAZON PAYMENTS UK LIMITED,30/05/2022 00:00,26/06/2022 00:00,P03-2023,
,LEE VALLEY CAMPSITE,SUPPLIES AND SERVICES,EQUIPMENT MAINTENANCE,4112,P118491-SERVICE-refix repair to Bollard HH45,26/06/2022 00:00,264522,50,BR0018,BRADSHAW ELECTRICAL LIMITED,30/05/2022 00:00,26/06/2022 00:00,P03-2023,
,LEE VALLEY CARAVAN PARK,SUPPLIES AND SERVICES,EQUIPMENT MAINTENANCE,4112,P118440-SERVICE-Mixing bottles for strimmers,26/06/2022 00:00,264372,7.33,AM0406,AMAZON PAYMENTS UK LIMITED,30/05/2022 00:00,26/06/2022 00:00,P03-2023,
P&V,SOUTH AREA RANGERS,SUPPLIES AND SERVICES,EQUIPMENT MAINTENANCE,4112,P118097-SERVICE-Replace Pumps at Waterworks,26/06/2022 00:00,264529,3237,DE0176,DECKPRO,30/05/2022 00:00,26/06/2022 00:00,P03-2023,
,LV LEISURE CENTRE CAMPSITE,SUPPLIES AND SERVICES,EQUIPMENT MAINTENANCE,4112,P117915-SERVICE-Roller to repair isuki mower,20/06/2022 00:00,263945,32.39,DO0027,ERNEST DOE & SONS LTD,30/05/2022 00:00,26/06/2022 00:00,P03-2023,
,LV LEISURE CENTRE CAMPSITE,SUPPLIES AND SERVICES,EQUIPMENT MAINTENANCE,4112,P118384-SERVICE-1 hour labour to check air con unit,21/06/2022 00:00,264070,105,PR0363,PRETTY COOL CUSTOMERS LTD,30/05/2022 00:00,26/06/2022 00:00,P03-2023,
,LV LEISURE CENTRE GOLF COURSE,SUPPLIES AND SERVICES,EQUIPMENT MAINTENANCE,4112,P118365-SERVICE-Machinery Screws + Bushings,20/06/2022 00:00,264310,140.26,LE0279,REESINK TURFCARE UK LIMITED,30/05/2022 00:00,26/06/2022 00:00,P03-2023,
,LV LEISURE CENTRE GOLF COURSE,SUPPLIES AND SERVICES,EQUIPMENT MAINTENANCE,4112,P118440-SERVICE-Mixing bottles for strimmers,26/06/2022 00:00,264372,7.33,AM0406,AMAZON PAYMENTS UK LIMITED,30/05/2022 00:00,26/06/2022 00:00,P03-2023,
R&B,INFORMATION TECHNOLOGY,SUPPLIES AND SERVICES,IT CORE SYSTEMS,4113,P118143-SERVICE-Managed Fee 14 Jul - 13 Aug 2022,13/06/2022 00:00,263487,1333.47,CE0021,ADVANCED BUSINESS SOLUTIONS,30/05/2022 00:00,26/06/2022 00:00,P03-2023,
R&B,INFORMATION TECHNOLOGY,SUPPLIES AND SERVICES,IT CORE SYSTEMS,4113,P118355-SERVICE-CIPHR Payroll July 22,15/06/2022 00:00,264095,542.44,CI0721,CIPHR,30/05/2022 00:00,26/06/2022 00:00,P03-2023,
R&B,INFORMATION TECHNOLOGY,SUPPLIES AND SERVICES,IT CORE SYSTEMS,4113,P118422-SERVICE-Monthly Fees 15 June 2022,22/06/2022 00:00,264320,351,CO0440,VERIFONE SERVICES UK & IRELAND LTD,30/05/2022 00:00,26/06/2022 00:00,P03-2023,
R&B,INFORMATION TECHNOLOGY,SUPPLIES AND SERVICES,IT CORE SYSTEMS,4113,P118500-SERVICE-Managed Fee 14 Aug -13 Sept 22,26/06/2022 00:00,264341,1333.47,CE0021,ADVANCED BUSINESS SOLUTIONS,30/05/2022 00:00,26/06/2022 00:00,P03-2023,
,LSC INFORMATION TECHNOLOGY,SUPPLIES AND SERVICES,IT CORE SYSTEMS,4113,"P118395-SERVICE-Ecommerce overcharge - 33,165 transactions",21/06/2022 00:00,264153,2984.85,CO0440,VERIFONE SERVICES UK & IRELAND LTD,30/05/2022 00:00,26/06/2022 00:00,P03-2023,
R&B,INFORMATION TECHNOLOGY,SUPPLIES AND SERVICES,IT NETWORK & TELECOMS COSTS,4114,P117871-SERVICE-Monthly SIP Apr 22-Mar 23,08/06/2022 00:00,263876,146.77,FR0131,VOICEFLEX LTD,30/05/2022 00:00,26/06/2022 00:00,P03-2023,
R&B,INFORMATION TECHNOLOGY,SUPPLIES AND SERVICES,IT NETWORK & TELECOMS COSTS,4114,P118314-SERVICE-MPLS for all sites June 2022,13/06/2022 00:00,263989,9605.86,PP0200,PPSNET LIMITED,30/05/2022 00:00,26/06/2022 00:00,P03-2023,
,LEE VALLEY CARAVAN PARK,SUPPLIES AND SERVICES,IT NETWORK & TELECOMS COSTS,4114,MY O2,26/06/2022 00:00,264575,60.3,O20134,MY O2,30/05/2022 00:00,26/06/2022 00:00,P03-2023,
,LEE VALLEY CARAVAN PARK,SUPPLIES AND SERVICES,EQUIPMENT HIRE,4115,P118351-SERVICE-Rotorvator hire,20/06/2022 00:00,263992,354.29,ED0011,EDWARDS PLANT & TOOL HIRE LIMITED,30/05/2022 00:00,26/06/2022 00:00,P03-2023,
P&V,MYDDELTON HOUSE,SUPPLIES AND SERVICES,IT HARDWARE & SOFTWARE COSTS,4116,ZEN INTERNET LTD,21/06/2022 00:00,264132,42,ZE0007,ZEN INTERNET LTD,30/05/2022 00:00,26/06/2022 00:00,P03-2023,
P&V,MYDDELTON HOUSE,SUPPLIES AND SERVICES,IT HARDWARE & SOFTWARE COSTS,4116,ZEN INTERNET LTD,26/06/2022 00:00,264562,29.5,ZE0007,ZEN INTERNET LTD,30/05/2022 00:00,26/06/2022 00:00,P03-2023,
R&B,INFORMATION TECHNOLOGY,SUPPLIES AND SERVICES,IT HARDWARE & SOFTWARE COSTS,4116,P118225-SERVICE-Mimecast S1 Email Filitering Service,22/06/2022 00:00,263648,700,IQ0022,IQUAL,30/05/2022 00:00,26/06/2022 00:00,P03-2023,
R&B,INFORMATION TECHNOLOGY,SUPPLIES AND SERVICES,IT HARDWARE & SOFTWARE COSTS,4116,P118225-SERVICE-Datto RMM Device Licence,22/06/2022 00:00,263648,418,IQ0022,IQUAL,30/05/2022 00:00,26/06/2022 00:00,P03-2023,
R&B,INFORMATION TECHNOLOGY,SUPPLIES AND SERVICES,IT HARDWARE & SOFTWARE COSTS,4116,P118225-SERVICE-Mimecast - Large file Send Facility,22/06/2022 00:00,263648,38,IQ0022,IQUAL,30/05/2022 00:00,26/06/2022 00:00,P03-2023,
R&B,INFORMATION TECHNOLOGY,SUPPLIES AND SERVICES,IT HARDWARE & SOFTWARE COSTS,4116,P118225-SERVICE-365 Cloud Backup up & Recovery,22/06/2022 00:00,263648,35,IQ0022,IQUAL,30/05/2022 00:00,26/06/2022 00:00,P03-2023,
R&B,INFORMATION TECHNOLOGY,SUPPLIES AND SERVICES,IT HARDWARE & SOFTWARE COSTS,4116,P118220-SERVICE-Exclaimer Cloud Signature Annual Subscription,13/06/2022 00:00,263649,1458,IQ0022,IQUAL,30/05/2022 00:00,26/06/2022 00:00,P03-2023,
R&B,INFORMATION TECHNOLOGY,SUPPLIES AND SERVICES,IT HARDWARE & SOFTWARE COSTS,4116,P118215-SERVICE-Pulseway on Premise Enterprise,07/06/2022 00:00,263679,878,IQ0022,IQUAL,30/05/2022 00:00,26/06/2022 00:00,P03-2023,
R&B,INFORMATION TECHNOLOGY,SUPPLIES AND SERVICES,IT HARDWARE & SOFTWARE COSTS,4116,P118443-SERVICE-Datto RMM Device Licence,22/06/2022 00:00,264322,418,IQ0022,IQUAL,30/05/2022 00:00,26/06/2022 00:00,P03-2023,
R&B,INFORMATION TECHNOLOGY,SUPPLIES AND SERVICES,IT HARDWARE & SOFTWARE COSTS,4116,P118443-SERVICE-365 Cloud Backup up & Recovery,22/06/2022 00:00,264322,35,IQ0022,IQUAL,30/05/2022 00:00,26/06/2022 00:00,P03-2023,
R&B,INFORMATION TECHNOLOGY,SUPPLIES AND SERVICES,IT HARDWARE & SOFTWARE COSTS,4116,P118443-SERVICE-Mimecast S1 Email Filitering Service,22/06/2022 00:00,264322,700,IQ0022,IQUAL,30/05/2022 00:00,26/06/2022 00:00,P03-2023,
R&B,INFORMATION TECHNOLOGY,SUPPLIES AND SERVICES,IT HARDWARE & SOFTWARE COSTS,4116,P118443-SERVICE-Mimecast - Large file Send Facility,22/06/2022 00:00,264322,38,IQ0022,IQUAL,30/05/2022 00:00,26/06/2022 00:00,P03-2023,
,LEE VALLEY MARINA SPRINGFIELD,SUPPLIES AND SERVICES,IT HARDWARE & SOFTWARE COSTS,4116,ZEN INTERNET LTD,21/06/2022 00:00,264131,38,ZE0007,ZEN INTERNET LTD,30/05/2022 00:00,26/06/2022 00:00,P03-2023,
,LEE VALLEY MARINA SPRINGFIELD,SUPPLIES AND SERVICES,IT HARDWARE & SOFTWARE COSTS,4116,P118493-SERVICE-Annual Service Maintenance Fee-May & June 22,26/06/2022 00:00,264489,278.52,WI0209,WI FI SPARK LIMITED,30/05/2022 00:00,26/06/2022 00:00,P03-2023,
,LEE VALLEY MARINA STANSTEAD,SUPPLIES AND SERVICES,IT HARDWARE & SOFTWARE COSTS,4116,ZEN INTERNET LTD,21/06/2022 00:00,264130,31.32,ZE0007,ZEN INTERNET LTD,30/05/2022 00:00,26/06/2022 00:00,P03-2023,
,LEE VALLEY MARINA STANSTEAD,SUPPLIES AND SERVICES,IT HARDWARE & SOFTWARE COSTS,4116,P118493-SERVICE-Annual Service Maintenance Fee-May & June 22,26/06/2022 00:00,264489,436.72,WI0209,WI FI SPARK LIMITED,30/05/2022 00:00,26/06/2022 00:00,P03-2023,
,LEE VALLEY CAMPSITE,SUPPLIES AND SERVICES,IT HARDWARE & SOFTWARE COSTS,4116,P118493-SERVICE-Annual Service Maintenance Fee May & June 22,26/06/2022 00:00,264489,437.84,WI0209,WI FI SPARK LIMITED,30/05/2022 00:00,26/06/2022 00:00,P03-2023,
,LEE VALLEY CARAVAN PARK,SUPPLIES AND SERVICES,IT HARDWARE & SOFTWARE COSTS,4116,P118312-SERVICE-Fibre connection June 2022,21/06/2022 00:00,263990,835,PP0200,PPSNET LIMITED,30/05/2022 00:00,26/06/2022 00:00,P03-2023,
,LEE VALLEY CARAVAN PARK,SUPPLIES AND SERVICES,IT HARDWARE & SOFTWARE COSTS,4116,P118493-SERVICE-Annual Service Maintenance Fee-May & June 22,26/06/2022 00:00,264489,621.3,WI0209,WI FI SPARK LIMITED,30/05/2022 00:00,26/06/2022 00:00,P03-2023,
,LV LEISURE CENTRE CAMPSITE,SUPPLIES AND SERVICES,IT HARDWARE & SOFTWARE COSTS,4116,P118045-SERVICE-Annual Services Maintenance Fee - April 22,26/06/2022 00:00,262632,-46.55,WI0209,WI FI SPARK LIMITED,30/05/2022 00:00,26/06/2022 00:00,P03-2023,
,LV LEISURE CENTRE CAMPSITE,SUPPLIES AND SERVICES,IT HARDWARE & SOFTWARE COSTS,4116,P118493-SERVICE-Annual Service Maintenance Fee-May & June 22,26/06/2022 00:00,264489,326.84,WI0209,WI FI SPARK LIMITED,30/05/2022 00:00,26/06/2022 00:00,P03-2023,
R&B,INFORMATION TECHNOLOGY,SUPPLIES AND SERVICES,IT MAINTENANCE AGREEMENTS,4119,P118446-SERVICE-Managed Service Fee 6-10 Access Points,22/06/2022 00:00,262714,116.87,WI0209,WI FI SPARK LIMITED,30/05/2022 00:00,26/06/2022 00:00,P03-2023,
R&B,INFORMATION TECHNOLOGY,SUPPLIES AND SERVICES,IT MAINTENANCE AGREEMENTS,4119,P118218-SERVICE-Annual Data Network Data Support Services,26/06/2022 00:00,263680,5700,IQ0022,IQUAL,30/05/2022 00:00,26/06/2022 00:00,P03-2023,
,LEE VALLEY MARINA SPRINGFIELD,SUPPLIES AND SERVICES,IT MAINTENANCE AGREEMENTS,4119,P118315-SERVICE-Support & Data May 22,13/06/2022 00:00,263975,75.2,CY0653,CYBERTILL,30/05/2022 00:00,26/06/2022 00:00,P03-2023,
,LEE VALLEY MARINA SPRINGFIELD,SUPPLIES AND SERVICES,IT MAINTENANCE AGREEMENTS,4119,P118315-SERVICE-Support & Data Mayl 22,13/06/2022 00:00,263975,75.19,CY0653,CYBERTILL,30/05/2022 00:00,26/06/2022 00:00,P03-2023,
,LEE VALLEY CAMPSITE,SUPPLIES AND SERVICES,IT MAINTENANCE AGREEMENTS,4119,P117645-SERVICE-Monthly Subscription May 22 - Oct 22,21/06/2022 00:00,264150,145.5,NE0218,NETGUIDES LIMITED,30/05/2022 00:00,26/06/2022 00:00,P03-2023,
,LEE VALLEY CARAVAN PARK,SUPPLIES AND SERVICES,IT MAINTENANCE AGREEMENTS,4119,P117645-SERVICE-Monthly Subscriptions May 22 - Oct 22 - Dobbs,21/06/2022 00:00,264150,145.5,NE0218,NETGUIDES LIMITED,30/05/2022 00:00,26/06/2022 00:00,P03-2023,
P&V,ALMOST WILD CAMPSITE,SUPPLIES AND SERVICES,IT MAINTENANCE AGREEMENTS,4119,P117645-SERVICE-Monthly Subscription May 22 - Oct 22,21/06/2022 00:00,264150,145.5,NE0218,NETGUIDES LIMITED,30/05/2022 00:00,26/06/2022 00:00,P03-2023,
,LV LEISURE CENTRE CAMPSITE,SUPPLIES AND SERVICES,IT MAINTENANCE AGREEMENTS,4119,P117645-SERVICE-Monthly Subscription May 22 - Oct 22 - Edmont,21/06/2022 00:00,264150,145.5,NE0218,NETGUIDES LIMITED,30/05/2022 00:00,26/06/2022 00:00,P03-2023,
,LV LEISURE CENTRE GOLF COURSE,SUPPLIES AND SERVICES,IT MAINTENANCE AGREEMENTS,4119,P118310-SERVICE-Digitickets Services Mayl 2022,21/06/2022 00:00,263998,620.85,DI0304,DIGITAL TICKETING SYSTEMS LTD (DIGITICKETS),30/05/2022 00:00,26/06/2022 00:00,P03-2023,
P&V,NORTH AREA RANGERS,SUPPLIES AND SERVICES,MATERIALS (COUNTERS),4123,P118267-SERVICE-Replace Meadgate Visitor Counter,22/06/2022 00:00,264105,890,HE0418,HEALTHMATIC LTD,30/05/2022 00:00,26/06/2022 00:00,P03-2023,
P&V,RIVER LEE COUNTRY PARK,SUPPLIES AND SERVICES,MATERIALS (LOCKS),4124,P118206-SERVICE-5x Tigris OEM Replacment Differ Key,22/06/2022 00:00,263991,84.45,SI0675,SPILLER DOOR CONTROLS LTD,30/05/2022 00:00,26/06/2022 00:00,P03-2023,
P&V,RIVER LEE COUNTRY PARK,SUPPLIES AND SERVICES,MATERIALS (LOCKS),4124,KEY CUT,13/06/2022 00:00,264088,8.33,FI0001,DIRECTOR OF FINANCE - CASH,30/05/2022 00:00,26/06/2022 00:00,P03-2023,
,LEE VALLEY CARAVAN PARK,SUPPLIES AND SERVICES,MATERIALS (GROUNDS MAINT),4125,P117813-SERVICE-10m3 top soil,07/06/2022 00:00,263730,88.01,TH0051,THOMPSONS OF CREWS HILL LTD,30/05/2022 00:00,26/06/2022 00:00,P03-2023,
P&V,MYDDELTON HOUSE GARDENS,SUPPLIES AND SERVICES,MATERIALS (GROUNDS MAINT),4125,P118331-SERVICE-gardens order june 22,21/06/2022 00:00,264291,504.43,FA0149,FARGRO LIMITED,30/05/2022 00:00,26/06/2022 00:00,P03-2023,
P&V,MYDDELTON HOUSE GARDENS,SUPPLIES AND SERVICES,MATERIALS (PLANTS & SHRUBS),4126,P118129-SERVICE-gardens order may 22,14/06/2022 00:00,264108,570.5,CH0718,CHAPEL COTTAGE PLANTS LIMITED,30/05/2022 00:00,26/06/2022 00:00,P03-2023,
P&V,MYDDELTON HOUSE GARDENS,SUPPLIES AND SERVICES,MATERIALS (PLANTS & SHRUBS),4126,P118374-SERVICE-gardens order june 22,21/06/2022 00:00,264243,241.53,GG0242,GREEN GARDENER,30/05/2022 00:00,26/06/2022 00:00,P03-2023,
,LEE VALLEY MARINA SPRINGFIELD,SUPPLIES AND SERVICES,MATERIALS (TOOLS & PLANT),4127,P117527-SERVICE-Xylem Service contract Renewal Ref XY00277,22/06/2022 00:00,264351,802.31,CL0039,XYLEM WATER SOLUTIONS UK  LIMITED,30/05/2022 00:00,26/06/2022 00:00,P03-2023,
,LEE VALLEY MARINA SPRINGFIELD,SUPPLIES AND SERVICES,MATERIALS (TOOLS & PLANT),4127,P118468-SERVICE-2 x MAKB09765 Makita specialized metal saw,26/06/2022 00:00,264512,159.98,IN0011,INDUSTRIAL TOOL SUPPLIES (LONDON) LTD,30/05/2022 00:00,26/06/2022 00:00,P03-2023,
,LEE VALLEY MARINA SPRINGFIELD,SUPPLIES AND SERVICES,MATERIALS (TOOLS & PLANT),4127,P118468-SERVICE-MAKBL1850BPK2 Makita BL1850B 5.0Ah 18v LXT,26/06/2022 00:00,264512,119.99,IN0011,INDUSTRIAL TOOL SUPPLIES (LONDON) LTD,30/05/2022 00:00,26/06/2022 00:00,P03-2023,
,SPRINGFIELD RECHARGEABLE WORKS,SUPPLIES AND SERVICES,MATERIALS (ENG OTHER),4130,P118044-SERVICE-To provide insurance @ 15%,07/06/2022 00:00,263851,210,BA0339,BALDWINS CRANE HIRE LTD,30/05/2022 00:00,26/06/2022 00:00,P03-2023,
,SPRINGFIELD RECHARGEABLE WORKS,SUPPLIES AND SERVICES,MATERIALS (ENG OTHER),4130,P118044-SERVICE-To hire 110 ton crane on Tuesday 24-5-2022,07/06/2022 00:00,263851,1400,BA0339,BALDWINS CRANE HIRE LTD,30/05/2022 00:00,26/06/2022 00:00,P03-2023,
,LEE VALLEY MARINA STANSTEAD,SUPPLIES AND SERVICES,MATERIALS (ENG OTHER),4130,P118079-SERVICE-Silicon Hose - ASAP,07/06/2022 00:00,263886,17.33,AS0036,ASAP SUPPLIES,30/05/2022 00:00,26/06/2022 00:00,P03-2023,
,STANSTEAD RECHARGEABLE WORKS,SUPPLIES AND SERVICES,MATERIALS (ENG OTHER),4130,P118320-SERVICE-BOC 12mth rental green cyclinder,14/06/2022 00:00,263854,145.45,BO0015,BOC LTD,30/05/2022 00:00,26/06/2022 00:00,P03-2023,
,STANSTEAD RECHARGEABLE WORKS,SUPPLIES AND SERVICES,MATERIALS (ENG OTHER),4130,P118196-SERVICE-oil disposal/waste transfer,15/06/2022 00:00,263932,520,BR0635,BRENT OIL CONTRACTORS LTD,30/05/2022 00:00,26/06/2022 00:00,P03-2023,
,LEE VALLEY CARAVAN PARK,SUPPLIES AND SERVICES,MATERIALS (ENG OTHER),4130,P118165-SERVICE-Signs fro LPG and Playarea,07/06/2022 00:00,263659,102,SL0528,SLAM SIGNS LTD,30/05/2022 00:00,26/06/2022 00:00,P03-2023,
,LEE VALLEY WHITE WATER CENTRE,SUPPLIES AND SERVICES,MATERIALS (CHEMICALS),4131,P115989-SERVICE-Chemicals from Dec to March,20/06/2022 00:00,263936,639.2,AL0074,BRENNTAG UK GROUP LIMITED,30/05/2022 00:00,26/06/2022 00:00,P03-2023,
P&V,LEE VALLEY FARM HOLYFIELDHALL,SUPPLIES AND SERVICES,FEED,4133,P118233-SERVICE-Dairy Meal,13/06/2022 00:00,263666,9920.26,HE0449,HEYGATES COUNTRY FEEDS LTD,30/05/2022 00:00,26/06/2022 00:00,P03-2023,
P&V,LEE VALLEY FARM HOLYFIELDHALL,SUPPLIES AND SERVICES,FEED,4133,P118372-SERVICE-Selcoplus,20/06/2022 00:00,264159,4296.18,BO0246,FOR FARMERS UK LTD,30/05/2022 00:00,26/06/2022 00:00,P03-2023,
P&V,LEE VALLEY FARM HOLYFIELDHALL,SUPPLIES AND SERVICES,FEED,4133,P118495-SERVICE-Translac/Prime Rearer/Optima,26/06/2022 00:00,264487,6490.36,BO0246,FOR FARMERS UK LTD,30/05/2022 00:00,26/06/2022 00:00,P03-2023,
P&V,LEE VALLEY FARM HOLYFIELDHALL,SUPPLIES AND SERVICES,FEED,4133,P118498-SERVICE-Golden Flake,26/06/2022 00:00,264518,1990.8,BO0246,FOR FARMERS UK LTD,30/05/2022 00:00,26/06/2022 00:00,P03-2023,
P&V,LEE VALLEY FARM HOLYFIELDHALL,SUPPLIES AND SERVICES,SEEDS,4135,P118370-SERVICE-Seed Test,15/06/2022 00:00,264147,46.95,HA0013,HARLOW AGRICULTURAL MERCHANTS,30/05/2022 00:00,26/06/2022 00:00,P03-2023,
P&V,LEE VALLEY FARM HOLYFIELDHALL,SUPPLIES AND SERVICES,SPRAYS,4136,P118278-SERVICE-Adama Anthem,13/06/2022 00:00,263678,741,HA0013,HARLOW AGRICULTURAL MERCHANTS,30/05/2022 00:00,26/06/2022 00:00,P03-2023,
P&V,LEE VALLEY FARM HOLYFIELDHALL,SUPPLIES AND SERVICES,SPRAYS,4136,P118234-SERVICE-Sprays,13/06/2022 00:00,263850,3795.35,HA0013,HARLOW AGRICULTURAL MERCHANTS,30/05/2022 00:00,26/06/2022 00:00,P03-2023,
P&V,LEE VALLEY FARM HOLYFIELDHALL,SUPPLIES AND SERVICES,SPRAYS,4136,P118236-SERVICE-Sprays,07/06/2022 00:00,263872,115.1,HA0013,HARLOW AGRICULTURAL MERCHANTS,30/05/2022 00:00,26/06/2022 00:00,P03-2023,
P&V,LEE VALLEY FARM HOLYFIELDHALL,SUPPLIES AND SERVICES,DAIRY SUNDRIES,4138,P117612-SERVICE-Dairy Sundries,13/06/2022 00:00,263664,63.41,FA0099,FARM & COUNTRY SUPPLIES LTD,30/05/2022 00:00,26/06/2022 00:00,P03-2023,
P&V,LEE VALLEY FARM HOLYFIELDHALL,SUPPLIES AND SERVICES,DAIRY SUNDRIES,4138,P118237-SERVICE-Bull Semen,07/06/2022 00:00,263669,810,CO0084,COGENT BREEDING LTD,30/05/2022 00:00,26/06/2022 00:00,P03-2023,
P&V,LEE VALLEY FARM HOLYFIELDHALL,SUPPLIES AND SERVICES,DAIRY SUNDRIES,4138,P117612-SERVICE-Dairy Sundries,13/06/2022 00:00,263688,35.5,FA0099,FARM & COUNTRY SUPPLIES LTD,30/05/2022 00:00,26/06/2022 00:00,P03-2023,
P&V,LEE VALLEY FARM HOLYFIELDHALL,SUPPLIES AND SERVICES,DAIRY SUNDRIES,4138,P118012-SERVICE-Cattle Breeding Planner,13/06/2022 00:00,263699,550,CA0079,THE CATTLE BREEDING CONSULTANCY,30/05/2022 00:00,26/06/2022 00:00,P03-2023,
P&V,LEE VALLEY FARM HOLYFIELDHALL,SUPPLIES AND SERVICES,DAIRY SUNDRIES,4138,P117594-SERVICE-Dairy Sundries,07/06/2022 00:00,263864,122.76,MI0023,MILL DAIRY SERVICES,30/05/2022 00:00,26/06/2022 00:00,P03-2023,
P&V,LEE VALLEY FARM HOLYFIELDHALL,SUPPLIES AND SERVICES,DAIRY SUNDRIES,4138,P118235-SERVICE-New Gate,07/06/2022 00:00,263865,390.27,MI0023,MILL DAIRY SERVICES,30/05/2022 00:00,26/06/2022 00:00,P03-2023,
P&V,LEE VALLEY FARM HOLYFIELDHALL,SUPPLIES AND SERVICES,DAIRY SUNDRIES,4138,P117609-SERVICE-Dead Animal Removal,07/06/2022 00:00,263867,280,MA0074,W MARTIN & SON LIMITED,30/05/2022 00:00,26/06/2022 00:00,P03-2023,
P&V,LEE VALLEY FARM HOLYFIELDHALL,SUPPLIES AND SERVICES,DAIRY SUNDRIES,4138,P118039-SERVICE-OCD Renegade,07/06/2022 00:00,263868,915,WO0350,WORLD WIDE SIRES,30/05/2022 00:00,26/06/2022 00:00,P03-2023,
P&V,LEE VALLEY FARM HOLYFIELDHALL,SUPPLIES AND SERVICES,DAIRY SUNDRIES,4138,P117958-SERVICE-Liquid Nitrogen,07/06/2022 00:00,263869,61.25,GE0005,GENUS BREEDING LTD,30/05/2022 00:00,26/06/2022 00:00,P03-2023,
P&V,LEE VALLEY FARM HOLYFIELDHALL,SUPPLIES AND SERVICES,DAIRY SUNDRIES,4138,P117968-SERVICE-Dairy Chemcials as Per Quote,13/06/2022 00:00,263944,3972,MI0023,MILL DAIRY SERVICES,30/05/2022 00:00,26/06/2022 00:00,P03-2023,
P&V,LEE VALLEY FARM HOLYFIELDHALL,SUPPLIES AND SERVICES,DAIRY SUNDRIES,4138,P117609-SERVICE-Dead Animal Removal,13/06/2022 00:00,264007,275,MA0074,W MARTIN & SON LIMITED,30/05/2022 00:00,26/06/2022 00:00,P03-2023,
P&V,LEE VALLEY FARM HOLYFIELDHALL,SUPPLIES AND SERVICES,DAIRY SUNDRIES,4138,P117609-SERVICE-Dead Animal Removal,15/06/2022 00:00,264119,140,MA0074,W MARTIN & SON LIMITED,30/05/2022 00:00,26/06/2022 00:00,P03-2023,
P&V,LEE VALLEY FARM HOLYFIELDHALL,SUPPLIES AND SERVICES,DAIRY SUNDRIES,4138,P118371-SERVICE-Dairy Sundries,15/06/2022 00:00,264156,112.5,MI0023,MILL DAIRY SERVICES,30/05/2022 00:00,26/06/2022 00:00,P03-2023,
P&V,LEE VALLEY FARM HOLYFIELDHALL,SUPPLIES AND SERVICES,DAIRY SUNDRIES,4138,P118041-SERVICE-Bull Semen,26/06/2022 00:00,264483,990,MA0405,MASTERGEN LTD,30/05/2022 00:00,26/06/2022 00:00,P03-2023,
,LV CAMPSITE CARAVAN SALES,SUPPLIES AND SERVICES,DECKING PURCHASES,4173,P117883-SERVICE-Deck gates for plot 102,26/06/2022 00:00,264388,798.7,LO0459,LONDON LODGES UK,30/05/2022 00:00,26/06/2022 00:00,P03-2023,
,LV CAMPSITE CARAVAN SALES,SUPPLIES AND SERVICES,DECKING PURCHASES,4173,P118096-SERVICE-Deck for plot 46 sewardstone,26/06/2022 00:00,264526,11224,LO0459,LONDON LODGES UK,30/05/2022 00:00,26/06/2022 00:00,P03-2023,
,LEE VALLEY CARAVAN PARK,SUPPLIES AND SERVICES,MISCELLANEOUS CARAVAN COSTS,4174,P118208-SERVICE-leaking pipe on plot 115,07/06/2022 00:00,263861,195,SO0400,SOUTHERN GREEN SERVICES LIMITED,30/05/2022 00:00,26/06/2022 00:00,P03-2023,
,LEE VALLEY CARAVAN PARK,SUPPLIES AND SERVICES,MISCELLANEOUS CARAVAN COSTS,4174,P118209-SERVICE-Sewage leak under plot 85,07/06/2022 00:00,263862,405,SO0400,SOUTHERN GREEN SERVICES LIMITED,30/05/2022 00:00,26/06/2022 00:00,P03-2023,
,LEE VALLEY CARAVAN PARK,SUPPLIES AND SERVICES,CONSUMABLES - LODGES,4181,P118210-SERVICE-Mainenance on the lodges,07/06/2022 00:00,263863,230,SO0400,SOUTHERN GREEN SERVICES LIMITED,30/05/2022 00:00,26/06/2022 00:00,P03-2023,
,LEE VALLEY MARINA STANSTEAD,SUPPLIES AND SERVICES,CLOTHING & UNIFORMS,4225,P118325-SERVICE-uniform - 2 x shorts JJ,20/06/2022 00:00,264155,40.95,DI0017,DIRECT BOOT & SHOE SUPPLIES,30/05/2022 00:00,26/06/2022 00:00,P03-2023,
P&V,SOUTH AREA RANGERS,SUPPLIES AND SERVICES,CLOTHING & UNIFORMS,4225,P118483-SERVICE-4x Peru Ladies Trousers - 44550 Black,26/06/2022 00:00,264563,97.12,IL0177,KEELA INTERNATION LTD,30/05/2022 00:00,26/06/2022 00:00,P03-2023,
P&V,SOUTH AREA RANGERS,SUPPLIES AND SERVICES,CLOTHING & UNIFORMS,4225,P118483-SERVICE-Delivery,26/06/2022 00:00,264563,8,IL0177,KEELA INTERNATION LTD,30/05/2022 00:00,26/06/2022 00:00,P03-2023,
P&V,RIVER LEE COUNTRY PARK,SUPPLIES AND SERVICES,CLOTHING & UNIFORMS,4225,P118478-SERVICE-2x Uniform Sweatshirts - UN014,26/06/2022 00:00,264498,33.98,DI0017,DIRECT BOOT & SHOE SUPPLIES,30/05/2022 00:00,26/06/2022 00:00,P03-2023,
CEO,CHIEF EXECUTIVE,SUPPLIES AND SERVICES,OFFICE EXPENSES,4311,P118477-SERVICE-Post-It Notes (Pack of 6) 3M93191,26/06/2022 00:00,264561,11.85,TH0008,JKL SOLUTIONS LTD,30/05/2022 00:00,26/06/2022 00:00,P03-2023,
CEO,PR/COMMUNICATIONS,SUPPLIES AND SERVICES,OFFICE EXPENSES,4311,"P117754-SERVICE-LVRPA business cards - 4 versions, 100 of eac",13/06/2022 00:00,264005,66,BE0505,BELMONT PRESS,30/05/2022 00:00,26/06/2022 00:00,P03-2023,
,LEE VALLEY MARINA STANSTEAD,SUPPLIES AND SERVICES,OFFICE EXPENSES,4311,P118375-SERVICE-JKL sun cream and dispenser,20/06/2022 00:00,264296,61.23,TH0008,JKL SOLUTIONS LTD,30/05/2022 00:00,26/06/2022 00:00,P03-2023,
,LEE VALLEY MARINA STANSTEAD,SUPPLIES AND SERVICES,OFFICE EXPENSES,4311,P118405-SERVICE-air cooler for office,22/06/2022 00:00,264337,66.66,SC0057,SCREWFIX DIRECT LTD,30/05/2022 00:00,26/06/2022 00:00,P03-2023,
,LEE VALLEY CAMPSITE,SUPPLIES AND SERVICES,OFFICE EXPENSES,4311,P118358-SERVICE-Annual tv Licence 22/23,15/06/2022 00:00,264127,159,TV0065,TV LICENSING,30/05/2022 00:00,26/06/2022 00:00,P03-2023,
,LEE VALLEY CARAVAN PARK,SUPPLIES AND SERVICES,OFFICE EXPENSES,4311,P118334-SERVICE-Office stationery,26/06/2022 00:00,264342,100.89,TH0008,JKL SOLUTIONS LTD,30/05/2022 00:00,26/06/2022 00:00,P03-2023,
P&V,RIVER LEE COUNTRY PARK,SUPPLIES AND SERVICES,OFFICE EXPENSES,4311,OFFICE EXPENSES,13/06/2022 00:00,264088,2,FI0001,DIRECTOR OF FINANCE - CASH,30/05/2022 00:00,26/06/2022 00:00,P03-2023,
P&V,RIVER LEE COUNTRY PARK,SUPPLIES AND SERVICES,OFFICE EXPENSES,4311,OFFICE EXPENSES,13/06/2022 00:00,264088,7.46,FI0001,DIRECTOR OF FINANCE - CASH,30/05/2022 00:00,26/06/2022 00:00,P03-2023,
P&V,RIVER LEE COUNTRY PARK,SUPPLIES AND SERVICES,OFFICE EXPENSES,4311,OFICE EXPENSES,13/06/2022 00:00,264088,10,FI0001,DIRECTOR OF FINANCE - CASH,30/05/2022 00:00,26/06/2022 00:00,P03-2023,
,LV HOCKEY AND TENNIS CENTRE,SUPPLIES AND SERVICES,OFFICE EXPENSES,4311,P115197-SERVICE-post it recycled notes 100951,08/06/2022 00:00,263239,52.8,EA0385,EASTERN SHIRE PURCHASING ORGANISATION (ESPO),30/05/2022 00:00,26/06/2022 00:00,P03-2023,
,LV HOCKEY AND TENNIS CENTRE,SUPPLIES AND SERVICES,OFFICE EXPENSES,4311,P115197-SERVICE-p hand writer x2 35259,08/06/2022 00:00,263239,2.65,EA0385,EASTERN SHIRE PURCHASING ORGANISATION (ESPO),30/05/2022 00:00,26/06/2022 00:00,P03-2023,
,LV HOCKEY AND TENNIS CENTRE,SUPPLIES AND SERVICES,OFFICE EXPENSES,4311,EASTERN SHIRE PURCHASING ORGAN,08/06/2022 00:00,263240,47.95,EA0385,EASTERN SHIRE PURCHASING ORGANISATION (ESPO),30/05/2022 00:00,26/06/2022 00:00,P03-2023,
,LV HOCKEY AND TENNIS CENTRE,SUPPLIES AND SERVICES,OFFICE EXPENSES,4311,EASTERN SHIRE PURCHASING ORGAN,08/06/2022 00:00,263241,20.87,EA0385,EASTERN SHIRE PURCHASING ORGANISATION (ESPO),30/05/2022 00:00,26/06/2022 00:00,P03-2023,
,LV HOCKEY AND TENNIS CENTRE,SUPPLIES AND SERVICES,OFFICE EXPENSES,4311,EASTERN SHIRE PURCHASING ORGAN,08/06/2022 00:00,263242,110.6,EA0385,EASTERN SHIRE PURCHASING ORGANISATION (ESPO),30/05/2022 00:00,26/06/2022 00:00,P03-2023,
,LV LEISURE CENTRE CAMPSITE,SUPPLIES AND SERVICES,OFFICE EXPENSES,4311,P118388-SERVICE-stationary,21/06/2022 00:00,263663,83.71,TH0008,JKL SOLUTIONS LTD,30/05/2022 00:00,26/06/2022 00:00,P03-2023,
,LV LEISURE CENTRE CAMPSITE,SUPPLIES AND SERVICES,OFFICE EXPENSES,4311,P118431-SERVICE-stationary,26/06/2022 00:00,264375,30.8,TH0008,JKL SOLUTIONS LTD,30/05/2022 00:00,26/06/2022 00:00,P03-2023,
R&B,INFORMATION TECHNOLOGY,SUPPLIES AND SERVICES,PHOTOCOPYING,4314,KONICA MINOLTA BUSINESS SOLUTI,26/06/2022 00:00,264508,546.1,KO0071,KONICA MINOLTA BUSINESS SOLUTIONS ( UK) LTD,30/05/2022 00:00,26/06/2022 00:00,P03-2023,
,LEE VALLEY MARINA SPRINGFIELD,SUPPLIES AND SERVICES,PHOTOCOPYING,4314,KONICA MINOLTA BUSINESS SOLUTI,13/06/2022 00:00,263538,69.95,KO0071,KONICA MINOLTA BUSINESS SOLUTIONS ( UK) LTD,30/05/2022 00:00,26/06/2022 00:00,P03-2023,
,LEE VALLEY MARINA SPRINGFIELD,SUPPLIES AND SERVICES,PHOTOCOPYING,4314,KONICA MINOLTA BUSINESS SOLUTI,13/06/2022 00:00,263539,101.07,KO0071,KONICA MINOLTA BUSINESS SOLUTIONS ( UK) LTD,30/05/2022 00:00,26/06/2022 00:00,P03-2023,
CEO,LEGAL SERVICES,SUPPLIES AND SERVICES,SUBSCRIPTIONS,4334,P118348-SERVICE-Public Law Partnership Subscription,20/06/2022 00:00,264165,400,ES0268,ESSEX COUNTY COUNCIL,30/05/2022 00:00,26/06/2022 00:00,P03-2023,
P&V,LEE VALLEY FARM HOLYFIELDHALL,SUPPLIES AND SERVICES,SUBSCRIPTIONS,4334,P117608-SERVICE-Subs,15/06/2022 00:00,263997,396.28,NA0005,NATIONAL MILK RECORDS PLC,30/05/2022 00:00,26/06/2022 00:00,P03-2023,
P&V,MYDDELTON HOUSE,SUPPLIES AND SERVICES,POSTAGE & MAILING,4445,PITNEY BOWES PURCHASE POWER,21/06/2022 00:00,264292,2.85,PI0021,PITNEY BOWES PURCHASE POWER,30/05/2022 00:00,26/06/2022 00:00,P03-2023,
P&V,MYDDELTON HOUSE,SUPPLIES AND SERVICES,POSTAGE & MAILING,4445,PITNEY BOWES PURCHASE POWER,21/06/2022 00:00,264293,0.57,PI0021,PITNEY BOWES PURCHASE POWER,30/05/2022 00:00,26/06/2022 00:00,P03-2023,
P&V,MYDDELTON HOUSE,SUPPLIES AND SERVICES,POSTAGE & MAILING,4445,PITNEY BOWES PURCHASE POWER,21/06/2022 00:00,264293,0.08,PI0021,PITNEY BOWES PURCHASE POWER,30/05/2022 00:00,26/06/2022 00:00,P03-2023,
P&V,VOLUNTEERS (L&E),SUPPLIES AND SERVICES,POSTAGE & MAILING,4445,ROYAL MAIL GROUP PLC,26/06/2022 00:00,264237,108.54,RO0022,ROYAL MAIL GROUP PLC,30/05/2022 00:00,26/06/2022 00:00,P03-2023,
CEO,PR/COMMUNICATIONS,SUPPLIES AND SERVICES,TELEPHONES (MOBILE),4484,P118228-SERVICE-iPhone 11,21/06/2022 00:00,264268,406,VO0010,VODAFONE  LIMITED (CORPORATE),30/05/2022 00:00,26/06/2022 00:00,P03-2023,
R&B,REVENUE SUSPENSE (AUTHORITY),SUPPLIES AND SERVICES,TELEPHONES (MOBILE),4484,GAMMA TELECOM LTD,21/06/2022 00:00,264128,694.65,GA0432,GAMMA TELECOM LTD,30/05/2022 00:00,26/06/2022 00:00,P03-2023,
R&B,REVENUE SUSPENSE (AUTHORITY),SUPPLIES AND SERVICES,TELEPHONES (MOBILE),4484,VODAFONE  LIMITED (CORPORATE),26/06/2022 00:00,264550,15,VO0010,VODAFONE  LIMITED (CORPORATE),30/05/2022 00:00,26/06/2022 00:00,P03-2023,
R&B,REVENUE SUSPENSE (AUTHORITY),SUPPLIES AND SERVICES,TELEPHONES (MOBILE),4484,VODAFONE  LIMITED (CORPORATE),26/06/2022 00:00,264550,302.77,VO0010,VODAFONE  LIMITED (CORPORATE),30/05/2022 00:00,26/06/2022 00:00,P03-2023,
,LEE VALLEY CAMPSITE,SUPPLIES AND SERVICES,MARKETING,4603,P118292-SERVICE-Play area & sand signs,13/06/2022 00:00,263914,106,SL0528,SLAM SIGNS LTD,30/05/2022 00:00,26/06/2022 00:00,P03-2023,
,LEE VALLEY CAMPSITE,SUPPLIES AND SERVICES,MARKETING,4603,P118363-SERVICE-20 x Fire signs,15/06/2022 00:00,264162,48.3,FI0215,VALUE  PRODUCTS LTD,30/05/2022 00:00,26/06/2022 00:00,P03-2023,
P&V,RIVER LEE COUNTRY PARK,SUPPLIES AND SERVICES,MARKETING,4603,P118022-SERVICE-Printed Foamex Panel,21/06/2022 00:00,264067,169.5,SI0434,SIGNS & IMAGING ( SOUTHEAST) LIMITED,30/05/2022 00:00,26/06/2022 00:00,P03-2023,
P&V,EVENTS MANAGEMENT (PR),SUPPLIES AND SERVICES,MARKETING,4603,P118212-SERVICE-3m x 1m on black backed vinyl with eyelets,26/06/2022 00:00,264324,132,MA0167,MARTIN DANNELL & CO LTD,30/05/2022 00:00,26/06/2022 00:00,P03-2023,
,LEE VALLEY WATERWORKS CENTRE,SUPPLIES AND SERVICES,PEST CONTROL,4625,P118083-SERVICE-Pest Control - WaterWorks - Apr - Jun,07/06/2022 00:00,263445,165,VE0006,VERMINATE CITY & RURAL PEST CONTROL LTD,30/05/2022 00:00,26/06/2022 00:00,P03-2023,
P&V,LEE VALLEY FARM HOLYFIELDHALL,SUPPLIES AND SERVICES,PEST CONTROL,4625,P118190-SERVICE-Annual Pest Control,07/06/2022 00:00,263698,1428,FR0230,FRED BURNELL,30/05/2022 00:00,26/06/2022 00:00,P03-2023,
,LEE VALLEY MARINA SPRINGFIELD,SUPPLIES AND SERVICES,MERCHANT PROCESSING CHARGES,4641,WORLDPAY,13/06/2022 00:00,264110,30,WO0338,WORLDPAY,30/05/2022 00:00,26/06/2022 00:00,P03-2023,
,LEE VALLEY MARINA STANSTEAD,SUPPLIES AND SERVICES,MERCHANT PROCESSING CHARGES,4641,WORLDPAY,13/06/2022 00:00,264110,30,WO0338,WORLDPAY,30/05/2022 00:00,26/06/2022 00:00,P03-2023,
R&B,FINANCE & RESOURCES MANAGEMENT,SUPPLIES AND SERVICES,DEBT RECOVERY FEES,4646,LEGAL RECOVERIES AND COLLECTIO,22/06/2022 00:00,264353,76.78,LE0069,LEGAL RECOVERIES AND COLLECTIONS LIMITED,30/05/2022 00:00,26/06/2022 00:00,P03-2023,
R&B,FINANCE & RESOURCES MANAGEMENT,SUPPLIES AND SERVICES,DEBT RECOVERY FEES,4646,P117729-SERVICE-DEBT RECOVERY FEES 2022/2023,22/06/2022 00:00,264353,126.78,LE0069,LEGAL RECOVERIES AND COLLECTIONS LIMITED,30/05/2022 00:00,26/06/2022 00:00,P03-2023,
R&B,FINANCE & RESOURCES MANAGEMENT,SUPPLIES AND SERVICES,DEBT RECOVERY FEES,4646,LEGAL RECOVERIES AND COLLECTIO,22/06/2022 00:00,264353,-126.78,LE0069,LEGAL RECOVERIES AND COLLECTIONS LIMITED,30/05/2022 00:00,26/06/2022 00:00,P03-2023,
R&B,FINANCE & RESOURCES MANAGEMENT,SUPPLIES AND SERVICES,DEBT RECOVERY FEES,4646,LEGAL RECOVERIES AND COLLECTIO,22/06/2022 00:00,264353,50,LE0069,LEGAL RECOVERIES AND COLLECTIONS LIMITED,30/05/2022 00:00,26/06/2022 00:00,P03-2023,
P&V,NORTH AREA RANGERS,SUPPLIES AND SERVICES,SECURITY,4650,"P118380-SERVICE-Additional Security at Coopermill for 10, 11",21/06/2022 00:00,264340,228,PA0059,PARKGUARD LTD,30/05/2022 00:00,26/06/2022 00:00,P03-2023,
P&V,NORTH AREA RANGERS,SUPPLIES AND SERVICES,SECURITY,4650,"P118380-SERVICE-Additional Security at Coopermill for 16, 17,",21/06/2022 00:00,264340,684,PA0059,PARKGUARD LTD,30/05/2022 00:00,26/06/2022 00:00,P03-2023,
P&V,NORTH AREA RANGERS,SUPPLIES AND SERVICES,SECURITY,4650,P118425-SERVICE-Additional Security at Glen Faba,26/06/2022 00:00,264535,418,PA0059,PARKGUARD LTD,30/05/2022 00:00,26/06/2022 00:00,P03-2023,
P&V,SOUTH AREA RANGERS,SUPPLIES AND SERVICES,SECURITY,4650,P118230-SERVICE-Additional Security at Coppermill/Walthamstow,13/06/2022 00:00,263934,1025,PA0059,PARKGUARD LTD,30/05/2022 00:00,26/06/2022 00:00,P03-2023,
P&V,SOUTH AREA RANGERS,SUPPLIES AND SERVICES,SECURITY,4650,"P118418-SERVICE-Rave Cover - Coppermill, Walthamstow Marsh ar",26/06/2022 00:00,264355,456,PA0059,PARKGUARD LTD,30/05/2022 00:00,26/06/2022 00:00,P03-2023,
CEO,LVLC SERVICE CHARGE,SUPPLIES AND SERVICES,SECURITY,4650,P118250-SERVICE-Security Costs Incurred During Traveller Incu,26/06/2022 00:00,264339,3306,PA0059,PARKGUARD LTD,30/05/2022 00:00,26/06/2022 00:00,P03-2023,
R&B,PERFORMANCE MANAGEMENT,SUPPLIES AND SERVICES,OFFSITE ARCHIVED STORAGE,4667,P118416-SERVICE-Off site archive May 2022,21/06/2022 00:00,263970,379.88,DA0154,RESTORE PLC,30/05/2022 00:00,26/06/2022 00:00,P03-2023,
P&V,LEE VALLEY FARM HOLYFIELDHALL,THIRD PARTY PAYMENTS,VETERINARY SERVICES,4718,HAMPDEN VETERINARY HOSPITAL,21/06/2022 00:00,264109,9.31,HA0443,HAMPDEN VETERINARY HOSPITAL,30/05/2022 00:00,26/06/2022 00:00,P03-2023,
P&V,LEE VALLEY FARM HOLYFIELDHALL,THIRD PARTY PAYMENTS,VETERINARY SERVICES,4718,HAMPDEN VETERINARY HOSPITAL,21/06/2022 00:00,264109,-2373.15,HA0443,HAMPDEN VETERINARY HOSPITAL,30/05/2022 00:00,26/06/2022 00:00,P03-2023,
P&V,LEE VALLEY FARM HOLYFIELDHALL,THIRD PARTY PAYMENTS,VETERINARY SERVICES,4718,HAMPDEN VETERINARY HOSPITAL,21/06/2022 00:00,264109,2363.84,HA0443,HAMPDEN VETERINARY HOSPITAL,30/05/2022 00:00,26/06/2022 00:00,P03-2023,
P&V,LEE VALLEY FARM HOLYFIELDHALL,THIRD PARTY PAYMENTS,VETERINARY SERVICES,4718,P118367-SERVICE-Vets,21/06/2022 00:00,264109,2373.15,HA0443,HAMPDEN VETERINARY HOSPITAL,30/05/2022 00:00,26/06/2022 00:00,P03-2023,
P&V,MYDDLETON HSE HERITAGE CENTRE,SUPPLIES AND SERVICES,NET CATERING PURCHASES,4777,BIDFOOD,20/06/2022 00:00,262765,4.88,360001,BIDFOOD,30/05/2022 00:00,26/06/2022 00:00,P03-2023,
P&V,MYDDLETON HSE HERITAGE CENTRE,SUPPLIES AND SERVICES,NET CATERING PURCHASES,4777,BIDFOOD,20/06/2022 00:00,262765,174.58,360001,BIDFOOD,30/05/2022 00:00,26/06/2022 00:00,P03-2023,
P&V,MYDDLETON HSE HERITAGE CENTRE,SUPPLIES AND SERVICES,NET CATERING PURCHASES,4777,BIDFOOD,20/06/2022 00:00,262765,-179.46,360001,BIDFOOD,30/05/2022 00:00,26/06/2022 00:00,P03-2023,
P&V,MYDDLETON HSE HERITAGE CENTRE,SUPPLIES AND SERVICES,NET CATERING PURCHASES,4777,P118337-SERVICE-food/drinks order may 22,20/06/2022 00:00,262765,179.46,360001,BIDFOOD,30/05/2022 00:00,26/06/2022 00:00,P03-2023,
P&V,MYDDLETON HSE HERITAGE CENTRE,SUPPLIES AND SERVICES,NET CATERING PURCHASES,4777,BIDFOOD,20/06/2022 00:00,263162,-365.15,360001,BIDFOOD,30/05/2022 00:00,26/06/2022 00:00,P03-2023,
P&V,MYDDLETON HSE HERITAGE CENTRE,SUPPLIES AND SERVICES,NET CATERING PURCHASES,4777,P118337-SERVICE-food/drinks order may 22,20/06/2022 00:00,263162,365.15,360001,BIDFOOD,30/05/2022 00:00,26/06/2022 00:00,P03-2023,
P&V,MYDDLETON HSE HERITAGE CENTRE,SUPPLIES AND SERVICES,NET CATERING PURCHASES,4777,BIDFOOD,20/06/2022 00:00,263162,40.76,360001,BIDFOOD,30/05/2022 00:00,26/06/2022 00:00,P03-2023,
P&V,MYDDLETON HSE HERITAGE CENTRE,SUPPLIES AND SERVICES,NET CATERING PURCHASES,4777,BIDFOOD,20/06/2022 00:00,263162,324.39,360001,BIDFOOD,30/05/2022 00:00,26/06/2022 00:00,P03-2023,
P&V,MYDDLETON HSE HERITAGE CENTRE,SUPPLIES AND SERVICES,NET CATERING PURCHASES,4777,BIDFOOD,20/06/2022 00:00,263461,218.29,360001,BIDFOOD,30/05/2022 00:00,26/06/2022 00:00,P03-2023,
P&V,MYDDLETON HSE HERITAGE CENTRE,SUPPLIES AND SERVICES,NET CATERING PURCHASES,4777,P118337-SERVICE-food/drinks order may 22,20/06/2022 00:00,263461,288.18,360001,BIDFOOD,30/05/2022 00:00,26/06/2022 00:00,P03-2023,
P&V,MYDDLETON HSE HERITAGE CENTRE,SUPPLIES AND SERVICES,NET CATERING PURCHASES,4777,BIDFOOD,20/06/2022 00:00,263461,69.89,360001,BIDFOOD,30/05/2022 00:00,26/06/2022 00:00,P03-2023,
P&V,MYDDLETON HSE HERITAGE CENTRE,SUPPLIES AND SERVICES,NET CATERING PURCHASES,4777,BIDFOOD,20/06/2022 00:00,263461,-288.18,360001,BIDFOOD,30/05/2022 00:00,26/06/2022 00:00,P03-2023,
P&V,MYDDLETON HSE HERITAGE CENTRE,SUPPLIES AND SERVICES,NET CATERING PURCHASES,4777,P118442-SERVICE-Food/drinks order 21 june 2022,26/06/2022 00:00,263526,371.48,360001,BIDFOOD,30/05/2022 00:00,26/06/2022 00:00,P03-2023,
P&V,MYDDLETON HSE HERITAGE CENTRE,SUPPLIES AND SERVICES,NET CATERING PURCHASES,4777,BIDFOOD,26/06/2022 00:00,263526,67.28,360001,BIDFOOD,30/05/2022 00:00,26/06/2022 00:00,P03-2023,
P&V,MYDDLETON HSE HERITAGE CENTRE,SUPPLIES AND SERVICES,NET CATERING PURCHASES,4777,BIDFOOD,26/06/2022 00:00,263526,304.2,360001,BIDFOOD,30/05/2022 00:00,26/06/2022 00:00,P03-2023,
P&V,MYDDLETON HSE HERITAGE CENTRE,SUPPLIES AND SERVICES,NET CATERING PURCHASES,4777,BIDFOOD,26/06/2022 00:00,263526,-371.48,360001,BIDFOOD,30/05/2022 00:00,26/06/2022 00:00,P03-2023,
P&V,MYDDLETON HSE HERITAGE CENTRE,SUPPLIES AND SERVICES,NET CATERING PURCHASES,4777,BIDFOOD,26/06/2022 00:00,263694,236.08,360001,BIDFOOD,30/05/2022 00:00,26/06/2022 00:00,P03-2023,
P&V,MYDDLETON HSE HERITAGE CENTRE,SUPPLIES AND SERVICES,NET CATERING PURCHASES,4777,P118442-SERVICE-Food/drinks order 21 june 2022,26/06/2022 00:00,263694,265.64,360001,BIDFOOD,30/05/2022 00:00,26/06/2022 00:00,P03-2023,
P&V,MYDDLETON HSE HERITAGE CENTRE,SUPPLIES AND SERVICES,NET CATERING PURCHASES,4777,BIDFOOD,26/06/2022 00:00,263694,29.56,360001,BIDFOOD,30/05/2022 00:00,26/06/2022 00:00,P03-2023,
P&V,MYDDLETON HSE HERITAGE CENTRE,SUPPLIES AND SERVICES,NET CATERING PURCHASES,4777,BIDFOOD,26/06/2022 00:00,263694,-265.64,360001,BIDFOOD,30/05/2022 00:00,26/06/2022 00:00,P03-2023,
P&V,MYDDLETON HSE HERITAGE CENTRE,SUPPLIES AND SERVICES,NET CATERING PURCHASES,4777,BIDFOOD,14/06/2022 00:00,263726,260.64,360001,BIDFOOD,30/05/2022 00:00,26/06/2022 00:00,P03-2023,
P&V,MYDDLETON HSE HERITAGE CENTRE,SUPPLIES AND SERVICES,NET CATERING PURCHASES,4777,P118199-SERVICE-food/drinks order june 22,14/06/2022 00:00,263726,804.58,360001,BIDFOOD,30/05/2022 00:00,26/06/2022 00:00,P03-2023,
P&V,MYDDLETON HSE HERITAGE CENTRE,SUPPLIES AND SERVICES,NET CATERING PURCHASES,4777,BIDFOOD,14/06/2022 00:00,263726,-804.58,360001,BIDFOOD,30/05/2022 00:00,26/06/2022 00:00,P03-2023,
P&V,MYDDLETON HSE HERITAGE CENTRE,SUPPLIES AND SERVICES,NET CATERING PURCHASES,4777,BIDFOOD,14/06/2022 00:00,263726,543.94,360001,BIDFOOD,30/05/2022 00:00,26/06/2022 00:00,P03-2023,
P&V,MYDDLETON HSE HERITAGE CENTRE,SUPPLIES AND SERVICES,NET CATERING PURCHASES,4777,P118338-SERVICE-food/drinks order june 22,20/06/2022 00:00,263903,374.65,360001,BIDFOOD,30/05/2022 00:00,26/06/2022 00:00,P03-2023,
P&V,MYDDLETON HSE HERITAGE CENTRE,SUPPLIES AND SERVICES,NET CATERING PURCHASES,4777,BIDFOOD,20/06/2022 00:00,263903,-374.65,360001,BIDFOOD,30/05/2022 00:00,26/06/2022 00:00,P03-2023,
P&V,MYDDLETON HSE HERITAGE CENTRE,SUPPLIES AND SERVICES,NET CATERING PURCHASES,4777,BIDFOOD,20/06/2022 00:00,263903,302.11,360001,BIDFOOD,30/05/2022 00:00,26/06/2022 00:00,P03-2023,
P&V,MYDDLETON HSE HERITAGE CENTRE,SUPPLIES AND SERVICES,NET CATERING PURCHASES,4777,BIDFOOD,20/06/2022 00:00,263903,72.54,360001,BIDFOOD,30/05/2022 00:00,26/06/2022 00:00,P03-2023,
P&V,MYDDLETON HSE HERITAGE CENTRE,SUPPLIES AND SERVICES,NET CATERING PURCHASES,4777,P118199-SERVICE-food/drinks order june 22,15/06/2022 00:00,263994,-19.06,360001,BIDFOOD,30/05/2022 00:00,26/06/2022 00:00,P03-2023,
P&V,MYDDLETON HSE HERITAGE CENTRE,SUPPLIES AND SERVICES,NET CATERING PURCHASES,4777,BIDFOOD,20/06/2022 00:00,264089,-457.4,360001,BIDFOOD,30/05/2022 00:00,26/06/2022 00:00,P03-2023,
P&V,MYDDLETON HSE HERITAGE CENTRE,SUPPLIES AND SERVICES,NET CATERING PURCHASES,4777,P118338-SERVICE-food/drinks order june 22,20/06/2022 00:00,264089,457.4,360001,BIDFOOD,30/05/2022 00:00,26/06/2022 00:00,P03-2023,
P&V,MYDDLETON HSE HERITAGE CENTRE,SUPPLIES AND SERVICES,NET CATERING PURCHASES,4777,BIDFOOD,20/06/2022 00:00,264089,400.7,360001,BIDFOOD,30/05/2022 00:00,26/06/2022 00:00,P03-2023,
P&V,MYDDLETON HSE HERITAGE CENTRE,SUPPLIES AND SERVICES,NET CATERING PURCHASES,4777,BIDFOOD,20/06/2022 00:00,264089,56.7,360001,BIDFOOD,30/05/2022 00:00,26/06/2022 00:00,P03-2023,
P&V,MYDDELTON HOUSE,SUPPLIES AND SERVICES,TRADING AC - EXTERNAL PURCHASE,4875,P118216-SERVICE-5 x Coronet Semi-Skimmed Milk Capsules UHT 12,13/06/2022 00:00,263905,17.2,360001,BIDFOOD,30/05/2022 00:00,26/06/2022 00:00,P03-2023,
,LEE VALLEY MARINA SPRINGFIELD,SUPPLIES AND SERVICES,TRADING AC - EXTERNAL PURCHASE,4875,P118172-SERVICE-Chandlery Stock,08/06/2022 00:00,263907,334.6,ME0484,MERIDIAN ZERO DISTRIBUTION LIMITED,30/05/2022 00:00,26/06/2022 00:00,P03-2023,
,LEE VALLEY MARINA SPRINGFIELD,SUPPLIES AND SERVICES,TRADING AC - EXTERNAL PURCHASE,4875,P118227-SERVICE-Chandlery Stock  854499,13/06/2022 00:00,263918,709.07,MI0200,MIDLAND CHANDLERS LIMITED,30/05/2022 00:00,26/06/2022 00:00,P03-2023,
,LEE VALLEY MARINA SPRINGFIELD,SUPPLIES AND SERVICES,TRADING AC - EXTERNAL PURCHASE,4875,P118239-SERVICE-Chandlery Stock  100064,13/06/2022 00:00,263941,491.19,AQ0033,AQUAFAX LIMITED,30/05/2022 00:00,26/06/2022 00:00,P03-2023,
,LEE VALLEY MARINA SPRINGFIELD,SUPPLIES AND SERVICES,TRADING AC - EXTERNAL PURCHASE,4875,P118263-SERVICE-Chandlery Stock  856602,13/06/2022 00:00,263972,239.02,MI0200,MIDLAND CHANDLERS LIMITED,30/05/2022 00:00,26/06/2022 00:00,P03-2023,
,LEE VALLEY MARINA SPRINGFIELD,SUPPLIES AND SERVICES,TRADING AC - EXTERNAL PURCHASE,4875,P118239-SERVICE-Chandlery Stock  100064,13/06/2022 00:00,263977,13.72,AQ0033,AQUAFAX LIMITED,30/05/2022 00:00,26/06/2022 00:00,P03-2023,
,LEE VALLEY MARINA SPRINGFIELD,SUPPLIES AND SERVICES,TRADING AC - EXTERNAL PURCHASE,4875,P118241-SERVICE-Chandlery Stock,15/06/2022 00:00,264004,996,SM0664,KG SMITH & SON,30/05/2022 00:00,26/06/2022 00:00,P03-2023,
,LEE VALLEY MARINA SPRINGFIELD,SUPPLIES AND SERVICES,TRADING AC - EXTERNAL PURCHASE,4875,P118313-SERVICE-Chandlery Stock,15/06/2022 00:00,264106,423,CR0651,CRAFTMASTER PAINTS,30/05/2022 00:00,26/06/2022 00:00,P03-2023,
,LEE VALLEY MARINA SPRINGFIELD,SUPPLIES AND SERVICES,TRADING AC - EXTERNAL PURCHASE,4875,P116851-SERVICE-Chandlery Stock,13/06/2022 00:00,264116,-71.43,SM0664,KG SMITH & SON,30/05/2022 00:00,26/06/2022 00:00,P03-2023,
,LEE VALLEY MARINA SPRINGFIELD,SUPPLIES AND SERVICES,TRADING AC - EXTERNAL PURCHASE,4875,P118344-SERVICE-Chandlery Stock  859547,20/06/2022 00:00,264241,309.23,MI0200,MIDLAND CHANDLERS LIMITED,30/05/2022 00:00,26/06/2022 00:00,P03-2023,
,LEE VALLEY MARINA SPRINGFIELD,SUPPLIES AND SERVICES,TRADING AC - EXTERNAL PURCHASE,4875,P118345-SERVICE-Chandlery Stock  185452,20/06/2022 00:00,264245,126.85,AS0036,ASAP SUPPLIES,30/05/2022 00:00,26/06/2022 00:00,P03-2023,
,LEE VALLEY MARINA SPRINGFIELD,SUPPLIES AND SERVICES,TRADING AC - EXTERNAL PURCHASE,4875,P118444-SERVICE-Chandlery Stock  102053,26/06/2022 00:00,264370,395.91,AQ0033,AQUAFAX LIMITED,30/05/2022 00:00,26/06/2022 00:00,P03-2023,
,LEE VALLEY MARINA SPRINGFIELD,SUPPLIES AND SERVICES,TRADING AC - EXTERNAL PURCHASE,4875,P118435-SERVICE-Chandlery Stock  862376,26/06/2022 00:00,264371,311.22,MI0200,MIDLAND CHANDLERS LIMITED,30/05/2022 00:00,26/06/2022 00:00,P03-2023,
,LEE VALLEY MARINA SPRINGFIELD,SUPPLIES AND SERVICES,TRADING AC - EXTERNAL PURCHASE,4875,P118444-SERVICE-Chandlery Stock  102053,26/06/2022 00:00,264485,11.8,AQ0033,AQUAFAX LIMITED,30/05/2022 00:00,26/06/2022 00:00,P03-2023,
,LEE VALLEY MARINA SPRINGFIELD,SUPPLIES AND SERVICES,TRADING AC - EXTERNAL PURCHASE,4875,P118445-SERVICE-Chandlery Stock,26/06/2022 00:00,264486,19.69,EP0353,E P BARRUS LTD,30/05/2022 00:00,26/06/2022 00:00,P03-2023,
,LEE VALLEY MARINA SPRINGFIELD,SUPPLIES AND SERVICES,TRADING AC - EXTERNAL PURCHASE,4875,P118466-SERVICE-Chandlery Stock  WSo0243982,26/06/2022 00:00,264558,234.87,CE0510,CENTURION EUROPE LIMITED,30/05/2022 00:00,26/06/2022 00:00,P03-2023,
,LEE VALLEY MARINA SPRINGFIELD,SUPPLIES AND SERVICES,TRADING AC - EXTERNAL PURCHASE,4875,P118239-SERVICE-Chandlery Stock  100064,26/06/2022 00:00,264567,54.88,AQ0033,AQUAFAX LIMITED,30/05/2022 00:00,26/06/2022 00:00,P03-2023,
,LEE VALLEY MARINA SPRINGFIELD,SUPPLIES AND SERVICES,TRADING AC - EXTERNAL PURCHASE,4875,P118512-SERVICE-To supply items on quotation 1928341886,26/06/2022 00:00,264589,7200,AS0304,KLOECKNER METALS UK (formerly ASD METAL SERV),30/05/2022 00:00,26/06/2022 00:00,P03-2023,
,STANSTEAD RECHARGEABLE WORKS,SUPPLIES AND SERVICES,TRADING AC - EXTERNAL PURCHASE,4875,P118222-SERVICE-Beverley Clarke Pottery  Chandlery,13/06/2022 00:00,263660,110,CL0722,BEVERLEY CLARKE,30/05/2022 00:00,26/06/2022 00:00,P03-2023,
,STANSTEAD RECHARGEABLE WORKS,SUPPLIES AND SERVICES,TRADING AC - EXTERNAL PURCHASE,4875,P118195-SERVICE-chandlery items,13/06/2022 00:00,263725,1600.87,MI0200,MIDLAND CHANDLERS LIMITED,30/05/2022 00:00,26/06/2022 00:00,P03-2023,
,STANSTEAD RECHARGEABLE WORKS,SUPPLIES AND SERVICES,TRADING AC - EXTERNAL PURCHASE,4875,P118179-SERVICE-2200l red diesel @110.84ppl,07/06/2022 00:00,263746,2287.13,TE0052,TEAM FLITWICK,30/05/2022 00:00,26/06/2022 00:00,P03-2023,
,STANSTEAD RECHARGEABLE WORKS,SUPPLIES AND SERVICES,TRADING AC - EXTERNAL PURCHASE,4875,P118201-SERVICE-Chandlery stock,07/06/2022 00:00,263856,1008.7,AQ0033,AQUAFAX LIMITED,30/05/2022 00:00,26/06/2022 00:00,P03-2023,
,STANSTEAD RECHARGEABLE WORKS,SUPPLIES AND SERVICES,TRADING AC - EXTERNAL PURCHASE,4875,P118019-SERVICE-CHANDLERY STOCK,07/06/2022 00:00,263860,10.28,MI0200,MIDLAND CHANDLERS LIMITED,30/05/2022 00:00,26/06/2022 00:00,P03-2023,
,STANSTEAD RECHARGEABLE WORKS,SUPPLIES AND SERVICES,TRADING AC - EXTERNAL PURCHASE,4875,P117655-SERVICE-chandlery stock,07/06/2022 00:00,263884,2.67,AS0036,ASAP SUPPLIES,30/05/2022 00:00,26/06/2022 00:00,P03-2023,
,STANSTEAD RECHARGEABLE WORKS,SUPPLIES AND SERVICES,TRADING AC - EXTERNAL PURCHASE,4875,P117951-SERVICE-chandlery stock,07/06/2022 00:00,263885,123.19,AS0036,ASAP SUPPLIES,30/05/2022 00:00,26/06/2022 00:00,P03-2023,
,STANSTEAD RECHARGEABLE WORKS,SUPPLIES AND SERVICES,TRADING AC - EXTERNAL PURCHASE,4875,P118088-SERVICE-chandlery stock,07/06/2022 00:00,263887,5.94,AS0036,ASAP SUPPLIES,30/05/2022 00:00,26/06/2022 00:00,P03-2023,
,STANSTEAD RECHARGEABLE WORKS,SUPPLIES AND SERVICES,TRADING AC - EXTERNAL PURCHASE,4875,P118174-SERVICE-gas order,13/06/2022 00:00,263888,386,SM0664,KG SMITH & SON,30/05/2022 00:00,26/06/2022 00:00,P03-2023,
,STANSTEAD RECHARGEABLE WORKS,SUPPLIES AND SERVICES,TRADING AC - EXTERNAL PURCHASE,4875,P118174-SERVICE-gas order,13/06/2022 00:00,263889,-35,SM0664,KG SMITH & SON,30/05/2022 00:00,26/06/2022 00:00,P03-2023,
,STANSTEAD RECHARGEABLE WORKS,SUPPLIES AND SERVICES,TRADING AC - EXTERNAL PURCHASE,4875,P118221-SERVICE-Chandlery Stock,13/06/2022 00:00,263894,240.24,CE0510,CENTURION EUROPE LIMITED,30/05/2022 00:00,26/06/2022 00:00,P03-2023,
,STANSTEAD RECHARGEABLE WORKS,SUPPLIES AND SERVICES,TRADING AC - EXTERNAL PURCHASE,4875,P118247-SERVICE-chandlery ice creams / drinks etc,13/06/2022 00:00,263904,174.77,360001,BIDFOOD,30/05/2022 00:00,26/06/2022 00:00,P03-2023,
,STANSTEAD RECHARGEABLE WORKS,SUPPLIES AND SERVICES,TRADING AC - EXTERNAL PURCHASE,4875,P118058-SERVICE-chandlery stock,13/06/2022 00:00,263910,49.01,AQ0033,AQUAFAX LIMITED,30/05/2022 00:00,26/06/2022 00:00,P03-2023,
,STANSTEAD RECHARGEABLE WORKS,SUPPLIES AND SERVICES,TRADING AC - EXTERNAL PURCHASE,4875,P118211-SERVICE-Midland Chandlery items,13/06/2022 00:00,263916,374.52,MI0200,MIDLAND CHANDLERS LIMITED,30/05/2022 00:00,26/06/2022 00:00,P03-2023,
,STANSTEAD RECHARGEABLE WORKS,SUPPLIES AND SERVICES,TRADING AC - EXTERNAL PURCHASE,4875,P118211-SERVICE-Midland Chandlery items,13/06/2022 00:00,263917,17.74,MI0200,MIDLAND CHANDLERS LIMITED,30/05/2022 00:00,26/06/2022 00:00,P03-2023,
,STANSTEAD RECHARGEABLE WORKS,SUPPLIES AND SERVICES,TRADING AC - EXTERNAL PURCHASE,4875,P118195-SERVICE-CHANDLERY ITEMS CONT..,20/06/2022 00:00,263919,40.14,MI0200,MIDLAND CHANDLERS LIMITED,30/05/2022 00:00,26/06/2022 00:00,P03-2023,
,STANSTEAD RECHARGEABLE WORKS,SUPPLIES AND SERVICES,TRADING AC - EXTERNAL PURCHASE,4875,P117711-SERVICE-chandlery stock,20/06/2022 00:00,263949,18.62,AQ0033,AQUAFAX LIMITED,30/05/2022 00:00,26/06/2022 00:00,P03-2023,
,STANSTEAD RECHARGEABLE WORKS,SUPPLIES AND SERVICES,TRADING AC - EXTERNAL PURCHASE,4875,P117711-SERVICE-CHANDLERY STOCK CONT...,20/06/2022 00:00,263949,23.33,AQ0033,AQUAFAX LIMITED,30/05/2022 00:00,26/06/2022 00:00,P03-2023,
,STANSTEAD RECHARGEABLE WORKS,SUPPLIES AND SERVICES,TRADING AC - EXTERNAL PURCHASE,4875,P117548-SERVICE-chandlery stock,13/06/2022 00:00,263950,41.95,AQ0033,AQUAFAX LIMITED,30/05/2022 00:00,26/06/2022 00:00,P03-2023,
,STANSTEAD RECHARGEABLE WORKS,SUPPLIES AND SERVICES,TRADING AC - EXTERNAL PURCHASE,4875,P118195-SERVICE-CHANDLERY ITEMS CONT..,20/06/2022 00:00,263951,4.1,MI0200,MIDLAND CHANDLERS LIMITED,30/05/2022 00:00,26/06/2022 00:00,P03-2023,
,STANSTEAD RECHARGEABLE WORKS,SUPPLIES AND SERVICES,TRADING AC - EXTERNAL PURCHASE,4875,MIDLAND CHANDLERS LIMITED,13/06/2022 00:00,263971,822.48,MI0200,MIDLAND CHANDLERS LIMITED,30/05/2022 00:00,26/06/2022 00:00,P03-2023,
,STANSTEAD RECHARGEABLE WORKS,SUPPLIES AND SERVICES,TRADING AC - EXTERNAL PURCHASE,4875,MIDLAND CHANDLERS LIMITED,13/06/2022 00:00,263971,-845.25,MI0200,MIDLAND CHANDLERS LIMITED,30/05/2022 00:00,26/06/2022 00:00,P03-2023,
,STANSTEAD RECHARGEABLE WORKS,SUPPLIES AND SERVICES,TRADING AC - EXTERNAL PURCHASE,4875,P118283-SERVICE-Midland Chandlery Items,13/06/2022 00:00,263971,845.25,MI0200,MIDLAND CHANDLERS LIMITED,30/05/2022 00:00,26/06/2022 00:00,P03-2023,
,STANSTEAD RECHARGEABLE WORKS,SUPPLIES AND SERVICES,TRADING AC - EXTERNAL PURCHASE,4875,MIDLAND CHANDLERS LIMITED,13/06/2022 00:00,263971,22.77,MI0200,MIDLAND CHANDLERS LIMITED,30/05/2022 00:00,26/06/2022 00:00,P03-2023,
,STANSTEAD RECHARGEABLE WORKS,SUPPLIES AND SERVICES,TRADING AC - EXTERNAL PURCHASE,4875,P118249-SERVICE-chandlery order,13/06/2022 00:00,263978,356.71,AQ0033,AQUAFAX LIMITED,30/05/2022 00:00,26/06/2022 00:00,P03-2023,
,STANSTEAD RECHARGEABLE WORKS,SUPPLIES AND SERVICES,TRADING AC - EXTERNAL PURCHASE,4875,P118249-SERVICE-chandlery order,13/06/2022 00:00,263979,6.61,AQ0033,AQUAFAX LIMITED,30/05/2022 00:00,26/06/2022 00:00,P03-2023,
,STANSTEAD RECHARGEABLE WORKS,SUPPLIES AND SERVICES,TRADING AC - EXTERNAL PURCHASE,4875,P118195-SERVICE-CHANDLERY ITEMS CONT..,20/06/2022 00:00,263980,16.08,MI0200,MIDLAND CHANDLERS LIMITED,30/05/2022 00:00,26/06/2022 00:00,P03-2023,
,STANSTEAD RECHARGEABLE WORKS,SUPPLIES AND SERVICES,TRADING AC - EXTERNAL PURCHASE,4875,P118195-SERVICE-CHANDLERY ITEMS CONT..,20/06/2022 00:00,263981,8.29,MI0200,MIDLAND CHANDLERS LIMITED,30/05/2022 00:00,26/06/2022 00:00,P03-2023,
,STANSTEAD RECHARGEABLE WORKS,SUPPLIES AND SERVICES,TRADING AC - EXTERNAL PURCHASE,4875,P118195-SERVICE-CHANDLERY ITEMS CONT..,20/06/2022 00:00,263982,11.88,MI0200,MIDLAND CHANDLERS LIMITED,30/05/2022 00:00,26/06/2022 00:00,P03-2023,
,STANSTEAD RECHARGEABLE WORKS,SUPPLIES AND SERVICES,TRADING AC - EXTERNAL PURCHASE,4875,P118195-SERVICE-CHANDLERY ITEMS CONT..,20/06/2022 00:00,263983,26.8,MI0200,MIDLAND CHANDLERS LIMITED,30/05/2022 00:00,26/06/2022 00:00,P03-2023,
,STANSTEAD RECHARGEABLE WORKS,SUPPLIES AND SERVICES,TRADING AC - EXTERNAL PURCHASE,4875,P118305-SERVICE-chandlery stock,14/06/2022 00:00,264097,70.64,MI0200,MIDLAND CHANDLERS LIMITED,30/05/2022 00:00,26/06/2022 00:00,P03-2023,
,STANSTEAD RECHARGEABLE WORKS,SUPPLIES AND SERVICES,TRADING AC - EXTERNAL PURCHASE,4875,P118305-SERVICE-chandlery stock,14/06/2022 00:00,264098,1.06,MI0200,MIDLAND CHANDLERS LIMITED,30/05/2022 00:00,26/06/2022 00:00,P03-2023,
,STANSTEAD RECHARGEABLE WORKS,SUPPLIES AND SERVICES,TRADING AC - EXTERNAL PURCHASE,4875,P118021-SERVICE-CHANDLERY STOCK,13/06/2022 00:00,264099,116.9,AQ0033,AQUAFAX LIMITED,30/05/2022 00:00,26/06/2022 00:00,P03-2023,
,STANSTEAD RECHARGEABLE WORKS,SUPPLIES AND SERVICES,TRADING AC - EXTERNAL PURCHASE,4875,P118301-SERVICE-chandlery order,15/06/2022 00:00,264100,210.08,AQ0033,AQUAFAX LIMITED,30/05/2022 00:00,26/06/2022 00:00,P03-2023,
,STANSTEAD RECHARGEABLE WORKS,SUPPLIES AND SERVICES,TRADING AC - EXTERNAL PURCHASE,4875,P118201-SERVICE-Chandlery stock,13/06/2022 00:00,264101,77.48,AQ0033,AQUAFAX LIMITED,30/05/2022 00:00,26/06/2022 00:00,P03-2023,
,STANSTEAD RECHARGEABLE WORKS,SUPPLIES AND SERVICES,TRADING AC - EXTERNAL PURCHASE,4875,P118301-SERVICE-chandlery order,15/06/2022 00:00,264102,8.36,AQ0033,AQUAFAX LIMITED,30/05/2022 00:00,26/06/2022 00:00,P03-2023,
,STANSTEAD RECHARGEABLE WORKS,SUPPLIES AND SERVICES,TRADING AC - EXTERNAL PURCHASE,4875,P118322-SERVICE-paint for chandlery,15/06/2022 00:00,264111,285.57,CR0651,CRAFTMASTER PAINTS,30/05/2022 00:00,26/06/2022 00:00,P03-2023,
,STANSTEAD RECHARGEABLE WORKS,SUPPLIES AND SERVICES,TRADING AC - EXTERNAL PURCHASE,4875,P118287-SERVICE-paints for chandlery (blackings etc),15/06/2022 00:00,264113,1064.8,SM0658,SML PAINTS AND COATINGS,30/05/2022 00:00,26/06/2022 00:00,P03-2023,
,STANSTEAD RECHARGEABLE WORKS,SUPPLIES AND SERVICES,TRADING AC - EXTERNAL PURCHASE,4875,P118323-SERVICE-chandlery items,20/06/2022 00:00,264125,833.82,MI0200,MIDLAND CHANDLERS LIMITED,30/05/2022 00:00,26/06/2022 00:00,P03-2023,
,STANSTEAD RECHARGEABLE WORKS,SUPPLIES AND SERVICES,TRADING AC - EXTERNAL PURCHASE,4875,P118195-SERVICE-CHANDLERY ITEMS CONT..,22/06/2022 00:00,264138,78.36,MI0200,MIDLAND CHANDLERS LIMITED,30/05/2022 00:00,26/06/2022 00:00,P03-2023,
,STANSTEAD RECHARGEABLE WORKS,SUPPLIES AND SERVICES,TRADING AC - EXTERNAL PURCHASE,4875,P118283-SERVICE-Midland Chandlery Items,20/06/2022 00:00,264139,10.71,MI0200,MIDLAND CHANDLERS LIMITED,30/05/2022 00:00,26/06/2022 00:00,P03-2023,
,STANSTEAD RECHARGEABLE WORKS,SUPPLIES AND SERVICES,TRADING AC - EXTERNAL PURCHASE,4875,P118318-SERVICE-chandlery consumables stock,20/06/2022 00:00,264146,220.19,360001,BIDFOOD,30/05/2022 00:00,26/06/2022 00:00,P03-2023,
,STANSTEAD RECHARGEABLE WORKS,SUPPLIES AND SERVICES,TRADING AC - EXTERNAL PURCHASE,4875,P118300-SERVICE-chandlery - elsan blue & pinks,20/06/2022 00:00,264246,73.75,EL0376,ELSAN LTD,30/05/2022 00:00,26/06/2022 00:00,P03-2023,
,STANSTEAD RECHARGEABLE WORKS,SUPPLIES AND SERVICES,TRADING AC - EXTERNAL PURCHASE,4875,P118323-SERVICE-chandlery items,20/06/2022 00:00,264250,5.08,MI0200,MIDLAND CHANDLERS LIMITED,30/05/2022 00:00,26/06/2022 00:00,P03-2023,
,STANSTEAD RECHARGEABLE WORKS,SUPPLIES AND SERVICES,TRADING AC - EXTERNAL PURCHASE,4875,P118382-SERVICE-chandlery items,22/06/2022 00:00,264290,169.57,AQ0033,AQUAFAX LIMITED,30/05/2022 00:00,26/06/2022 00:00,P03-2023,
,STANSTEAD RECHARGEABLE WORKS,SUPPLIES AND SERVICES,TRADING AC - EXTERNAL PURCHASE,4875,P118285-SERVICE-gas supplies for chandlery,21/06/2022 00:00,264302,536.5,SM0664,KG SMITH & SON,30/05/2022 00:00,26/06/2022 00:00,P03-2023,
,STANSTEAD RECHARGEABLE WORKS,SUPPLIES AND SERVICES,TRADING AC - EXTERNAL PURCHASE,4875,P118323-SERVICE-chandlery items,22/06/2022 00:00,264321,5.08,MI0200,MIDLAND CHANDLERS LIMITED,30/05/2022 00:00,26/06/2022 00:00,P03-2023,
,STANSTEAD RECHARGEABLE WORKS,SUPPLIES AND SERVICES,TRADING AC - EXTERNAL PURCHASE,4875,P118201-SERVICE-Chandlery stock,26/06/2022 00:00,264515,84.16,AQ0033,AQUAFAX LIMITED,30/05/2022 00:00,26/06/2022 00:00,P03-2023,
P&V,ALMOST WILD CAMPSITE,SUPPLIES AND SERVICES,TRADING AC - EXTERNAL PURCHASE,4875,P118475-SERVICE-3 x Palletts of fire woord,26/06/2022 00:00,264587,702,LO0473,LOGS DIRECT LTD,30/05/2022 00:00,26/06/2022 00:00,P03-2023,
,LV LEISURE CENTRE CAMPSITE,SUPPLIES AND SERVICES,TRADING AC - EXTERNAL PURCHASE,4875,P118455-SERVICE-Golf lake balls,22/06/2022 00:00,262954,294,GR0144,BARRY GRIFFITHS,30/05/2022 00:00,26/06/2022 00:00,P03-2023,
,LV LEISURE CENTRE CAMPSITE,SUPPLIES AND SERVICES,TRADING AC - EXTERNAL PURCHASE,4875,P118385-SERVICE-lake balls,21/06/2022 00:00,264071,588,GR0144,BARRY GRIFFITHS,30/05/2022 00:00,26/06/2022 00:00,P03-2023,
,LEE VALLEY CAMPSITE,SUPPLIES AND SERVICES,BOTTLED GAS,4877,P118361-SERVICE-4 x 6kg propane,15/06/2022 00:00,264094,80.6,CA0006,CALOR GAS LIMITED,30/05/2022 00:00,26/06/2022 00:00,P03-2023,
,LEE VALLEY CAMPSITE,SUPPLIES AND SERVICES,BOTTLED GAS,4877,P118361-SERVICE-2x 13k propane,15/06/2022 00:00,264094,69.02,CA0006,CALOR GAS LIMITED,30/05/2022 00:00,26/06/2022 00:00,P03-2023,
,LEE VALLEY CAMPSITE,SUPPLIES AND SERVICES,BOTTLED GAS,4877,P118361-SERVICE-3 x 15k butane,15/06/2022 00:00,264094,117.42,CA0006,CALOR GAS LIMITED,30/05/2022 00:00,26/06/2022 00:00,P03-2023,
,LEE VALLEY CARAVAN PARK,SUPPLIES AND SERVICES,BOTTLED GAS,4877,P118169-SERVICE-5 x 6KG Calor Gas,26/06/2022 00:00,264143,676.44,CA0006,CALOR GAS LIMITED,30/05/2022 00:00,26/06/2022 00:00,P03-2023,
R&B,HUMAN RESOURCES,SUPPLIES AND SERVICES,OTHER EXPENSES,4899,P117900-SERVICE-STAFF CARDS,20/06/2022 00:00,264158,59,BE0505,BELMONT PRESS,30/05/2022 00:00,26/06/2022 00:00,P03-2023,
CEO,COMMONWEALTH GAMES 2022,SUPPLIES AND SERVICES,OTHER EXPENSES,4899,P118350-SERVICE-Common Wealth Games Track & Para Cycling,15/06/2022 00:00,264123,5160,BI0649,BIRMINGHAM ORGANISING COMMITTEE,30/05/2022 00:00,26/06/2022 00:00,P03-2023,
,LEE VALLEY CAMPSITE,SUPPLIES AND SERVICES,OTHER EXPENSES,4899,P118494-SERVICE-Additional items for Stirling,26/06/2022 00:00,264532,813.12,PA0415,PATTERSONS,30/05/2022 00:00,26/06/2022 00:00,P03-2023,
,LEE VALLEY CARAVAN PARK,SUPPLIES AND SERVICES,OTHER EXPENSES,4899,P118183-SERVICE-Top Soil Cap Ex Planting - 376,07/06/2022 00:00,263729,165.55,TH0051,THOMPSONS OF CREWS HILL LTD,30/05/2022 00:00,26/06/2022 00:00,P03-2023,
,LEE VALLEY CARAVAN PARK,SUPPLIES AND SERVICES,OTHER EXPENSES,4899,P118183-SERVICE-Soil and Wood Chip - Cap Ex Planting,07/06/2022 00:00,263729,433.36,TH0051,THOMPSONS OF CREWS HILL LTD,30/05/2022 00:00,26/06/2022 00:00,P03-2023,
,LEE VALLEY CARAVAN PARK,SUPPLIES AND SERVICES,OTHER EXPENSES,4899,P118183-SERVICE-Top Soil Cap Ex Planting - 376,07/06/2022 00:00,263730,376.15,TH0051,THOMPSONS OF CREWS HILL LTD,30/05/2022 00:00,26/06/2022 00:00,P03-2023,
,LEE VALLEY CARAVAN PARK,SUPPLIES AND SERVICES,OTHER EXPENSES,4899,P118472-SERVICE-Various Plants - Cap Ex,26/06/2022 00:00,264577,1484.3,CL0093,CLOCKHOUSE NURSERY,30/05/2022 00:00,26/06/2022 00:00,P03-2023,
P&V,MYDDLETON HSE HERITAGE CENTRE,SUPPLIES AND SERVICES,OTHER EXPENSES,4899,P118252-SERVICE-machinery order june 22,20/06/2022 00:00,263993,842,BR0143,GEORGE BROWNS LTD,30/05/2022 00:00,26/06/2022 00:00,P03-2023,
P&V,COMMUNITY ACCESS FUND,SUPPLIES AND SERVICES,OTHER EXPENSES,4899,P116999-SERVICE-Views license and subscription 1/4/22 - 31/3/,26/06/2022 00:00,264595,1100,SU0605,SUBSTANCE,30/05/2022 00:00,26/06/2022 00:00,P03-2023,
,LV LEISURE CENTRE CAMPSITE,SUPPLIES AND SERVICES,OTHER EXPENSES,4899,P118081-SERVICE-Dimitri 36 hours campsite,08/06/2022 00:00,263662,540,NE0225,DIMITRI NEOPHYTOU,30/05/2022 00:00,26/06/2022 00:00,P03-2023,
,LV LEISURE CENTRE CAMPSITE,SUPPLIES AND SERVICES,OTHER EXPENSES,4899,P118341-SERVICE-Dimitri 27 campsite,26/06/2022 00:00,264343,405,NE0225,DIMITRI NEOPHYTOU,30/05/2022 00:00,26/06/2022 00:00,P03-2023,
,LV LEISURE CENTRE CAMPSITE,SUPPLIES AND SERVICES,OTHER EXPENSES,4899,P118332-SERVICE-Extra money,26/06/2022 00:00,264380,25,AP0032,APT SECURITY SYSTEMS,30/05/2022 00:00,26/06/2022 00:00,P03-2023,
,LV LEISURE CENTRE CAMPSITE,SUPPLIES AND SERVICES,OTHER EXPENSES,4899,P118332-SERVICE-Barriers,26/06/2022 00:00,264380,214,AP0032,APT SECURITY SYSTEMS,30/05/2022 00:00,26/06/2022 00:00,P03-2023,
,LV LEISURE CENTRE GOLF COURSE,SUPPLIES AND SERVICES,OTHER EXPENSES,4899,P118082-SERVICE-Dimitri 45 hours,08/06/2022 00:00,263662,675,NE0225,DIMITRI NEOPHYTOU,30/05/2022 00:00,26/06/2022 00:00,P03-2023,
,LV LEISURE CENTRE GOLF COURSE,SUPPLIES AND SERVICES,OTHER EXPENSES,4899,P117956-SERVICE-Screws For Machine,21/06/2022 00:00,263946,12.75,DO0027,ERNEST DOE & SONS LTD,30/05/2022 00:00,26/06/2022 00:00,P03-2023,
,LV LEISURE CENTRE GOLF COURSE,SUPPLIES AND SERVICES,OTHER EXPENSES,4899,P117956-SERVICE-Screws For Machine,21/06/2022 00:00,263947,7.14,DO0027,ERNEST DOE & SONS LTD,30/05/2022 00:00,26/06/2022 00:00,P03-2023,
,LV LEISURE CENTRE GOLF COURSE,SUPPLIES AND SERVICES,OTHER EXPENSES,4899,P118052-SERVICE-Machine parts for sit on mower,20/06/2022 00:00,263948,119.28,DO0027,ERNEST DOE & SONS LTD,30/05/2022 00:00,26/06/2022 00:00,P03-2023,
,LV LEISURE CENTRE GOLF COURSE,SUPPLIES AND SERVICES,OTHER EXPENSES,4899,P118341-SERVICE-Dimitri 33 hours golf,26/06/2022 00:00,264343,495,NE0225,DIMITRI NEOPHYTOU,30/05/2022 00:00,26/06/2022 00:00,P03-2023,
P&V,AWARDS AND ACCREDITATIONS,SUPPLIES AND SERVICES,OTHER EXPENSES,4899,4GLOBAL CONSULTING LIMITED,13/06/2022 00:00,263727,1150,4G0455,4GLOBAL CONSULTING LIMITED,30/05/2022 00:00,26/06/2022 00:00,P03-2023,
P&V,AWARDS AND ACCREDITATIONS,SUPPLIES AND SERVICES,OTHER EXPENSES,4899,4GLOBAL CONSULTING LIMITED,13/06/2022 00:00,264069,-1150,4G0455,4GLOBAL CONSULTING LIMITED,30/05/2022 00:00,26/06/2022 00:00,P03-2023,
P&V,S106 PROJECTS,S106 EXPENDITURE (REVENUE),S106 EXPENDITURE (REVENUE),4985,P117452-SERVICE-River Lee Country Park S106 Project Design as,26/06/2022 00:00,264534,560,GR0280,BRANDALITY LIMITED,30/05/2022 00:00,26/06/2022 00:00,P03-2023,
P&V,"ASSET PROTECTION, MAINT, DEVEL",CAPITAL EXPENDITURE,CAPITAL EXPENDITURE,4990,P116081-SERVICE-Velo Static Inverter Batteries,08/06/2022 00:00,263933,17739.5,BP0447,BPC ENERGY LIMITED,30/05/2022 00:00,26/06/2022 00:00,P03-2023,
P&V,"ASSET PROTECTION, MAINT, DEVEL",CAPITAL EXPENDITURE,CAPITAL EXPENDITURE,4990,P117987-SERVICE-Dobbs weir caravan park - to erect Gazebo in,21/06/2022 00:00,263974,754,KE0023,KENDALL & SONS LIMITED,30/05/2022 00:00,26/06/2022 00:00,P03-2023,
P&V,"ASSET PROTECTION, MAINT, DEVEL",CAPITAL EXPENDITURE,CAPITAL EXPENDITURE,4990,KENDALL & SONS LIMITED,21/06/2022 00:00,263974,-754,KE0023,KENDALL & SONS LIMITED,30/05/2022 00:00,26/06/2022 00:00,P03-2023,
P&V,"ASSET PROTECTION, MAINT, DEVEL",CAPITAL EXPENDITURE,CAPITAL EXPENDITURE,4990,KENDALL & SONS LIMITED,21/06/2022 00:00,263974,80,KE0023,KENDALL & SONS LIMITED,30/05/2022 00:00,26/06/2022 00:00,P03-2023,
P&V,"ASSET PROTECTION, MAINT, DEVEL",CAPITAL EXPENDITURE,CAPITAL EXPENDITURE,4990,KENDALL & SONS LIMITED,21/06/2022 00:00,263974,674,KE0023,KENDALL & SONS LIMITED,30/05/2022 00:00,26/06/2022 00:00,P03-2023,
P&V,"ASSET PROTECTION, MAINT, DEVEL",CAPITAL EXPENDITURE,CAPITAL EXPENDITURE,4990,P118071-SERVICE-Overnight security at VeloPark as discussed,13/06/2022 00:00,264074,340,WI0227,WISE SECURITY SERVICES,30/05/2022 00:00,26/06/2022 00:00,P03-2023,
P&V,"ASSET PROTECTION, MAINT, DEVEL",CAPITAL EXPENDITURE,CAPITAL EXPENDITURE,4990,P117923-SERVICE-Bridge Replacement at Cornmill Meadows,21/06/2022 00:00,264077,17300,BU0090,BUSH WHEELER SERVICES LTD,30/05/2022 00:00,26/06/2022 00:00,P03-2023,
P&V,"ASSET PROTECTION, MAINT, DEVEL",CAPITAL EXPENDITURE,CAPITAL EXPENDITURE,4990,P118268-SERVICE-Erect External Stud Wall at White Water Centr,21/06/2022 00:00,264080,2608,KE0023,KENDALL & SONS LIMITED,30/05/2022 00:00,26/06/2022 00:00,P03-2023,
P&V,"ASSET PROTECTION, MAINT, DEVEL",CAPITAL EXPENDITURE,CAPITAL EXPENDITURE,4990,KENDALL & SONS LIMITED,21/06/2022 00:00,264080,-2608,KE0023,KENDALL & SONS LIMITED,30/05/2022 00:00,26/06/2022 00:00,P03-2023,
P&V,"ASSET PROTECTION, MAINT, DEVEL",CAPITAL EXPENDITURE,CAPITAL EXPENDITURE,4990,KENDALL & SONS LIMITED,21/06/2022 00:00,264080,180,KE0023,KENDALL & SONS LIMITED,30/05/2022 00:00,26/06/2022 00:00,P03-2023,
P&V,"ASSET PROTECTION, MAINT, DEVEL",CAPITAL EXPENDITURE,CAPITAL EXPENDITURE,4990,KENDALL & SONS LIMITED,21/06/2022 00:00,264080,2428,KE0023,KENDALL & SONS LIMITED,30/05/2022 00:00,26/06/2022 00:00,P03-2023,
P&V,"ASSET PROTECTION, MAINT, DEVEL",CAPITAL EXPENDITURE,CAPITAL EXPENDITURE,4990,P117292-SERVICE-Velo Ext BMX Speakers,21/06/2022 00:00,264140,2295,BR0018,BRADSHAW ELECTRICAL LIMITED,30/05/2022 00:00,26/06/2022 00:00,P03-2023,
P&V,"ASSET PROTECTION, MAINT, DEVEL",CAPITAL EXPENDITURE,CAPITAL EXPENDITURE,4990,P118439-SERVICE-Stanstead marina electrical socket works,22/06/2022 00:00,264142,1110,BR0018,BRADSHAW ELECTRICAL LIMITED,30/05/2022 00:00,26/06/2022 00:00,P03-2023,
P&V,"ASSET PROTECTION, MAINT, DEVEL",CAPITAL EXPENDITURE,CAPITAL EXPENDITURE,4990,P118072-SERVICE-Double Glazing Unit at Abercrombie Lodge,21/06/2022 00:00,264164,322,TO0639,TOWNS-END DOUBLE GLAZING LTD,30/05/2022 00:00,26/06/2022 00:00,P03-2023,
P&V,"ASSET PROTECTION, MAINT, DEVEL",CAPITAL EXPENDITURE,CAPITAL EXPENDITURE,4990,P112907-SERVICE-LVAC Cat Ladder,26/06/2022 00:00,264294,925,RB0221,R 'n 'B ENGINEERING LTD,30/05/2022 00:00,26/06/2022 00:00,P03-2023,
P&V,"ASSET PROTECTION, MAINT, DEVEL",CAPITAL EXPENDITURE,CAPITAL EXPENDITURE,4990,P112907-SERVICE-Additional works required and agreed with MS,26/06/2022 00:00,264294,1440,RB0221,R 'n 'B ENGINEERING LTD,30/05/2022 00:00,26/06/2022 00:00,P03-2023,
P&V,"ASSET PROTECTION, MAINT, DEVEL",CAPITAL EXPENDITURE,CAPITAL EXPENDITURE,4990,P117759-SERVICE-Bollard - Three Mills Green,21/06/2022 00:00,264304,5495,RB0221,R 'n 'B ENGINEERING LTD,30/05/2022 00:00,26/06/2022 00:00,P03-2023,
P&V,"ASSET PROTECTION, MAINT, DEVEL",CAPITAL EXPENDITURE,CAPITAL EXPENDITURE,4990,P118406-SERVICE-Control System Schedule Upgrade at White Wate,26/06/2022 00:00,264376,43578.48,TO0640,TOTAL AUTOMATION AND POWER,30/05/2022 00:00,26/06/2022 00:00,P03-2023,
P&V,"ASSET PROTECTION, MAINT, DEVEL",CAPITAL EXPENDITURE,CAPITAL EXPENDITURE,4990,P118408-SERVICE-Carry Out the Power Section Upgrades to 8 no,26/06/2022 00:00,264377,112860,TO0640,TOTAL AUTOMATION AND POWER,30/05/2022 00:00,26/06/2022 00:00,P03-2023,
P&V,"ASSET PROTECTION, MAINT, DEVEL",CAPITAL EXPENDITURE,CAPITAL EXPENDITURE,4990,P118407-SERVICE-Carrying Out 8 Control Section Upgrades to th,26/06/2022 00:00,264378,8580,TO0640,TOTAL AUTOMATION AND POWER,30/05/2022 00:00,26/06/2022 00:00,P03-2023,
P&V,"ASSET PROTECTION, MAINT, DEVEL",CAPITAL EXPENDITURE,CAPITAL EXPENDITURE,4990,P118274-SERVICE-Investigate Leaking Roof - Bunglow at Riding,26/06/2022 00:00,264573,95,RE0094,REACT 2 IT (BUILDING & REFURBISHMENT) LTD,30/05/2022 00:00,26/06/2022 00:00,P03-2023,
R&B,INFORMATION TECHNOLOGY,CAPITAL EXPENDITURE,CAPITAL EXPENDITURE,4990,P118193-SERVICE-Finance System Upgrade - First Year subscript,13/06/2022 00:00,263911,40950,CE0021,ADVANCED BUSINESS SOLUTIONS,30/05/2022 00:00,26/06/2022 00:00,P03-2023,
,LEE VALLEY CAMPSITE,CAPITAL EXPENDITURE,CAPITAL EXPENDITURE,4990,P118101-SERVICE-Playground Work final balance,20/06/2022 00:00,263502,28642.5,IA0206,IA PLAY SOLUTIONS LTD,30/05/2022 00:00,26/06/2022 00:00,P03-2023,
,LEE VALLEY CARAVAN PARK,CAPITAL EXPENDITURE,CAPITAL EXPENDITURE,4990,P117837-SERVICE-Groundworks - C131,08/06/2022 00:00,263031,15900,MO0041,CAPSER,30/05/2022 00:00,26/06/2022 00:00,P03-2023,
,LEE VALLEY CARAVAN PARK,CAPITAL EXPENDITURE,CAPITAL EXPENDITURE,4990,CAPSER,08/06/2022 00:00,263031,2900,MO0041,CAPSER,30/05/2022 00:00,26/06/2022 00:00,P03-2023,
,LEE VALLEY CARAVAN PARK,CAPITAL EXPENDITURE,CAPITAL EXPENDITURE,4990,CAPSER,08/06/2022 00:00,263031,13000,MO0041,CAPSER,30/05/2022 00:00,26/06/2022 00:00,P03-2023,
,LEE VALLEY CARAVAN PARK,CAPITAL EXPENDITURE,CAPITAL EXPENDITURE,4990,CAPSER,08/06/2022 00:00,263031,-15900,MO0041,CAPSER,30/05/2022 00:00,26/06/2022 00:00,P03-2023,
,LEE VALLEY CARAVAN PARK,CAPITAL EXPENDITURE,CAPITAL EXPENDITURE,4990,P118181-SERVICE-Ground Screws - Pecky Pods - C313 Ground Work,13/06/2022 00:00,264008,3847.5,NO0226,NO MORE DIGGING,30/05/2022 00:00,26/06/2022 00:00,P03-2023,
,LEE VALLEY CARAVAN PARK,CAPITAL EXPENDITURE,CAPITAL EXPENDITURE,4990,P118281-SERVICE-3 Ton Top Soill and 2 Ton Wood Chip in Bags,21/06/2022 00:00,264152,301.66,TH0051,THOMPSONS OF CREWS HILL LTD,30/05/2022 00:00,26/06/2022 00:00,P03-2023,
,LV HOCKEY AND TENNIS CENTRE,CAPITAL EXPENDITURE,CAPITAL EXPENDITURE,4990,P118461-SERVICE-Hockey & Tennis feasibilty for UCL usage,26/06/2022 00:00,264385,25000,WR0322,WRENBRIDGE SPORT LTD,30/05/2022 00:00,26/06/2022 00:00,P03-2023,
,LV HOCKEY AND TENNIS CENTRE,CAPITAL EXPENDITURE,CAPITAL EXPENDITURE,4990,P118461-SERVICE-Hockey & Tennis feasibilty for UCL usage,26/06/2022 00:00,264386,25000,WR0322,WRENBRIDGE SPORT LTD,30/05/2022 00:00,26/06/2022 00:00,P03-2023,
,LEE VALLEY ICE CENTRE,CAPITAL EXPENDITURE,CAPITAL EXPENDITURE,4990,P118224-SERVICE-Ice centre monthly contracted works Interim c,08/06/2022 00:00,263722,1140930.98,BU0634,BUCKINGHAM GROUP CONTRACTING LIMITED,30/05/2022 00:00,26/06/2022 00:00,P03-2023,
,LEE VALLEY ICE CENTRE,CAPITAL EXPENDITURE,CAPITAL EXPENDITURE,4990,P118223-SERVICE-Ice centre Project management May 2022,07/06/2022 00:00,263741,43715,WR0199,WRENBRIDGE LAND LTD,30/05/2022 00:00,26/06/2022 00:00,P03-2023,
P&V,EVENTS MANAGEMENT (PR),THIRD PARTY PAYMENTS,EVENTS,5101,P118105-SERVICE-LV VeloPark Commonwealth Games 2022,26/06/2022 00:00,264521,4855,BR0018,BRADSHAW ELECTRICAL LIMITED,30/05/2022 00:00,26/06/2022 00:00,P03-2023,
P&V,EVENTS MANAGEMENT (PR),THIRD PARTY PAYMENTS,EVENTS,5101,P118105-SERVICE-Panel MSB2,26/06/2022 00:00,264521,4855,BR0018,BRADSHAW ELECTRICAL LIMITED,30/05/2022 00:00,26/06/2022 00:00,P03-2023,
R&B,HUMAN RESOURCES,THIRD PARTY PAYMENTS,CONSULTANTS (GENERAL),5110,P118251-SERVICE-PILATES 11/04/22 - 06/06/22,13/06/2022 00:00,263954,264,GO0443,J S GOW,30/05/2022 00:00,26/06/2022 00:00,P03-2023,
CEO,PR/COMMUNICATIONS,THIRD PARTY PAYMENTS,CONSULTANTS (GENERAL),5110,P118198-SERVICE-Sports Minister visit - refreshments and cafe,13/06/2022 00:00,263731,71.75,GR0097,GREENWICH LEISURE LTD,30/05/2022 00:00,26/06/2022 00:00,P03-2023,
CEO,PR/COMMUNICATIONS,THIRD PARTY PAYMENTS,CONSULTANTS (GENERAL),5110,P118089-SERVICE-Exhibition directional signage,15/06/2022 00:00,264163,300,ID0174,IDEAS LIBRARY LTD,30/05/2022 00:00,26/06/2022 00:00,P03-2023,
CEO,PR/COMMUNICATIONS,THIRD PARTY PAYMENTS,CONSULTANTS (GENERAL),5110,P118107-SERVICE-Communications Support for 2022-23,21/06/2022 00:00,264286,409,LO0024,LONDON COMMUNICATIONS AGENCY LTD,30/05/2022 00:00,26/06/2022 00:00,P03-2023,
CEO,PR/COMMUNICATIONS,THIRD PARTY PAYMENTS,CONSULTANTS (GENERAL),5110,P118141-SERVICE-10 Years On markers - 7 locations,26/06/2022 00:00,264335,1200,UN0087,UNIPLAY IT'S EDUCATIONAL LTD,30/05/2022 00:00,26/06/2022 00:00,P03-2023,
CEO,PR/COMMUNICATIONS,THIRD PARTY PAYMENTS,CONSULTANTS (GENERAL),5110,P118141-SERVICE-10 Years On markers - 7 locations,26/06/2022 00:00,264336,4440,UN0087,UNIPLAY IT'S EDUCATIONAL LTD,30/05/2022 00:00,26/06/2022 00:00,P03-2023,
CEO,PR/COMMUNICATIONS,THIRD PARTY PAYMENTS,CONSULTANTS (GENERAL),5110,P118107-SERVICE-Communications Support for 2022-23,22/06/2022 00:00,264354,3000,LO0024,LONDON COMMUNICATIONS AGENCY LTD,30/05/2022 00:00,26/06/2022 00:00,P03-2023,
CEO,PR/COMMUNICATIONS,THIRD PARTY PAYMENTS,CONSULTANTS (GENERAL),5110,P118051-SERVICE-10 Years On exhibition launch photography - 3,26/06/2022 00:00,264495,350,ST0679,STEVE BAINBRIDGE PHOTOGRAPHY LIMITED,30/05/2022 00:00,26/06/2022 00:00,P03-2023,
CEO,PR/COMMUNICATIONS,THIRD PARTY PAYMENTS,CONSULTANTS (GENERAL),5110,P118141-SERVICE-10 Years On markers - 7 locations,26/06/2022 00:00,264596,200,UN0087,UNIPLAY IT'S EDUCATIONAL LTD,30/05/2022 00:00,26/06/2022 00:00,P03-2023,
P&V,"ASSET PROTECTION, MAINT, DEVEL",THIRD PARTY PAYMENTS,CONSULTANTS (GENERAL),5110,P116052-SERVICE-LVAC re top indoor track,08/06/2022 00:00,263742,4250,SP0182,SPORTS LABS LTD,30/05/2022 00:00,26/06/2022 00:00,P03-2023,
P&V,"ASSET PROTECTION, MAINT, DEVEL",THIRD PARTY PAYMENTS,CONSULTANTS (GENERAL),5110,P118273-SERVICE-LVWWC Bridge,13/06/2022 00:00,263871,5000,EX0288,USEFUL SIMPLE GROUP LTD,30/05/2022 00:00,26/06/2022 00:00,P03-2023,
CEO,REGENERATION & PLANNING,THIRD PARTY PAYMENTS,CONSULTANTS (GENERAL),5110,P117919-SERVICE-Partner Contribution 2022/23,14/06/2022 00:00,264166,5000,LA0198,LONDON PARKS & GREEN SPACES FORUM,30/05/2022 00:00,26/06/2022 00:00,P03-2023,
R&B,INTERNAL AUDIT/HEALTH & SAFETY,THIRD PARTY PAYMENTS,CONSULTANTS (GENERAL),5110,P117619-SERVICE-H&S support April - Sept 2022,13/06/2022 00:00,263953,7108.33,RI0181,RD HEALTH & SAFETY LIMITED,30/05/2022 00:00,26/06/2022 00:00,P03-2023,
CEO,LEGAL SERVICES,THIRD PARTY PAYMENTS,CONSULTANTS (GENERAL),5110,P117033-SERVICE-Work Disclosure Advice,13/06/2022 00:00,262456,47437.3,WO0344,WOMBLE BOND DICKINSON (UK) LLP,30/05/2022 00:00,26/06/2022 00:00,P03-2023,
CEO,LEGAL SERVICES,THIRD PARTY PAYMENTS,CONSULTANTS (GENERAL),5110,"P118182-SERVICE-Telecoms Lease, Royston Road",07/06/2022 00:00,263689,1133.4,WO0344,WOMBLE BOND DICKINSON (UK) LLP,30/05/2022 00:00,26/06/2022 00:00,P03-2023,
CEO,LEGAL SERVICES,THIRD PARTY PAYMENTS,CONSULTANTS (GENERAL),5110,P118277-SERVICE-GLL Advice,13/06/2022 00:00,263723,3197.4,WO0344,WOMBLE BOND DICKINSON (UK) LLP,30/05/2022 00:00,26/06/2022 00:00,P03-2023,
CEO,LEGAL SERVICES,THIRD PARTY PAYMENTS,CONSULTANTS (GENERAL),5110,P118349-SERVICE-Management Fee Advice,20/06/2022 00:00,264063,675,YO0009,MARTIN YOUNG,30/05/2022 00:00,26/06/2022 00:00,P03-2023,
CEO,LEGAL SERVICES,THIRD PARTY PAYMENTS,CONSULTANTS (GENERAL),5110,P117440-SERVICE-Laurie Elks Tribunal Advice,20/06/2022 00:00,264064,34000,KB0138,11KBW,30/05/2022 00:00,26/06/2022 00:00,P03-2023,
CEO,LEGAL SERVICES,THIRD PARTY PAYMENTS,CONSULTANTS (GENERAL),5110,P118447-SERVICE-Laurie Elks Tribunal Advice,26/06/2022 00:00,264368,19455,KB0138,11KBW,30/05/2022 00:00,26/06/2022 00:00,P03-2023,
P&V,LEE VALLEY FARM HOLYFIELDHALL,THIRD PARTY PAYMENTS,CONSULTANTS (GENERAL),5110,P117446-SERVICE-Farm Review,26/06/2022 00:00,264504,4628.6,DO0320,DOUGLAS GREEN CONSULTING LTD,30/05/2022 00:00,26/06/2022 00:00,P03-2023,
P&V,LEE VALLEY FARM HOLYFIELDHALL,THIRD PARTY PAYMENTS,CONTRACTORS,5118,P118279-SERVICE-Forage Harvesting,13/06/2022 00:00,263908,9105.8,BU0088,BURNELL CONTRACTING,30/05/2022 00:00,26/06/2022 00:00,P03-2023,
P&V,LEE VALLEY FARM HOLYFIELDHALL,THIRD PARTY PAYMENTS,CONTRACTORS,5118,P118280-SERVICE-Maize Drilling,13/06/2022 00:00,263909,1342.94,BU0088,BURNELL CONTRACTING,30/05/2022 00:00,26/06/2022 00:00,P03-2023,
P&V,LEE VALLEY FARM HOLYFIELDHALL,THIRD PARTY PAYMENTS,CONTRACTORS,5118,P118369-SERVICE-Field Application,20/06/2022 00:00,264118,4062.5,TR0226,TRAMSPREAD,30/05/2022 00:00,26/06/2022 00:00,P03-2023,
R&B,BALANCE SHEET (AUTHORITY),CREDITORS,EMPLOYEES INCOME TAX,6701,PAYE,13/06/2022 00:00,264011,51465.6,HM0368,HMRC,30/05/2022 00:00,26/06/2022 00:00,P03-2023,
R&B,BALANCE SHEET (AUTHORITY),CREDITORS,EMPLOYEES NATIONAL INSURANCE,6702,PAYE,13/06/2022 00:00,264011,30367.27,HM0368,HMRC,30/05/2022 00:00,26/06/2022 00:00,P03-2023,
R&B,BALANCE SHEET (AUTHORITY),CREDITORS,EMPLOYERS NATIONAL INSURANCE,6704,PAYE,13/06/2022 00:00,264011,40997.31,HM0368,HMRC,30/05/2022 00:00,26/06/2022 00:00,P03-2023,
R&B,BALANCE SHEET (AUTHORITY),CREDITORS,EMPLOYEES PENSION LGPS,6706,EMPLOYEE CONTRIBUTIONS,13/06/2022 00:00,264012,24067.61,LO0334,LONDON PENSION FUND OPERATIONAL ACCOUNT,30/05/2022 00:00,26/06/2022 00:00,P03-2023,
R&B,BALANCE SHEET (AUTHORITY),CREDITORS,EMPLOYEES PENSION LGPS,6706,AVC CONTRIBUTIONS,13/06/2022 00:00,264013,125,LO0455,LOCAL GOVERNMENT AVC DEPARTMENT,30/05/2022 00:00,26/06/2022 00:00,P03-2023,
R&B,BALANCE SHEET (AUTHORITY),CREDITORS,EMPLOYERS PENSION LGPS,6707,EMPLOYER CONTRIBUTIONS,13/06/2022 00:00,264012,52001.78,LO0334,LONDON PENSION FUND OPERATIONAL ACCOUNT,30/05/2022 00:00,26/06/2022 00:00,P03-2023,
R&B,BALANCE SHEET (AUTHORITY),CREDITORS,EMPLOYEES STUDENT LOANS,6709,PAYE,13/06/2022 00:00,264011,948,HM0368,HMRC,30/05/2022 00:00,26/06/2022 00:00,P03-2023,
R&B,BALANCE SHEET (AUTHORITY),CREDITORS,EMPLOYEES UNION SUBSCRIPTIONS,6711,MEMBERSHIP FEES,13/06/2022 00:00,264014,57,UN0002,UNISON Greater London Region,30/05/2022 00:00,26/06/2022 00:00,P03-2023,
R&B,BALANCE SHEET (AUTHORITY),CREDITORS,EMPLOYEES SMP/SSP,6712,PAYE,13/06/2022 00:00,264011,-1297.15,HM0368,HMRC,30/05/2022 00:00,26/06/2022 00:00,P03-2023,
R&B,BALANCE SHEET (AUTHORITY),CREDITORS,CONSTRUCTION INDUSTRY SCHEME,6721,R G JOYCE,01/06/2022 00:00,263799,-170,JO0019,R G JOYCE,30/05/2022 00:00,26/06/2022 00:00,P03-2023,
R&B,BALANCE SHEET (AUTHORITY),CREDITORS,CONSTRUCTION INDUSTRY SCHEME,6721,CAPSER,01/06/2022 00:00,263814,-30,MO0041,CAPSER,30/05/2022 00:00,26/06/2022 00:00,P03-2023,
R&B,BALANCE SHEET (AUTHORITY),CREDITORS,CONSTRUCTION INDUSTRY SCHEME,6721,R G JOYCE,08/06/2022 00:00,264037,-138,JO0019,R G JOYCE,30/05/2022 00:00,26/06/2022 00:00,P03-2023,
R&B,BALANCE SHEET (AUTHORITY),CREDITORS,CONSTRUCTION INDUSTRY SCHEME,6721,CAPSER,08/06/2022 00:00,264044,-580,MO0041,CAPSER,30/05/2022 00:00,26/06/2022 00:00,P03-2023,
R&B,BALANCE SHEET (AUTHORITY),CREDITORS,CONSTRUCTION INDUSTRY SCHEME,6721,CASPER,15/06/2022 00:00,264144,650,IN0016,INLAND REVENUE ONLY 948/L1005,30/05/2022 00:00,26/06/2022 00:00,P03-2023,
R&B,BALANCE SHEET (AUTHORITY),CREDITORS,CONSTRUCTION INDUSTRY SCHEME,6721,JOYCE,15/06/2022 00:00,264144,350,IN0016,INLAND REVENUE ONLY 948/L1005,30/05/2022 00:00,26/06/2022 00:00,P03-2023,
R&B,BALANCE SHEET (AUTHORITY),CREDITORS,CONSTRUCTION INDUSTRY SCHEME,6721,KENDALL,15/06/2022 00:00,264144,30,IN0016,INLAND REVENUE ONLY 948/L1005,30/05/2022 00:00,26/06/2022 00:00,P03-2023,
R&B,BALANCE SHEET (AUTHORITY),CREDITORS,CONSTRUCTION INDUSTRY SCHEME,6721,R G JOYCE,15/06/2022 00:00,264203,-40,JO0019,R G JOYCE,30/05/2022 00:00,26/06/2022 00:00,P03-2023,
R&B,BALANCE SHEET (AUTHORITY),CREDITORS,CONSTRUCTION INDUSTRY SCHEME,6721,R G JOYCE,22/06/2022 00:00,264433,-50,JO0019,R G JOYCE,30/05/2022 00:00,26/06/2022 00:00,P03-2023,
R&B,BALANCE SHEET (AUTHORITY),CREDITORS,CONSTRUCTION INDUSTRY SCHEME,6721,KENDALL & SONS LIMITED,22/06/2022 00:00,264436,-189.6,KE0023,KENDALL & SONS LIMITED,30/05/2022 00:00,26/06/2022 00:00,P03-2023,
R&B,BALANCE SHEET (AUTHORITY),CREDITORS,CONSTRUCTION INDUSTRY SCHEME,6721,CAPSER,22/06/2022 00:00,264452,-433,MO0041,CAPSER,30/05/2022 00:00,26/06/2022 00:00,P03-2023,
R&B,BALANCE SHEET (AUTHORITY),CA SUSPENSE,RECEIPT/PAYMENT PSEUDO BANK AC,6884,BUSINESS GAS,26/06/2022 00:00,264590,1054.27,BR0029,BRITISH GAS BUSINESS,30/05/2022 00:00,26/06/2022 00:00,P03-2023,
R&B,BALANCE SHEET (AUTHORITY),CA SUSPENSE,RECEIPT/PAYMENT PSEUDO BANK AC,6884,E-ON NEXT ENERGY LTD,26/06/2022 00:00,264591,354.24,EO0398,E-ON NEXT ENERGY LTD,30/05/2022 00:00,26/06/2022 00:00,P03-2023,
R&B,REVENUE SUSPENSE (AUTHORITY),GENERAL SUSPENSE,GENERAL SUSPENSE,6890,DAISY COMMUNICATIONS LTD,13/06/2022 00:00,264062,2267.02,ID0002,DAISY COMMUNICATIONS LTD,30/05/2022 00:00,26/06/2022 00:00,P03-2023,
P&V,CAR PARK INCOME,INCOME,CAR PARKING INCOME,9730,P118284-SERVICE-PBP Chargebacks Aug 21 to Jan 22 - CMM,09/06/2022 00:00,263732,0.67,PA0372,PARKINGEYE LIMITED,30/05/2022 00:00,26/06/2022 00:00,P03-2023,
P&V,CAR PARK INCOME,INCOME,CAR PARKING INCOME,9730,PARKINGEYE LIMITED,07/06/2022 00:00,263877,-95.68,PA0372,PARKINGEYE LIMITED,30/05/2022 00:00,26/06/2022 00:00,P03-2023,
P&V,CAR PARK INCOME,INCOME,CAR PARKING INCOME,9730,PARKINGEYE LIMITED,07/06/2022 00:00,263878,-23.68,PA0372,PARKINGEYE LIMITED,30/05/2022 00:00,26/06/2022 00:00,P03-2023,
P&V,CAR PARK INCOME,INCOME,CAR PARKING INCOME,9730,PARKINGEYE LIMITED,07/06/2022 00:00,263879,-108,PA0372,PARKINGEYE LIMITED,30/05/2022 00:00,26/06/2022 00:00,P03-2023,
P&V,CAR PARK INCOME,INCOME,CAR PARKING INCOME,9730,PARKINGEYE LIMITED,07/06/2022 00:00,263880,-55,PA0372,PARKINGEYE LIMITED,30/05/2022 00:00,26/06/2022 00:00,P03-2023,
P&V,CAR PARK INCOME,INCOME,CAR PARKING INCOME,9730,PARKINGEYE LIMITED,07/06/2022 00:00,263881,-67.18,PA0372,PARKINGEYE LIMITED,30/05/2022 00:00,26/06/2022 00:00,P03-2023,
P&V,CAR PARK INCOME,INCOME,CAR PARKING INCOME,9730,PARKINGEYE LIMITED,07/06/2022 00:00,263882,-53.7,PA0372,PARKINGEYE LIMITED,30/05/2022 00:00,26/06/2022 00:00,P03-2023,
P&V,CAR PARK INCOME,INCOME,CAR PARKING INCOME,9730,PARKINGEYE LIMITED,07/06/2022 00:00,263883,-136.7,PA0372,PARKINGEYE LIMITED,30/05/2022 00:00,26/06/2022 00:00,P03-2023,
P&V,CAR PARK INCOME,INCOME,CAR PARKING INCOME,9730,P118284-SERVICE-Paid Parking Tickets used WAG - May 2022,13/06/2022 00:00,263915,0.66,PA0372,PARKINGEYE LIMITED,30/05/2022 00:00,26/06/2022 00:00,P03-2023,
P&V,CAR PARK INCOME,INCOME,CAR PARKING INCOME,9730,P118284-SERVICE-Paid Parking Tickets used CMM - May 2022,13/06/2022 00:00,263915,0.66,PA0372,PARKINGEYE LIMITED,30/05/2022 00:00,26/06/2022 00:00,P03-2023,
P&V,CAR PARK INCOME,INCOME,CAR PARKING INCOME,9730,P118284-SERVICE-Paid Parking Tickets used GPP - May 2022,13/06/2022 00:00,263915,3.95,PA0372,PARKINGEYE LIMITED,30/05/2022 00:00,26/06/2022 00:00,P03-2023,
P&V,CAR PARK INCOME,INCOME,CAR PARKING INCOME,9730,P118284-SERVICE-Paid Parking Tickets used FG - May 2022,13/06/2022 00:00,263915,2.84,PA0372,PARKINGEYE LIMITED,30/05/2022 00:00,26/06/2022 00:00,P03-2023,
P&V,CAR PARK INCOME,INCOME,CAR PARKING INCOME,9730,P118284-SERVICE-Paid Parking Tickets used Clayton H- May 2022,13/06/2022 00:00,263915,2.16,PA0372,PARKINGEYE LIMITED,30/05/2022 00:00,26/06/2022 00:00,P03-2023,
P&V,CAR PARK INCOME,INCOME,CAR PARKING INCOME,9730,PARKINGEYE LIMITED,13/06/2022 00:00,263956,-36.43,PA0372,PARKINGEYE LIMITED,30/05/2022 00:00,26/06/2022 00:00,P03-2023,
P&V,CAR PARK INCOME,INCOME,CAR PARKING INCOME,9730,PARKINGEYE LIMITED,13/06/2022 00:00,263956,3.52,PA0372,PARKINGEYE LIMITED,30/05/2022 00:00,26/06/2022 00:00,P03-2023,
P&V,CAR PARK INCOME,INCOME,CAR PARKING INCOME,9730,PARKINGEYE LIMITED,13/06/2022 00:00,263957,-350.74,PA0372,PARKINGEYE LIMITED,30/05/2022 00:00,26/06/2022 00:00,P03-2023,
P&V,CAR PARK INCOME,INCOME,CAR PARKING INCOME,9730,PARKINGEYE LIMITED,13/06/2022 00:00,263957,30.58,PA0372,PARKINGEYE LIMITED,30/05/2022 00:00,26/06/2022 00:00,P03-2023,
P&V,CAR PARK INCOME,INCOME,CAR PARKING INCOME,9730,PARKINGEYE LIMITED,13/06/2022 00:00,263958,222.75,PA0372,PARKINGEYE LIMITED,30/05/2022 00:00,26/06/2022 00:00,P03-2023,
P&V,CAR PARK INCOME,INCOME,CAR PARKING INCOME,9730,PARKINGEYE LIMITED,13/06/2022 00:00,263958,-3663.54,PA0372,PARKINGEYE LIMITED,30/05/2022 00:00,26/06/2022 00:00,P03-2023,
P&V,CAR PARK INCOME,INCOME,CAR PARKING INCOME,9730,PARKINGEYE LIMITED,13/06/2022 00:00,263959,5.28,PA0372,PARKINGEYE LIMITED,30/05/2022 00:00,26/06/2022 00:00,P03-2023,
P&V,CAR PARK INCOME,INCOME,CAR PARKING INCOME,9730,PARKINGEYE LIMITED,13/06/2022 00:00,263959,-62.09,PA0372,PARKINGEYE LIMITED,30/05/2022 00:00,26/06/2022 00:00,P03-2023,
P&V,CAR PARK INCOME,INCOME,CAR PARKING INCOME,9730,PARKINGEYE LIMITED,13/06/2022 00:00,263960,-134.82,PA0372,PARKINGEYE LIMITED,30/05/2022 00:00,26/06/2022 00:00,P03-2023,
P&V,CAR PARK INCOME,INCOME,CAR PARKING INCOME,9730,PARKINGEYE LIMITED,13/06/2022 00:00,263960,12.21,PA0372,PARKINGEYE LIMITED,30/05/2022 00:00,26/06/2022 00:00,P03-2023,
P&V,CAR PARK INCOME,INCOME,CAR PARKING INCOME,9730,PARKINGEYE LIMITED,13/06/2022 00:00,263961,64.24,PA0372,PARKINGEYE LIMITED,30/05/2022 00:00,26/06/2022 00:00,P03-2023,
P&V,CAR PARK INCOME,INCOME,CAR PARKING INCOME,9730,PARKINGEYE LIMITED,13/06/2022 00:00,263961,-939.72,PA0372,PARKINGEYE LIMITED,30/05/2022 00:00,26/06/2022 00:00,P03-2023,
P&V,CAR PARK INCOME,INCOME,CAR PARKING INCOME,9730,PARKINGEYE LIMITED,13/06/2022 00:00,263962,77.22,PA0372,PARKINGEYE LIMITED,30/05/2022 00:00,26/06/2022 00:00,P03-2023,
P&V,CAR PARK INCOME,INCOME,CAR PARKING INCOME,9730,PARKINGEYE LIMITED,13/06/2022 00:00,263962,-1223.19,PA0372,PARKINGEYE LIMITED,30/05/2022 00:00,26/06/2022 00:00,P03-2023,
P&V,CAR PARK INCOME,INCOME,CAR PARKING INCOME,9730,PARKINGEYE LIMITED,21/06/2022 00:00,264157,-132.5,PA0372,PARKINGEYE LIMITED,30/05/2022 00:00,26/06/2022 00:00,P03-2023,
